Workbook

Sheet NCCN Ratings
A1: Cancer type | B1: NCCN Guideline | C1: Guideline edition | D1: Cancer subtype | E1: Indication subset | F1: ID | G1: Regimen | H1: Efficacy | I1: Safety | J1: Quality | K1: Consistency | L1: Affordability | M1: Clinical score (10 max) | N1: Overall (20 max) | O1: Preferred (0=no, 1=yes) | P1: RT? (0=no, 1=yes) | Q1: Stem cell transplant (0=no, 1=yes) | R1: Evidence and consensus category | S1: Line of therapy | T1: First-line? (0-first-line, 1-second/third/fourth/fifth/sixth/subsequent, 2-maintenance) | U1: Regimen type (0=unlimited, 1=time-limited) | V1: Exclude? | W1: Total_chemo_price | X1: Total_treat_price_HM | Y1: Total_treat_price_LM | Z1: Total_physician_margin_HM | AA1: Total_physician_margin_LM | AB1: Drug_1 | AC1: Drug route_1 | AD1: Drug ROA_1 | AE1: Drug dose_1 | AF1: Drug units_1 | AG1: Drug # of doses_1 (for unlimited regimens, # per year) | AH1: Dose with Mass Multiplier_1 | AI1: ASP price per unit_1 | AJ1: Price per unit_1 | AK1: Unit_1 | AL1: Drug Price per year_1 | AM1: Drug Price_1 | AN1: Physician margin_1 | AO1: Drug_2 | AP1: Drug route_2 | AQ1: Drug ROA_2 | AR1: Drug dose_2 | AS1: Drug units_2 | AT1: Drug # of doses_2 (for unlimited regimens, # per year) | AU1: Dose with Mass Multiplier_2 | AV1: ASP price per unit_2 | AW1: Price per unit_2 | AX1: Unit_2 | AY1: Drug Price per year_2 | AZ1: Drug Price_2 | BA1: Physician margin_2 | BB1: Drug_3 | BC1: Drug route_3 | BD1: Drug ROA_3 | BE1: Drug dose_3 | BF1: Drug units_3 | BG1: Drug # of doses_3 (for unlimited regimens, # per year) | BH1: Dose with Mass Multiplier_3 | BI1: ASP price per unit_3 | BJ1: Price per unit_3 | BK1: Unit_3 | BL1: Drug Price per year_3 | BM1: Drug Price_3 | BN1: Physician margin_3 | BO1: Drug_4 | BP1: Drug route_4 | BQ1: Drug ROA_4 | BR1: Drug dose_4 | BS1: Drug units_4 | BT1: Drug # of doses_4 (for unlimited regimens, # per year) | BU1: Dose with Mass Multiplier_4 | BV1: ASP price per unit_4 | BW1: Price per unit_4 | BX1: Unit_4 | BY1: Drug Price per year_4 | BZ1: Drug Price_4 | CA1: Physician margin_4 | CB1: Drug_5 | CC1: Drug route_5 | CD1: Drug ROA_5 | CE1: Drug dose_5 | CF1: Drug units_5 | CG1: Drug # of doses_5 (for unlimited regimens, # per year) | CH1: Dose with Mass Multiplier_5 | CI1: ASP price per unit_5 | CJ1: Price per unit_5 | CK1: Unit_5 | CL1: Drug Price per year_5 | CM1: Drug Price_5 | CN1: Physician margin_5 | CO1: Drug_6 | CP1: Drug route_6 | CQ1: Drug ROA_6 | CR1: Drug dose_6 | CS1: Drug units_6 | CT1: Drug # of doses_6 (for unlimited regimens, # per year) | CU1: Dose with Mass Multiplier_6 | CV1: ASP price per unit_6 | CW1: Price per unit_6 | CX1: Unit_6 | CY1: Drug Price per year_6 | CZ1: Drug Price_6 | DA1: Physician margin_6 | DB1: Drug_7 | DC1: Drug route_7 | DD1: Drug ROA_7 | DE1: Drug dose_7 | DF1: Drug units_7 | DG1: Drug # of doses_7 (for unlimited regimens, # per year) | DH1: Dose with Mass Multiplier_7 | DI1: ASP price per unit_7 | DJ1: Price per unit_7 | DK1: Unit_7 | DL1: Drug Price per year_7 | DM1: Drug Price_7 | DN1: Physician margin_7 | DO1: Drug_8 | DP1: Drug route_8 | DQ1: Drug ROA_8 | DR1: Drug dose_8 | DS1: Drug units_8 | DT1: Drug # of doses_8 (for unlimited regimens, # per year) | DU1: Dose with Mass Multiplier_8 | DV1: ASP price per unit_8 | DW1: Price per unit_8 | DX1: Unit_8 | DY1: Drug Price per year_8 | DZ1: Drug Price_8 | EA1: Physician margin_8 | EB1: Drug_9 | EC1: Drug route_9 | ED1: Drug ROA_9 | EE1: Drug dose_9 | EF1: Drug units_9 | EG1: Drug # of doses_9 (for unlimited regimens, # per year) | EH1: Dose with Mass Multiplier_9 | EI1: ASP price per unit_9 | EJ1: Price per unit_9 | EK1: Unit_9 | EL1: Drug Price per year_9 | EM1: Drug Price_9 | EN1: Physician margin_9 | EO1: Drug_10 | EP1: Drug route_10 | EQ1: Drug ROA_10 | ER1: Drug dose_10 | ES1: Drug units_10 | ET1: Drug # of doses_10 (for unlimited regimens, # per year) | EU1: Dose with Mass Multiplier_10 | EV1: ASP price per unit_10 | EW1: Price per unit_10 | EX1: Unit_10 | EY1: Drug Price per year_10 | EZ1: Drug Price_10 | FA1: Physician margin_10 | FB1: Drug_11 | FC1: Drug route_11 | FD1: Drug ROA_11 | FE1: Drug dose_11 | FF1: Drug units_11 | FG1: Drug # of doses_11 (for unlimited regimens, # per year) | FH1: Dose with Mass Multiplier_11 | FI1: ASP price per unit_11 | FJ1: Price per unit_11 | FK1: Unit_11 | FL1: Drug Price per year_11 | FM1: Drug Price_11 | FN1: Physician margin_11 | FO1: Total regimen price | FP1: Emetic Risk (0=min, 1=low, 2=inter, 3=high) | FQ1: # of supportive doses | FR1: Growth Factor (0=low, 1=inter, 2=high) | FS1: # of GCSF doses | FT1: Supportive Care, low margin | FU1: Supportive Care, high margin | FV1: GF, low margin | FW1: GF, high margin | FX1: Supportive Care, low margin_adj | FY1: Supportive Care, high margin_adj | FZ1: GF, low margin_adj | GA1: GF, high margin_adj | GB1: Physician margin supportive Care, low margin_adj | GC1: Physician margin supportive Care, high margin_adj | GD1: Physician margin GF, low margin_adj | GE1: Physician margin GF, high margin_adj | GF1: Admin Drug 1 | GG1: Admin Drug 2 | GH1: Admin Drug 3 | GI1: Admin Drug 4 | GJ1: Admin Drug 5 | GK1: Admin Drug 6 | GL1: Admin Drug 7 | GM1: Admin Drug 8 | GN1: Admin Drug 9 | GO1: Admin Drug 10 | GP1: Admin Drug 11 | GQ1: Admin Total | GR1: Notes | GS1: Citation for dosing
A2: Breast | B2: Breast | C2: 2.2016 | D2: Systemic disease or de novo stage IV | F2: 14136 | G2: Denosumab | H2: 4 | I2: 4 | J2: 5 | K2: 5 | L2: 2 | M2: =SUM(Table1[[#This Row],[Efficacy]:[Safety]]) -> 8 | N2: =SUM(Table1[[#This Row],[Efficacy]:[Consistency]]) -> 18 | O2: 0 | P2: 0 | Q2: 0 | R2: 2A | S2: First-line | T2: =IF(Table1[[#This Row],[Line of therapy]]="first-line", "0", IF(Table1[[#This Row],[Line of therapy]]="second-line or subsequent", "1", IF(Table1[[#This Row],[Line of therapy]]="second-line", "1", IF(Table1[[#This Row],[Line of therapy]]="third-line", "1", IF(Table1[[#This Row],[Line of therapy]]="fourth-line", "1", IF(Table1[[#This Row],[Line of therapy]]="fifth-line", "1", IF(Table1[[#This Row],[Line of therapy]]="sixth-line", "1", IF(Table1[[#This Row],[Line of therapy]]="persistent disease or progression", "1", IF(Table1[[#This Row],[Line of therapy]]="relapsed/refractory", "1", IF(Table1[[#This Row],[Line of therapy]]="subsequent", "1", IF(Table1[[#This Row],[Line of therapy]]="maintenance", "2", ""))))))))))) -> 0 | U2: 1 | V2: 0 | W2: =Table1[[#This Row],[Total regimen price]]+Table1[[#This Row],[Admin Total]] -> 24688.92 | X2: =Table1[[#This Row],[Total regimen price]]+Table1[[#This Row],[Supportive Care, high margin_adj]]+Table1[[#This Row],[GF, high margin_adj]]+Table1[[#This Row],[Admin Total]] -> 24688.92 | Y2: =Table1[[#This Row],[Total regimen price]]+Table1[[#This Row],[Supportive Care, low margin_adj]]+Table1[[#This Row],[GF, low margin_adj]]+Table1[[#This Row],[Admin Total]] -> 24688.92 | Z2: =Table1[[#This Row],[Physician margin_1]]+Table1[[#This Row],[Physician margin_2]]+Table1[[#This Row],[Physician margin_3]]+Table1[[#This Row],[Physician margin_4]]+Table1[[#This Row],[Physician margin_5]]+Table1[[#This Row],[Physician margin_6]]+Table1[[#This Row],[Physician margin_7]]+Table1[[#This Row],[Physician margin_8]]+Table1[[#This Row],[Physician margin_9]]+Table1[[#This Row],[Physician margin_10]]+Table1[[#This Row],[Physician margin_11]]+Table1[[#This Row],[Physician margin supportive Care, high margin_adj]]+Table1[[#This Row],[Physician margin GF, high margin_adj]] -> 1346.291321 | AA2: =Table1[[#This Row],[Physician margin_1]]+Table1[[#This Row],[Physician margin_2]]+Table1[[#This Row],[Physician margin_3]]+Table1[[#This Row],[Physician margin_4]]+Table1[[#This Row],[Physician margin_5]]+Table1[[#This Row],[Physician margin_6]]+Table1[[#This Row],[Physician margin_7]]+Table1[[#This Row],[Physician margin_8]]+Table1[[#This Row],[Physician margin_9]]+Table1[[#This Row],[Physician margin_10]]+Table1[[#This Row],[Physician margin_11]]+Table1[[#This Row],[Physician margin supportive Care, low margin_adj]]+Table1[[#This Row],[Physician margin GF, low margin_adj]] -> 1346.291321 | AB2: Denosumab | AC2: SUBQ | AD2: Denosumab SUBQ | AE2: 120 | AF2: mg | AG2: 12 | AH2: =IF(ISNUMBER(SEARCH("/m2", Table1[[#This Row],[Drug units_1]])), Table1[[#This Row],[Drug dose_1]]*1.7, IF(ISNUMBER(SEARCH("/kg", Table1[[#This Row],[Drug units_1]])), Table1[[#This Row],[Drug dose_1]]*70, Table1[[#This Row],[Drug dose_1]])) -> 120 | AI2: =IFERROR(INDEX(Table2[ASP Price per Unit], MATCH(Table1[[#This Row],[Drug ROA_1]], Table2[Unique Drugs All ROA], 0)), "") -> 16.517 | AJ2: =IFERROR(INDEX(Table2[Price per unit], MATCH(Table1[[#This Row],[Drug ROA_1]], Table2[Unique Drugs All ROA], 0)), "") -> 16.517 | AK2: =IFERROR(INDEX(Table2[Unit], MATCH(Table1[[#This Row],[Drug ROA_1]], Table2[Unique Drugs All ROA], 0)), "") -> MG | AL2: =IFERROR(IF(Table1[[#This Row],[Unit_1]]="post-SC admin price", Table1[[#This Row],[Price per unit_1]], IF(Table1[[#This Row],[Unit_1]]="pre-SC admin price", Table1[[#This Row],[Price per unit_1]], Table1[[#This Row],[Dose with Mass Multiplier_1]]*Table1[[#This Row],[Drug '# of doses_1 (for unlimited regimens, '# per year)]]*Table1[[#This Row],[Price per unit_1]])), 0) -> 23784.48 | AM2: =IFERROR(IF(Table1[[#This Row],[Regimen type (0=unlimited, 1=time-limited)]]=1, Table1[[#This Row],[Drug Price per year_1]], IF(Table1[[#This Row],[Regimen type (0=unlimited, 1=time-limited)]]="1", Table1[[#This Row],[Drug Price per year_1]], IF(Table1[[#This Row],[Regimen type (0=unlimited, 1=time-limited)]]=0, Table1[[#This Row],[Drug Price per year_1]]/12, IF(Table1[[#This Row],[Regimen type (0=unlimited, 1=time-limited)]]="0", Table1[[#This Row],[Drug Price per year_1]]/12, "CHECK")))), 0) -> 23784.48 | AN2: =IF(Table1[[#This Row],[ASP price per unit_1]]<>0, Table1[[#This Row],[Drug Price_1]]/1.06*0.06, 0) -> 1346.291321 | AO2: 0 | AP2: 0 | AQ2: 0 | AR2: 0 | AS2: 0 | AT2: 0 | AU2: =IF(ISNUMBER(SEARCH("/m2", Table1[[#This Row],[Drug units_2]])), Table1[[#This Row],[Drug dose_2]]*1.7, IF(ISNUMBER(SEARCH("/kg", Table1[[#This Row],[Drug units_2]])), Table1[[#This Row],[Drug dose_2]]*70, Table1[[#This Row],[Drug dose_2]])) -> 0 | AV2: =IFERROR(INDEX(Table2[ASP Price per Unit], MATCH(Table1[[#This Row],[Drug ROA_2]], Table2[Unique Drugs All ROA], 0)), "") ->  | AW2: =IFERROR(INDEX(Table2[Price per unit], MATCH(Table1[[#This Row],[Drug ROA_2]], Table2[Unique Drugs All ROA], 0)), "") ->  | AX2: =IFERROR(INDEX(Table2[Unit], MATCH(Table1[[#This Row],[Drug ROA_2]], Table2[Unique Drugs All ROA], 0)), "") ->  | AY2: =IFERROR(IF(Table1[[#This Row],[Unit_2]]="post-SC admin price", Table1[[#This Row],[Price per unit_2]], IF(Table1[[#This Row],[Unit_2]]="pre-SC admin price", Table1[[#This Row],[Price per unit_2]], Table1[[#This Row],[Dose with Mass Multiplier_2]]*Table1[[#This Row],[Drug '# of doses_2 (for unlimited regimens, '# per year)]]*Table1[[#This Row],[Price per unit_2]])), 0) -> 0 | AZ2: =IFERROR(IF(Table1[[#This Row],[Regimen type (0=unlimited, 1=time-limited)]]=1, Table1[[#This Row],[Drug Price per year_2]], IF(Table1[[#This Row],[Regimen type (0=unlimited, 1=time-limited)]]="1", Table1[[#This Row],[Drug Price per year_2]], IF(Table1[[#This Row],[Regimen type (0=unlimited, 1=time-limited)]]=0, Table1[[#This Row],[Drug Price per year_2]]/12, IF(Table1[[#This Row],[Regimen type (0=unlimited, 1=time-limited)]]="0", Table1[[#This Row],[Drug Price per year_2]]/12, "CHECK")))), 0) -> 0 | BA2: =IF(Table1[[#This Row],[ASP price per unit_2]]<>0, Table1[[#This Row],[Drug Price_2]]/1.06*0.06, 0) -> 0 | BB2: 0 | BC2: 0 | BD2: 0 | BE2: 0 | BF2: 0 | BG2: 0 | BH2: =IF(ISNUMBER(SEARCH("/m2", Table1[[#This Row],[Drug units_3]])), Table1[[#This Row],[Drug dose_3]]*1.7, IF(ISNUMBER(SEARCH("/kg", Table1[[#This Row],[Drug units_3]])), Table1[[#This Row],[Drug dose_3]]*70, Table1[[#This Row],[Drug dose_3]])) -> 0 | BI2: =IFERROR(INDEX(Table2[ASP Price per Unit], MATCH(Table1[[#This Row],[Drug ROA_3]], Table2[Unique Drugs All ROA], 0)), "") ->  | BJ2: =IFERROR(INDEX(Table2[Price per unit], MATCH(Table1[[#This Row],[Drug ROA_3]], Table2[Unique Drugs All ROA], 0)), "") ->  | BK2: =IFERROR(INDEX(Table2[Unit], MATCH(Table1[[#This Row],[Drug ROA_3]], Table2[Unique Drugs All ROA], 0)), "") ->  | BL2: =IFERROR(IF(Table1[[#This Row],[Unit_3]]="post-SC admin price", Table1[[#This Row],[Price per unit_3]], IF(Table1[[#This Row],[Unit_3]]="pre-SC admin price", Table1[[#This Row],[Price per unit_3]], Table1[[#This Row],[Dose with Mass Multiplier_3]]*Table1[[#This Row],[Drug '# of doses_3 (for unlimited regimens, '# per year)]]*Table1[[#This Row],[Price per unit_3]])), 0) -> 0 | BM2: =IFERROR(IF(Table1[[#This Row],[Regimen type (0=unlimited, 1=time-limited)]]=1, Table1[[#This Row],[Drug Price per year_3]], IF(Table1[[#This Row],[Regimen type (0=unlimited, 1=time-limited)]]="1", Table1[[#This Row],[Drug Price per year_3]], IF(Table1[[#This Row],[Regimen type (0=unlimited, 1=time-limited)]]=0, Table1[[#This Row],[Drug Price per year_3]]/12, IF(Table1[[#This Row],[Regimen type (0=unlimited, 1=time-limited)]]="0", Table1[[#This Row],[Drug Price per year_3]]/12, "CHECK")))), 0) -> 0 | BN2: =IF(Table1[[#This Row],[ASP price per unit_3]]<>0, Table1[[#This Row],[Drug Price_3]]/1.06*0.06, 0) -> 0 | BO2: 0 | BP2: 0 | BQ2: 0 | BR2: 0 | BS2: 0 | BT2: 0 | BU2: =IF(ISNUMBER(SEARCH("/m2", Table1[[#This Row],[Drug units_4]])), Table1[[#This Row],[Drug dose_4]]*1.7, IF(ISNUMBER(SEARCH("/kg", Table1[[#This Row],[Drug units_4]])), Table1[[#This Row],[Drug dose_4]]*70, Table1[[#This Row],[Drug dose_4]])) -> 0 | BV2: =IFERROR(INDEX(Table2[ASP Price per Unit], MATCH(Table1[[#This Row],[Drug ROA_4]], Table2[Unique Drugs All ROA], 0)), "") ->  | BW2: =IFERROR(INDEX(Table2[Price per unit], MATCH(Table1[[#This Row],[Drug ROA_4]], Table2[Unique Drugs All ROA], 0)), "") ->  | BX2: =IFERROR(INDEX(Table2[Unit], MATCH(Table1[[#This Row],[Drug ROA_4]], Table2[Unique Drugs All ROA], 0)), "") ->  | BY2: =IFERROR(IF(Table1[[#This Row],[Unit_4]]="post-SC admin price", Table1[[#This Row],[Price per unit_4]], IF(Table1[[#This Row],[Unit_4]]="pre-SC admin price", Table1[[#This Row],[Price per unit_4]], Table1[[#This Row],[Dose with Mass Multiplier_4]]*Table1[[#This Row],[Drug '# of doses_4 (for unlimited regimens, '# per year)]]*Table1[[#This Row],[Price per unit_4]])), 0) -> 0 | BZ2: =IFERROR(IF(Table1[[#This Row],[Regimen type (0=unlimited, 1=time-limited)]]=1, Table1[[#This Row],[Drug Price per year_4]], IF(Table1[[#This Row],[Regimen type (0=unlimited, 1=time-limited)]]="1", Table1[[#This Row],[Drug Price per year_4]], IF(Table1[[#This Row],[Regimen type (0=unlimited, 1=time-limited)]]=0, Table1[[#This Row],[Drug Price per year_4]]/12, IF(Table1[[#This Row],[Regimen type (0=unlimited, 1=time-limited)]]="0", Table1[[#This Row],[Drug Price per year_4]]/12, "CHECK")))), 0) -> 0 | CA2: =IF(Table1[[#This Row],[ASP price per unit_4]]<>0, Table1[[#This Row],[Drug Price_4]]/1.06*0.06, 0) -> 0 | CB2: 0 | CC2: 0 | CD2: 0 | CE2: 0 | CF2: 0 | CG2: 0 | CH2: =IF(ISNUMBER(SEARCH("/m2", Table1[[#This Row],[Drug units_5]])), Table1[[#This Row],[Drug dose_5]]*1.7, IF(ISNUMBER(SEARCH("/kg", Table1[[#This Row],[Drug units_5]])), Table1[[#This Row],[Drug dose_5]]*70, Table1[[#This Row],[Drug dose_5]])) -> 0 | CI2: =IFERROR(INDEX(Table2[ASP Price per Unit], MATCH(Table1[[#This Row],[Drug ROA_5]], Table2[Unique Drugs All ROA], 0)), "") ->  | CJ2: =IFERROR(INDEX(Table2[Price per unit], MATCH(Table1[[#This Row],[Drug ROA_5]], Table2[Unique Drugs All ROA], 0)), "") ->  | CK2: =IFERROR(INDEX(Table2[Unit], MATCH(Table1[[#This Row],[Drug ROA_5]], Table2[Unique Drugs All ROA], 0)), "") ->  | CL2: =IFERROR(IF(Table1[[#This Row],[Unit_5]]="post-SC admin price", Table1[[#This Row],[Price per unit_5]], IF(Table1[[#This Row],[Unit_5]]="pre-SC admin price", Table1[[#This Row],[Price per unit_5]], Table1[[#This Row],[Dose with Mass Multiplier_5]]*Table1[[#This Row],[Drug '# of doses_5 (for unlimited regimens, '# per year)]]*Table1[[#This Row],[Price per unit_5]])), 0) -> 0 | CM2: =IFERROR(IF(Table1[[#This Row],[Regimen type (0=unlimited, 1=time-limited)]]=1, Table1[[#This Row],[Drug Price per year_5]], IF(Table1[[#This Row],[Regimen type (0=unlimited, 1=time-limited)]]="1", Table1[[#This Row],[Drug Price per year_5]], IF(Table1[[#This Row],[Regimen type (0=unlimited, 1=time-limited)]]=0, Table1[[#This Row],[Drug Price per year_5]]/12, IF(Table1[[#This Row],[Regimen type (0=unlimited, 1=time-limited)]]="0", Table1[[#This Row],[Drug Price per year_5]]/12, "CHECK")))), 0) -> 0 | CN2: =IF(Table1[[#This Row],[ASP price per unit_5]]<>0, Table1[[#This Row],[Drug Price_5]]/1.06*0.06, 0) -> 0 | CO2: 0 | CP2: 0 | CQ2: 0 | CR2: 0 | CS2: 0 | CT2: 0 | CU2: =IF(ISNUMBER(SEARCH("/m2", Table1[[#This Row],[Drug units_6]])), Table1[[#This Row],[Drug dose_6]]*1.7, IF(ISNUMBER(SEARCH("/kg", Table1[[#This Row],[Drug units_6]])), Table1[[#This Row],[Drug dose_6]]*70, Table1[[#This Row],[Drug dose_6]])) -> 0 | CV2: =IFERROR(INDEX(Table2[ASP Price per Unit], MATCH(Table1[[#This Row],[Drug ROA_6]], Table2[Unique Drugs All ROA], 0)), "") ->  | CW2: =IFERROR(INDEX(Table2[Price per unit], MATCH(Table1[[#This Row],[Drug ROA_6]], Table2[Unique Drugs All ROA], 0)), "") ->  | CX2: =IFERROR(INDEX(Table2[Unit], MATCH(Table1[[#This Row],[Drug ROA_6]], Table2[Unique Drugs All ROA], 0)), "") ->  | CY2: =IFERROR(IF(Table1[[#This Row],[Unit_6]]="post-SC admin price", Table1[[#This Row],[Price per unit_6]], IF(Table1[[#This Row],[Unit_6]]="pre-SC admin price", Table1[[#This Row],[Price per unit_6]], Table1[[#This Row],[Dose with Mass Multiplier_6]]*Table1[[#This Row],[Drug '# of doses_6 (for unlimited regimens, '# per year)]]*Table1[[#This Row],[Price per unit_6]])), 0) -> 0 | CZ2: =IFERROR(IF(Table1[[#This Row],[Regimen type (0=unlimited, 1=time-limited)]]=1, Table1[[#This Row],[Drug Price per year_6]], IF(Table1[[#This Row],[Regimen type (0=unlimited, 1=time-limited)]]="1", Table1[[#This Row],[Drug Price per year_6]], IF(Table1[[#This Row],[Regimen type (0=unlimited, 1=time-limited)]]=0, Table1[[#This Row],[Drug Price per year_6]]/12, IF(Table1[[#This Row],[Regimen type (0=unlimited, 1=time-limited)]]="0", Table1[[#This Row],[Drug Price per year_6]]/12, "CHECK")))), 0) -> 0 | DA2: =IF(Table1[[#This Row],[ASP price per unit_6]]<>0, Table1[[#This Row],[Drug Price_6]]/1.06*0.06, 0) -> 0 | DB2: 0 | DC2: 0 | DD2: 0 | DE2: 0 | DF2: 0 | DG2: 0 | DH2: =IF(ISNUMBER(SEARCH("/m2", Table1[[#This Row],[Drug units_7]])), Table1[[#This Row],[Drug dose_7]]*1.7, IF(ISNUMBER(SEARCH("/kg", Table1[[#This Row],[Drug units_7]])), Table1[[#This Row],[Drug dose_7]]*70, Table1[[#This Row],[Drug dose_7]])) -> 0 | DI2: =IFERROR(INDEX(Table2[ASP Price per Unit], MATCH(Table1[[#This Row],[Drug ROA_7]], Table2[Unique Drugs All ROA], 0)), "") ->  | DJ2: =IFERROR(INDEX(Table2[Price per unit], MATCH(Table1[[#This Row],[Drug ROA_7]], Table2[Unique Drugs All ROA], 0)), "") ->  | DK2: =IFERROR(INDEX(Table2[Unit], MATCH(Table1[[#This Row],[Drug ROA_7]], Table2[Unique Drugs All ROA], 0)), "") ->  | DL2: =IFERROR(IF(Table1[[#This Row],[Unit_7]]="post-SC admin price", Table1[[#This Row],[Price per unit_7]], IF(Table1[[#This Row],[Unit_7]]="pre-SC admin price", Table1[[#This Row],[Price per unit_7]], Table1[[#This Row],[Dose with Mass Multiplier_7]]*Table1[[#This Row],[Drug '# of doses_7 (for unlimited regimens, '# per year)]]*Table1[[#This Row],[Price per unit_7]])), 0) -> 0 | DM2: =IFERROR(IF(Table1[[#This Row],[Regimen type (0=unlimited, 1=time-limited)]]=1, Table1[[#This Row],[Drug Price per year_7]], IF(Table1[[#This Row],[Regimen type (0=unlimited, 1=time-limited)]]="1", Table1[[#This Row],[Drug Price per year_7]], IF(Table1[[#This Row],[Regimen type (0=unlimited, 1=time-limited)]]=0, Table1[[#This Row],[Drug Price per year_7]]/12, IF(Table1[[#This Row],[Regimen type (0=unlimited, 1=time-limited)]]="0", Table1[[#This Row],[Drug Price per year_7]]/12, "CHECK")))), 0) -> 0 | DN2: =IF(Table1[[#This Row],[ASP price per unit_7]]<>0, Table1[[#This Row],[Drug Price_7]]/1.06*0.06, 0) -> 0 | DO2: 0 | DP2: 0 | DQ2: 0 | DR2: 0 | DS2: 0 | DT2: 0 | DU2: =IF(ISNUMBER(SEARCH("/m2", Table1[[#This Row],[Drug units_8]])), Table1[[#This Row],[Drug dose_8]]*1.7, IF(ISNUMBER(SEARCH("/kg", Table1[[#This Row],[Drug units_8]])), Table1[[#This Row],[Drug dose_8]]*70, Table1[[#This Row],[Drug dose_8]])) -> 0 | DV2: =IFERROR(INDEX(Table2[ASP Price per Unit], MATCH(Table1[[#This Row],[Drug ROA_8]], Table2[Unique Drugs All ROA], 0)), "") ->  | DW2: =IFERROR(INDEX(Table2[Price per unit], MATCH(Table1[[#This Row],[Drug ROA_8]], Table2[Unique Drugs All ROA], 0)), "") ->  | DX2: =IFERROR(INDEX(Table2[Unit], MATCH(Table1[[#This Row],[Drug ROA_8]], Table2[Unique Drugs All ROA], 0)), "") ->  | DY2: =IFERROR(IF(Table1[[#This Row],[Unit_8]]="post-SC admin price", Table1[[#This Row],[Price per unit_8]], IF(Table1[[#This Row],[Unit_8]]="pre-SC admin price", Table1[[#This Row],[Price per unit_8]], Table1[[#This Row],[Dose with Mass Multiplier_8]]*Table1[[#This Row],[Drug '# of doses_8 (for unlimited regimens, '# per year)]]*Table1[[#This Row],[Price per unit_8]])), 0) -> 0 | DZ2: =IFERROR(IF(Table1[[#This Row],[Regimen type (0=unlimited, 1=time-limited)]]=1, Table1[[#This Row],[Drug Price per year_8]], IF(Table1[[#This Row],[Regimen type (0=unlimited, 1=time-limited)]]="1", Table1[[#This Row],[Drug Price per year_8]], IF(Table1[[#This Row],[Regimen type (0=unlimited, 1=time-limited)]]=0, Table1[[#This Row],[Drug Price per year_8]]/12, IF(Table1[[#This Row],[Regimen type (0=unlimited, 1=time-limited)]]="0", Table1[[#This Row],[Drug Price per year_8]]/12, "CHECK")))), 0) -> 0 | EA2: =IF(Table1[[#This Row],[ASP price per unit_8]]<>0, Table1[[#This Row],[Drug Price_8]]/1.06*0.06, 0) -> 0 | EB2: 0 | EC2: 0 | ED2: 0 | EE2: 0 | EF2: 0 | EG2: 0 | EH2: =IF(ISNUMBER(SEARCH("/m2", Table1[[#This Row],[Drug units_9]])), Table1[[#This Row],[Drug dose_9]]*1.7, IF(ISNUMBER(SEARCH("/kg", Table1[[#This Row],[Drug units_9]])), Table1[[#This Row],[Drug dose_9]]*70, Table1[[#This Row],[Drug dose_9]])) -> 0 | EI2: =IFERROR(INDEX(Table2[ASP Price per Unit], MATCH(Table1[[#This Row],[Drug ROA_9]], Table2[Unique Drugs All ROA], 0)), "") ->  | EJ2: =IFERROR(INDEX(Table2[Price per unit], MATCH(Table1[[#This Row],[Drug ROA_9]], Table2[Unique Drugs All ROA], 0)), "") ->  | EK2: =IFERROR(INDEX(Table2[Unit], MATCH(Table1[[#This Row],[Drug ROA_9]], Table2[Unique Drugs All ROA], 0)), "") ->  | EL2: =IFERROR(IF(Table1[[#This Row],[Unit_9]]="post-SC admin price", Table1[[#This Row],[Price per unit_9]], IF(Table1[[#This Row],[Unit_9]]="pre-SC admin price", Table1[[#This Row],[Price per unit_9]], Table1[[#This Row],[Dose with Mass Multiplier_9]]*Table1[[#This Row],[Drug '# of doses_9 (for unlimited regimens, '# per year)]]*Table1[[#This Row],[Price per unit_9]])), 0) -> 0 | EM2: =IFERROR(IF(Table1[[#This Row],[Regimen type (0=unlimited, 1=time-limited)]]=1, Table1[[#This Row],[Drug Price per year_9]], IF(Table1[[#This Row],[Regimen type (0=unlimited, 1=time-limited)]]="1", Table1[[#This Row],[Drug Price per year_9]], IF(Table1[[#This Row],[Regimen type (0=unlimited, 1=time-limited)]]=0, Table1[[#This Row],[Drug Price per year_9]]/12, IF(Table1[[#This Row],[Regimen type (0=unlimited, 1=time-limited)]]="0", Table1[[#This Row],[Drug Price per year_9]]/12, "CHECK")))), 0) -> 0 | EN2: =IF(Table1[[#This Row],[ASP price per unit_9]]<>0, Table1[[#This Row],[Drug Price_9]]/1.06*0.06, 0) -> 0 | EO2: 0 | EP2: 0 | EQ2: 0 | ER2: 0 | ES2: 0 | ET2: 0 | EU2: =IF(ISNUMBER(SEARCH("/m2", Table1[[#This Row],[Drug units_10]])), Table1[[#This Row],[Drug dose_10]]*1.7, IF(ISNUMBER(SEARCH("/kg", Table1[[#This Row],[Drug units_10]])), Table1[[#This Row],[Drug dose_10]]*70, Table1[[#This Row],[Drug dose_10]])) -> 0 | EV2: =IFERROR(INDEX(Table2[ASP Price per Unit], MATCH(Table1[[#This Row],[Drug ROA_10]], Table2[Unique Drugs All ROA], 0)), "") ->  | EW2: =IFERROR(INDEX(Table2[Price per unit], MATCH(Table1[[#This Row],[Drug ROA_10]], Table2[Unique Drugs All ROA], 0)), "") ->  | EX2: =IFERROR(INDEX(Table2[Unit], MATCH(Table1[[#This Row],[Drug ROA_10]], Table2[Unique Drugs All ROA], 0)), "") ->  | EY2: =IFERROR(IF(Table1[[#This Row],[Unit_10]]="post-SC admin price", Table1[[#This Row],[Price per unit_10]], IF(Table1[[#This Row],[Unit_10]]="pre-SC admin price", Table1[[#This Row],[Price per unit_10]], Table1[[#This Row],[Dose with Mass Multiplier_10]]*Table1[[#This Row],[Drug '# of doses_10 (for unlimited regimens, '# per year)]]*Table1[[#This Row],[Price per unit_10]])), 0) -> 0 | EZ2: =IFERROR(IF(Table1[[#This Row],[Regimen type (0=unlimited, 1=time-limited)]]=1, Table1[[#This Row],[Drug Price per year_10]], IF(Table1[[#This Row],[Regimen type (0=unlimited, 1=time-limited)]]="1", Table1[[#This Row],[Drug Price per year_10]], IF(Table1[[#This Row],[Regimen type (0=unlimited, 1=time-limited)]]=0, Table1[[#This Row],[Drug Price per year_10]]/12, IF(Table1[[#This Row],[Regimen type (0=unlimited, 1=time-limited)]]="0", Table1[[#This Row],[Drug Price per year_10]]/12, "CHECK")))), 0) -> 0 | FA2: =IF(Table1[[#This Row],[ASP price per unit_10]]<>0, Table1[[#This Row],[Drug Price_10]]/1.06*0.06, 0) -> 0 | FB2: 0 | FC2: 0 | FD2: 0 | FE2: 0 | FF2: 0 | FG2: 0 | FH2: =IF(ISNUMBER(SEARCH("/m2", Table1[[#This Row],[Drug units_11]])), Table1[[#This Row],[Drug dose_11]]*1.7, IF(ISNUMBER(SEARCH("/kg", Table1[[#This Row],[Drug units_11]])), Table1[[#This Row],[Drug dose_11]]*70, Table1[[#This Row],[Drug dose_11]])) -> 0 | FI2: =IFERROR(INDEX(Table2[ASP Price per Unit], MATCH(Table1[[#This Row],[Drug ROA_11]], Table2[Unique Drugs All ROA], 0)), "") ->  | FJ2: =IFERROR(INDEX(Table2[Price per unit], MATCH(Table1[[#This Row],[Drug ROA_11]], Table2[Unique Drugs All ROA], 0)), "") ->  | FK2: =IFERROR(INDEX(Table2[Unit], MATCH(Table1[[#This Row],[Drug ROA_11]], Table2[Unique Drugs All ROA], 0)), "") ->  | FL2: =IFERROR(IF(Table1[[#This Row],[Unit_11]]="post-SC admin price", Table1[[#This Row],[Price per unit_11]], IF(Table1[[#This Row],[Unit_11]]="pre-SC admin price", Table1[[#This Row],[Price per unit_11]], Table1[[#This Row],[Dose with Mass Multiplier_11]]*Table1[[#This Row],[Drug '# of doses_11 (for unlimited regimens, '# per year)]]*Table1[[#This Row],[Price per unit_11]])), 0) -> 0 | FM2: =IFERROR(IF(Table1[[#This Row],[Regimen type (0=unlimited, 1=time-limited)]]=1, Table1[[#This Row],[Drug Price per year_11]], IF(Table1[[#This Row],[Regimen type (0=unlimited, 1=time-limited)]]="1", Table1[[#This Row],[Drug Price per year_11]], IF(Table1[[#This Row],[Regimen type (0=unlimited, 1=time-limited)]]=0, Table1[[#This Row],[Drug Price per year_11]]/12, IF(Table1[[#This Row],[Regimen type (0=unlimited, 1=time-limited)]]="0", Table1[[#This Row],[Drug Price per year_11]]/12, "CHECK")))), 0) -> 0 | FN2: =IF(Table1[[#This Row],[ASP price per unit_11]]<>0, Table1[[#This Row],[Drug Price_11]]/1.06*0.06, 0) -> 0 | FO2: =Table1[[#This Row],[Drug Price_1]] + Table1[[#This Row],[Drug Price_2]] + Table1[[#This Row],[Drug Price_3]]+ Table1[[#This Row],[Drug Price_4]]+ Table1[[#This Row],[Drug Price_5]]+ Table1[[#This Row],[Drug Price_6]]+ Table1[[#This Row],[Drug Price_7]]+ Table1[[#This Row],[Drug Price_8]]+ Table1[[#This Row],[Drug Price_9]]+ Table1[[#This Row],[Drug Price_10]]+ Table1[[#This Row],[Drug Price_11]] -> 23784.48 | FP2: 0 | FQ2: 0 | FR2: 0 | FS2: 0 | FT2: =IF(Table1[[#This Row],[Emetic Risk (0=min, 1=low, 2=inter, 3=high)]]=0, SC_Admin_SpecialCases!$F$12*Table1[[#This Row],['# of supportive doses]], IF(Table1[[#This Row],[Emetic Risk (0=min, 1=low, 2=inter, 3=high)]]=1, SC_Admin_SpecialCases!$F$14*Table1[[#This Row],['# of supportive doses]], IF(Table1[[#This Row],[Emetic Risk (0=min, 1=low, 2=inter, 3=high)]]=2, SC_Admin_SpecialCases!$F$16*Table1[[#This Row],['# of supportive doses]], IF(Table1[[#This Row],[Emetic Risk (0=min, 1=low, 2=inter, 3=high)]]=3, SC_Admin_SpecialCases!$F$18*Table1[[#This Row],['# of supportive doses]], "CHECK")))) -> 0 | FU2: =IF(Table1[[#This Row],[Emetic Risk (0=min, 1=low, 2=inter, 3=high)]]=0, SC_Admin_SpecialCases!$F$13*Table1[[#This Row],['# of supportive doses]], IF(Table1[[#This Row],[Emetic Risk (0=min, 1=low, 2=inter, 3=high)]]=1, SC_Admin_SpecialCases!$F$15*Table1[[#This Row],['# of supportive doses]], IF(Table1[[#This Row],[Emetic Risk (0=min, 1=low, 2=inter, 3=high)]]=2, SC_Admin_SpecialCases!$F$17*Table1[[#This Row],['# of supportive doses]], IF(Table1[[#This Row],[Emetic Risk (0=min, 1=low, 2=inter, 3=high)]]=3, SC_Admin_SpecialCases!$F$19*Table1[[#This Row],['# of supportive doses]], "CHECK")))) -> 0 | FV2: =IF(Table1[[#This Row],[Growth Factor (0=low, 1=inter, 2=high)]]=0, SC_Admin_SpecialCases!$F$4*Table1[[#This Row],['# of GCSF doses]], IF(Table1[[#This Row],[Growth Factor (0=low, 1=inter, 2=high)]]=1, SC_Admin_SpecialCases!$F$6*Table1[[#This Row],['# of GCSF doses]], IF(Table1[[#This Row],[Growth Factor (0=low, 1=inter, 2=high)]]=2, SC_Admin_SpecialCases!$F$8*Table1[[#This Row],['# of GCSF doses]], "CHECK"))) -> 0 | FW2: =IF(Table1[[#This Row],[Growth Factor (0=low, 1=inter, 2=high)]]=0, SC_Admin_SpecialCases!$F$5*Table1[[#This Row],['# of GCSF doses]], IF(Table1[[#This Row],[Growth Factor (0=low, 1=inter, 2=high)]]=1, SC_Admin_SpecialCases!$F$7*Table1[[#This Row],['# of GCSF doses]], IF(Table1[[#This Row],[Growth Factor (0=low, 1=inter, 2=high)]]=2, SC_Admin_SpecialCases!$F$9*Table1[[#This Row],['# of GCSF doses]], "CHECK"))) -> 0 | FX2: =IF(Table1[[#This Row],[Regimen type (0=unlimited, 1=time-limited)]]=0, Table1[[#This Row],[Supportive Care, low margin]]/12, IF(Table1[[#This Row],[Regimen type (0=unlimited, 1=time-limited)]]="0", Table1[[#This Row],[Supportive Care, low margin]]/12, IF(Table1[[#This Row],[Regimen type (0=unlimited, 1=time-limited)]]=1, Table1[[#This Row],[Supportive Care, low margin]], IF(Table1[[#This Row],[Regimen type (0=unlimited, 1=time-limited)]]="1", Table1[[#This Row],[Supportive Care, low margin]], "CHECK")))) -> 0 | FY2: =IF(Table1[[#This Row],[Regimen type (0=unlimited, 1=time-limited)]]=0, Table1[[#This Row],[Supportive Care, high margin]]/12, IF(Table1[[#This Row],[Regimen type (0=unlimited, 1=time-limited)]]="0", Table1[[#This Row],[Supportive Care, high margin]]/12, IF(Table1[[#This Row],[Regimen type (0=unlimited, 1=time-limited)]]=1, Table1[[#This Row],[Supportive Care, high margin]], IF(Table1[[#This Row],[Regimen type (0=unlimited, 1=time-limited)]]="1", Table1[[#This Row],[Supportive Care, high margin]], "CHECK")))) -> 0 | FZ2: =IF(Table1[[#This Row],[Regimen type (0=unlimited, 1=time-limited)]]=0, Table1[[#This Row],[GF, low margin]]/12, IF(Table1[[#This Row],[Regimen type (0=unlimited, 1=time-limited)]]="0", Table1[[#This Row],[GF, low margin]]/12, IF(Table1[[#This Row],[Regimen type (0=unlimited, 1=time-limited)]]=1, Table1[[#This Row],[GF, low margin]], IF(Table1[[#This Row],[Regimen type (0=unlimited, 1=time-limited)]]="1", Table1[[#This Row],[GF, low margin]], "CHECK")))) -> 0 | GA2: =IF(Table1[[#This Row],[Regimen type (0=unlimited, 1=time-limited)]]=0, Table1[[#This Row],[GF, high margin]]/12, IF(Table1[[#This Row],[Regimen type (0=unlimited, 1=time-limited)]]="0", Table1[[#This Row],[GF, high margin]]/12, IF(Table1[[#This Row],[Regimen type (0=unlimited, 1=time-limited)]]=1, Table1[[#This Row],[GF, high margin]], IF(Table1[[#This Row],[Regimen type (0=unlimited, 1=time-limited)]]="1", Table1[[#This Row],[GF, high margin]], "CHECK")))) -> 0 | GB2: =Table1[[#This Row],[Supportive Care, low margin_adj]]/1.06*0.06 -> 0 | GC2: =Table1[[#This Row],[Supportive Care, high margin_adj]]/1.06*0.06 -> 0 | GD2: =Table1[[#This Row],[GF, low margin_adj]]/1.06*0.06 -> 0 | GE2: =Table1[[#This Row],[GF, high margin_adj]]/1.06*0.06 -> 0 | GF2: =IFERROR(IF(Table1[[#This Row],[Regimen type (0=unlimited, 1=time-limited)]]=0, Table1[[#This Row],[Drug '# of doses_1 (for unlimited regimens, '# per year)]]/12, IF(Table1[[#This Row],[Regimen type (0=unlimited, 1=time-limited)]]="0", Table1[[#This Row],[Drug '# of doses_1 (for unlimited regimens, '# per year)]]/12, IF(Table1[[#This Row],[Regimen type (0=unlimited, 1=time-limited)]]=1, Table1[[#This Row],[Drug '# of doses_1 (for unlimited regimens, '# per year)]], IF(Table1[[#This Row],[Regimen type (0=unlimited, 1=time-limited)]]="1", Table1[[#This Row],[Drug '# of doses_1 (for unlimited regimens, '# per year)]], "CHECK"))))*INDEX(Table3[Total Admin Cost], MATCH(Table1[[#This Row],[Drug ROA_1]], Table3[Drug ROA Admin], 0)), 0) -> 904.44 | GG2: =IFERROR(IF(Table1[[#This Row],[Regimen type (0=unlimited, 1=time-limited)]]=0, Table1[[#This Row],[Drug '# of doses_2 (for unlimited regimens, '# per year)]]/12, IF(Table1[[#This Row],[Regimen type (0=unlimited, 1=time-limited)]]="0", Table1[[#This Row],[Drug '# of doses_2 (for unlimited regimens, '# per year)]]/12, IF(Table1[[#This Row],[Regimen type (0=unlimited, 1=time-limited)]]=1, Table1[[#This Row],[Drug '# of doses_2 (for unlimited regimens, '# per year)]], IF(Table1[[#This Row],[Regimen type (0=unlimited, 1=time-limited)]]="1", Table1[[#This Row],[Drug '# of doses_2 (for unlimited regimens, '# per year)]], "CHECK"))))*INDEX(Table3[Total Admin Cost], MATCH(Table1[[#This Row],[Drug ROA_2]], Table3[Drug ROA Admin], 0)), 0) -> 0 | GH2: =IFERROR(IF(Table1[[#This Row],[Regimen type (0=unlimited, 1=time-limited)]]=0, Table1[[#This Row],[Drug '# of doses_3 (for unlimited regimens, '# per year)]]/12, IF(Table1[[#This Row],[Regimen type (0=unlimited, 1=time-limited)]]="0", Table1[[#This Row],[Drug '# of doses_3 (for unlimited regimens, '# per year)]]/12, IF(Table1[[#This Row],[Regimen type (0=unlimited, 1=time-limited)]]=1, Table1[[#This Row],[Drug '# of doses_3 (for unlimited regimens, '# per year)]], IF(Table1[[#This Row],[Regimen type (0=unlimited, 1=time-limited)]]="1", Table1[[#This Row],[Drug '# of doses_3 (for unlimited regimens, '# per year)]], "CHECK"))))*INDEX(Table3[Total Admin Cost], MATCH(Table1[[#This Row],[Drug ROA_3]], Table3[Drug ROA Admin], 0)), 0) -> 0 | GI2: =IFERROR(IF(Table1[[#This Row],[Regimen type (0=unlimited, 1=time-limited)]]=0, Table1[[#This Row],[Drug '# of doses_4 (for unlimited regimens, '# per year)]]/12, IF(Table1[[#This Row],[Regimen type (0=unlimited, 1=time-limited)]]="0", Table1[[#This Row],[Drug '# of doses_4 (for unlimited regimens, '# per year)]]/12, IF(Table1[[#This Row],[Regimen type (0=unlimited, 1=time-limited)]]=1, Table1[[#This Row],[Drug '# of doses_4 (for unlimited regimens, '# per year)]], IF(Table1[[#This Row],[Regimen type (0=unlimited, 1=time-limited)]]="1", Table1[[#This Row],[Drug '# of doses_4 (for unlimited regimens, '# per year)]], "CHECK"))))*INDEX(Table3[Total Admin Cost], MATCH(Table1[[#This Row],[Drug ROA_4]], Table3[Drug ROA Admin], 0)), 0) -> 0 | GJ2: =IFERROR(IF(Table1[[#This Row],[Regimen type (0=unlimited, 1=time-limited)]]=0, Table1[[#This Row],[Drug '# of doses_5 (for unlimited regimens, '# per year)]]/12, IF(Table1[[#This Row],[Regimen type (0=unlimited, 1=time-limited)]]="0", Table1[[#This Row],[Drug '# of doses_5 (for unlimited regimens, '# per year)]]/12, IF(Table1[[#This Row],[Regimen type (0=unlimited, 1=time-limited)]]=1, Table1[[#This Row],[Drug '# of doses_5 (for unlimited regimens, '# per year)]], IF(Table1[[#This Row],[Regimen type (0=unlimited, 1=time-limited)]]="1", Table1[[#This Row],[Drug '# of doses_5 (for unlimited regimens, '# per year)]], "CHECK"))))*INDEX(Table3[Total Admin Cost], MATCH(Table1[[#This Row],[Drug ROA_5]], Table3[Drug ROA Admin], 0)), 0) -> 0 | GK2: =IFERROR(IF(Table1[[#This Row],[Regimen type (0=unlimited, 1=time-limited)]]=0, Table1[[#This Row],[Drug '# of doses_6 (for unlimited regimens, '# per year)]]/12, IF(Table1[[#This Row],[Regimen type (0=unlimited, 1=time-limited)]]="0", Table1[[#This Row],[Drug '# of doses_6 (for unlimited regimens, '# per year)]]/12, IF(Table1[[#This Row],[Regimen type (0=unlimited, 1=time-limited)]]=1, Table1[[#This Row],[Drug '# of doses_6 (for unlimited regimens, '# per year)]], IF(Table1[[#This Row],[Regimen type (0=unlimited, 1=time-limited)]]="1", Table1[[#This Row],[Drug '# of doses_6 (for unlimited regimens, '# per year)]], "CHECK"))))*INDEX(Table3[Total Admin Cost], MATCH(Table1[[#This Row],[Drug ROA_6]], Table3[Drug ROA Admin], 0)), 0) -> 0 | GL2: =IFERROR(IF(Table1[[#This Row],[Regimen type (0=unlimited, 1=time-limited)]]=0, Table1[[#This Row],[Drug '# of doses_7 (for unlimited regimens, '# per year)]]/12, IF(Table1[[#This Row],[Regimen type (0=unlimited, 1=time-limited)]]="0", Table1[[#This Row],[Drug '# of doses_7 (for unlimited regimens, '# per year)]]/12, IF(Table1[[#This Row],[Regimen type (0=unlimited, 1=time-limited)]]=1, Table1[[#This Row],[Drug '# of doses_7 (for unlimited regimens, '# per year)]], IF(Table1[[#This Row],[Regimen type (0=unlimited, 1=time-limited)]]="1", Table1[[#This Row],[Drug '# of doses_7 (for unlimited regimens, '# per year)]], "CHECK"))))*INDEX(Table3[Total Admin Cost], MATCH(Table1[[#This Row],[Drug ROA_7]], Table3[Drug ROA Admin], 0)), 0) -> 0 | GM2: =IFERROR(IF(Table1[[#This Row],[Regimen type (0=unlimited, 1=time-limited)]]=0, Table1[[#This Row],[Drug '# of doses_8 (for unlimited regimens, '# per year)]]/12, IF(Table1[[#This Row],[Regimen type (0=unlimited, 1=time-limited)]]="0", Table1[[#This Row],[Drug '# of doses_8 (for unlimited regimens, '# per year)]]/12, IF(Table1[[#This Row],[Regimen type (0=unlimited, 1=time-limited)]]=1, Table1[[#This Row],[Drug '# of doses_8 (for unlimited regimens, '# per year)]], IF(Table1[[#This Row],[Regimen type (0=unlimited, 1=time-limited)]]="1", Table1[[#This Row],[Drug '# of doses_8 (for unlimited regimens, '# per year)]], "CHECK"))))*INDEX(Table3[Total Admin Cost], MATCH(Table1[[#This Row],[Drug ROA_8]], Table3[Drug ROA Admin], 0)), 0) -> 0 | GN2: =IFERROR(IF(Table1[[#This Row],[Regimen type (0=unlimited, 1=time-limited)]]=0, Table1[[#This Row],[Drug '# of doses_9 (for unlimited regimens, '# per year)]]/12, IF(Table1[[#This Row],[Regimen type (0=unlimited, 1=time-limited)]]="0", Table1[[#This Row],[Drug '# of doses_9 (for unlimited regimens, '# per year)]]/12, IF(Table1[[#This Row],[Regimen type (0=unlimited, 1=time-limited)]]=1, Table1[[#This Row],[Drug '# of doses_9 (for unlimited regimens, '# per year)]], IF(Table1[[#This Row],[Regimen type (0=unlimited, 1=time-limited)]]="1", Table1[[#This Row],[Drug '# of doses_9 (for unlimited regimens, '# per year)]], "CHECK"))))*INDEX(Table3[Total Admin Cost], MATCH(Table1[[#This Row],[Drug ROA_9]], Table3[Drug ROA Admin], 0)), 0) -> 0 | GO2: =IFERROR(IF(Table1[[#This Row],[Regimen type (0=unlimited, 1=time-limited)]]=0, Table1[[#This Row],[Drug '# of doses_10 (for unlimited regimens, '# per year)]]/12, IF(Table1[[#This Row],[Regimen type (0=unlimited, 1=time-limited)]]="0", Table1[[#This Row],[Drug '# of doses_10 (for unlimited regimens, '# per year)]]/12, IF(Table1[[#This Row],[Regimen type (0=unlimited, 1=time-limited)]]=1, Table1[[#This Row],[Drug '# of doses_10 (for unlimited regimens, '# per year)]], IF(Table1[[#This Row],[Regimen type (0=unlimited, 1=time-limited)]]="1", Table1[[#This Row],[Drug '# of doses_10 (for unlimited regimens, '# per year)]], "CHECK"))))*INDEX(Table3[Total Admin Cost], MATCH(Table1[[#This Row],[Drug ROA_10]], Table3[Drug ROA Admin], 0)), 0) -> 0 | GP2: =IFERROR(IF(Table1[[#This Row],[Regimen type (0=unlimited, 1=time-limited)]]=0, Table1[[#This Row],[Drug '# of doses_11 (for unlimited regimens, '# per year)]]/12, IF(Table1[[#This Row],[Regimen type (0=unlimited, 1=time-limited)]]="0", Table1[[#This Row],[Drug '# of doses_11 (for unlimited regimens, '# per year)]]/12, IF(Table1[[#This Row],[Regimen type (0=unlimited, 1=time-limited)]]=1, Table1[[#This Row],[Drug '# of doses_11 (for unlimited regimens, '# per year)]], IF(Table1[[#This Row],[Regimen type (0=unlimited, 1=time-limited)]]="1", Table1[[#This Row],[Drug '# of doses_11 (for unlimited regimens, '# per year)]], "CHECK"))))*INDEX(Table3[Total Admin Cost], MATCH(Table1[[#This Row],[Drug ROA_11]], Table3[Drug ROA Admin], 0)), 0) -> 0 | GQ2: =SUM(Table1[[#This Row],[Admin Drug 1]:[Admin Drug 11]]) -> 904.44
A3: Breast | B3: Breast | C3: 2.2016 | D3: Systemic disease or de novo stage IV | F3: 14137 | G3: Zoledronic acid | H3: 4 | I3: 4 | J3: 5 | K3: 5 | L3: 3 | M3: =SUM(Table1[[#This Row],[Efficacy]:[Safety]]) -> 8 | N3: =SUM(Table1[[#This Row],[Efficacy]:[Consistency]]) -> 18 | O3: 0 | P3: 0 | Q3: 0 | R3: 2A | S3: First-line | T3: =IF(Table1[[#This Row],[Line of therapy]]="first-line", "0", IF(Table1[[#This Row],[Line of therapy]]="second-line or subsequent", "1", IF(Table1[[#This Row],[Line of therapy]]="second-line", "1", IF(Table1[[#This Row],[Line of therapy]]="third-line", "1", IF(Table1[[#This Row],[Line of therapy]]="fourth-line", "1", IF(Table1[[#This Row],[Line of therapy]]="fifth-line", "1", IF(Table1[[#This Row],[Line of therapy]]="sixth-line", "1", IF(Table1[[#This Row],[Line of therapy]]="persistent disease or progression", "1", IF(Table1[[#This Row],[Line of therapy]]="relapsed/refractory", "1", IF(Table1[[#This Row],[Line of therapy]]="subsequent", "1", IF(Table1[[#This Row],[Line of therapy]]="maintenance", "2", ""))))))))))) -> 0 | U3: 1 | V3: 0 | W3: =Table1[[#This Row],[Total regimen price]]+Table1[[#This Row],[Admin Total]] -> 189.414 | X3: =Table1[[#This Row],[Total regimen price]]+Table1[[#This Row],[Supportive Care, high margin_adj]]+Table1[[#This Row],[GF, high margin_adj]]+Table1[[#This Row],[Admin Total]] -> 189.414 | Y3: =Table1[[#This Row],[Total regimen price]]+Table1[[#This Row],[Supportive Care, low margin_adj]]+Table1[[#This Row],[GF, low margin_adj]]+Table1[[#This Row],[Admin Total]] -> 189.414 | Z3: =Table1[[#This Row],[Physician margin_1]]+Table1[[#This Row],[Physician margin_2]]+Table1[[#This Row],[Physician margin_3]]+Table1[[#This Row],[Physician margin_4]]+Table1[[#This Row],[Physician margin_5]]+Table1[[#This Row],[Physician margin_6]]+Table1[[#This Row],[Physician margin_7]]+Table1[[#This Row],[Physician margin_8]]+Table1[[#This Row],[Physician margin_9]]+Table1[[#This Row],[Physician margin_10]]+Table1[[#This Row],[Physician margin_11]]+Table1[[#This Row],[Physician margin supportive Care, high margin_adj]]+Table1[[#This Row],[Physician margin GF, high margin_adj]] -> 2.81909434 | AA3: =Table1[[#This Row],[Physician margin_1]]+Table1[[#This Row],[Physician margin_2]]+Table1[[#This Row],[Physician margin_3]]+Table1[[#This Row],[Physician margin_4]]+Table1[[#This Row],[Physician margin_5]]+Table1[[#This Row],[Physician margin_6]]+Table1[[#This Row],[Physician margin_7]]+Table1[[#This Row],[Physician margin_8]]+Table1[[#This Row],[Physician margin_9]]+Table1[[#This Row],[Physician margin_10]]+Table1[[#This Row],[Physician margin_11]]+Table1[[#This Row],[Physician margin supportive Care, low margin_adj]]+Table1[[#This Row],[Physician margin GF, low margin_adj]] -> 2.81909434 | AB3: Zoledronic Acid | AC3: IV | AD3: Zoledronic Acid IV | AE3: 4 | AF3: mg | AG3: 1 | AH3: =IF(ISNUMBER(SEARCH("/m2", Table1[[#This Row],[Drug units_1]])), Table1[[#This Row],[Drug dose_1]]*1.7, IF(ISNUMBER(SEARCH("/kg", Table1[[#This Row],[Drug units_1]])), Table1[[#This Row],[Drug dose_1]]*70, Table1[[#This Row],[Drug dose_1]])) -> 4 | AI3: =IFERROR(INDEX(Table2[ASP Price per Unit], MATCH(Table1[[#This Row],[Drug ROA_1]], Table2[Unique Drugs All ROA], 0)), "") -> 12.451 | AJ3: =IFERROR(INDEX(Table2[Price per unit], MATCH(Table1[[#This Row],[Drug ROA_1]], Table2[Unique Drugs All ROA], 0)), "") -> 12.451 | AK3: =IFERROR(INDEX(Table2[Unit], MATCH(Table1[[#This Row],[Drug ROA_1]], Table2[Unique Drugs All ROA], 0)), "") -> MG | AL3: =IFERROR(IF(Table1[[#This Row],[Unit_1]]="post-SC admin price", Table1[[#This Row],[Price per unit_1]], IF(Table1[[#This Row],[Unit_1]]="pre-SC admin price", Table1[[#This Row],[Price per unit_1]], Table1[[#This Row],[Dose with Mass Multiplier_1]]*Table1[[#This Row],[Drug '# of doses_1 (for unlimited regimens, '# per year)]]*Table1[[#This Row],[Price per unit_1]])), 0) -> 49.804 | AM3: =IFERROR(IF(Table1[[#This Row],[Regimen type (0=unlimited, 1=time-limited)]]=1, Table1[[#This Row],[Drug Price per year_1]], IF(Table1[[#This Row],[Regimen type (0=unlimited, 1=time-limited)]]="1", Table1[[#This Row],[Drug Price per year_1]], IF(Table1[[#This Row],[Regimen type (0=unlimited, 1=time-limited)]]=0, Table1[[#This Row],[Drug Price per year_1]]/12, IF(Table1[[#This Row],[Regimen type (0=unlimited, 1=time-limited)]]="0", Table1[[#This Row],[Drug Price per year_1]]/12, "CHECK")))), 0) -> 49.804 | AN3: =IF(Table1[[#This Row],[ASP price per unit_1]]<>0, Table1[[#This Row],[Drug Price_1]]/1.06*0.06, 0) -> 2.81909434 | AO3: 0 | AP3: 0 | AQ3: 0 | AR3: 0 | AS3: 0 | AT3: 0 | AU3: =IF(ISNUMBER(SEARCH("/m2", Table1[[#This Row],[Drug units_2]])), Table1[[#This Row],[Drug dose_2]]*1.7, IF(ISNUMBER(SEARCH("/kg", Table1[[#This Row],[Drug units_2]])), Table1[[#This Row],[Drug dose_2]]*70, Table1[[#This Row],[Drug dose_2]])) -> 0 | AV3: =IFERROR(INDEX(Table2[ASP Price per Unit], MATCH(Table1[[#This Row],[Drug ROA_2]], Table2[Unique Drugs All ROA], 0)), "") ->  | AW3: =IFERROR(INDEX(Table2[Price per unit], MATCH(Table1[[#This Row],[Drug ROA_2]], Table2[Unique Drugs All ROA], 0)), "") ->  | AX3: =IFERROR(INDEX(Table2[Unit], MATCH(Table1[[#This Row],[Drug ROA_2]], Table2[Unique Drugs All ROA], 0)), "") ->  | AY3: =IFERROR(IF(Table1[[#This Row],[Unit_2]]="post-SC admin price", Table1[[#This Row],[Price per unit_2]], IF(Table1[[#This Row],[Unit_2]]="pre-SC admin price", Table1[[#This Row],[Price per unit_2]], Table1[[#This Row],[Dose with Mass Multiplier_2]]*Table1[[#This Row],[Drug '# of doses_2 (for unlimited regimens, '# per year)]]*Table1[[#This Row],[Price per unit_2]])), 0) -> 0 | AZ3: =IFERROR(IF(Table1[[#This Row],[Regimen type (0=unlimited, 1=time-limited)]]=1, Table1[[#This Row],[Drug Price per year_2]], IF(Table1[[#This Row],[Regimen type (0=unlimited, 1=time-limited)]]="1", Table1[[#This Row],[Drug Price per year_2]], IF(Table1[[#This Row],[Regimen type (0=unlimited, 1=time-limited)]]=0, Table1[[#This Row],[Drug Price per year_2]]/12, IF(Table1[[#This Row],[Regimen type (0=unlimited, 1=time-limited)]]="0", Table1[[#This Row],[Drug Price per year_2]]/12, "CHECK")))), 0) -> 0 | BA3: =IF(Table1[[#This Row],[ASP price per unit_2]]<>0, Table1[[#This Row],[Drug Price_2]]/1.06*0.06, 0) -> 0 | BB3: 0 | BC3: 0 | BD3: 0 | BE3: 0 | BF3: 0 | BG3: 0 | BH3: =IF(ISNUMBER(SEARCH("/m2", Table1[[#This Row],[Drug units_3]])), Table1[[#This Row],[Drug dose_3]]*1.7, IF(ISNUMBER(SEARCH("/kg", Table1[[#This Row],[Drug units_3]])), Table1[[#This Row],[Drug dose_3]]*70, Table1[[#This Row],[Drug dose_3]])) -> 0 | BI3: =IFERROR(INDEX(Table2[ASP Price per Unit], MATCH(Table1[[#This Row],[Drug ROA_3]], Table2[Unique Drugs All ROA], 0)), "") ->  | BJ3: =IFERROR(INDEX(Table2[Price per unit], MATCH(Table1[[#This Row],[Drug ROA_3]], Table2[Unique Drugs All ROA], 0)), "") ->  | BK3: =IFERROR(INDEX(Table2[Unit], MATCH(Table1[[#This Row],[Drug ROA_3]], Table2[Unique Drugs All ROA], 0)), "") ->  | BL3: =IFERROR(IF(Table1[[#This Row],[Unit_3]]="post-SC admin price", Table1[[#This Row],[Price per unit_3]], IF(Table1[[#This Row],[Unit_3]]="pre-SC admin price", Table1[[#This Row],[Price per unit_3]], Table1[[#This Row],[Dose with Mass Multiplier_3]]*Table1[[#This Row],[Drug '# of doses_3 (for unlimited regimens, '# per year)]]*Table1[[#This Row],[Price per unit_3]])), 0) -> 0 | BM3: =IFERROR(IF(Table1[[#This Row],[Regimen type (0=unlimited, 1=time-limited)]]=1, Table1[[#This Row],[Drug Price per year_3]], IF(Table1[[#This Row],[Regimen type (0=unlimited, 1=time-limited)]]="1", Table1[[#This Row],[Drug Price per year_3]], IF(Table1[[#This Row],[Regimen type (0=unlimited, 1=time-limited)]]=0, Table1[[#This Row],[Drug Price per year_3]]/12, IF(Table1[[#This Row],[Regimen type (0=unlimited, 1=time-limited)]]="0", Table1[[#This Row],[Drug Price per year_3]]/12, "CHECK")))), 0) -> 0 | BN3: =IF(Table1[[#This Row],[ASP price per unit_3]]<>0, Table1[[#This Row],[Drug Price_3]]/1.06*0.06, 0) -> 0 | BO3: 0 | BP3: 0 | BQ3: 0 | BR3: 0 | BS3: 0 | BT3: 0 | BU3: =IF(ISNUMBER(SEARCH("/m2", Table1[[#This Row],[Drug units_4]])), Table1[[#This Row],[Drug dose_4]]*1.7, IF(ISNUMBER(SEARCH("/kg", Table1[[#This Row],[Drug units_4]])), Table1[[#This Row],[Drug dose_4]]*70, Table1[[#This Row],[Drug dose_4]])) -> 0 | BV3: =IFERROR(INDEX(Table2[ASP Price per Unit], MATCH(Table1[[#This Row],[Drug ROA_4]], Table2[Unique Drugs All ROA], 0)), "") ->  | BW3: =IFERROR(INDEX(Table2[Price per unit], MATCH(Table1[[#This Row],[Drug ROA_4]], Table2[Unique Drugs All ROA], 0)), "") ->  | BX3: =IFERROR(INDEX(Table2[Unit], MATCH(Table1[[#This Row],[Drug ROA_4]], Table2[Unique Drugs All ROA], 0)), "") ->  | BY3: =IFERROR(IF(Table1[[#This Row],[Unit_4]]="post-SC admin price", Table1[[#This Row],[Price per unit_4]], IF(Table1[[#This Row],[Unit_4]]="pre-SC admin price", Table1[[#This Row],[Price per unit_4]], Table1[[#This Row],[Dose with Mass Multiplier_4]]*Table1[[#This Row],[Drug '# of doses_4 (for unlimited regimens, '# per year)]]*Table1[[#This Row],[Price per unit_4]])), 0) -> 0 | BZ3: =IFERROR(IF(Table1[[#This Row],[Regimen type (0=unlimited, 1=time-limited)]]=1, Table1[[#This Row],[Drug Price per year_4]], IF(Table1[[#This Row],[Regimen type (0=unlimited, 1=time-limited)]]="1", Table1[[#This Row],[Drug Price per year_4]], IF(Table1[[#This Row],[Regimen type (0=unlimited, 1=time-limited)]]=0, Table1[[#This Row],[Drug Price per year_4]]/12, IF(Table1[[#This Row],[Regimen type (0=unlimited, 1=time-limited)]]="0", Table1[[#This Row],[Drug Price per year_4]]/12, "CHECK")))), 0) -> 0 | CA3: =IF(Table1[[#This Row],[ASP price per unit_4]]<>0, Table1[[#This Row],[Drug Price_4]]/1.06*0.06, 0) -> 0 | CB3: 0 | CC3: 0 | CD3: 0 | CE3: 0 | CF3: 0 | CG3: 0 | CH3: =IF(ISNUMBER(SEARCH("/m2", Table1[[#This Row],[Drug units_5]])), Table1[[#This Row],[Drug dose_5]]*1.7, IF(ISNUMBER(SEARCH("/kg", Table1[[#This Row],[Drug units_5]])), Table1[[#This Row],[Drug dose_5]]*70, Table1[[#This Row],[Drug dose_5]])) -> 0 | CI3: =IFERROR(INDEX(Table2[ASP Price per Unit], MATCH(Table1[[#This Row],[Drug ROA_5]], Table2[Unique Drugs All ROA], 0)), "") ->  | CJ3: =IFERROR(INDEX(Table2[Price per unit], MATCH(Table1[[#This Row],[Drug ROA_5]], Table2[Unique Drugs All ROA], 0)), "") ->  | CK3: =IFERROR(INDEX(Table2[Unit], MATCH(Table1[[#This Row],[Drug ROA_5]], Table2[Unique Drugs All ROA], 0)), "") ->  | CL3: =IFERROR(IF(Table1[[#This Row],[Unit_5]]="post-SC admin price", Table1[[#This Row],[Price per unit_5]], IF(Table1[[#This Row],[Unit_5]]="pre-SC admin price", Table1[[#This Row],[Price per unit_5]], Table1[[#This Row],[Dose with Mass Multiplier_5]]*Table1[[#This Row],[Drug '# of doses_5 (for unlimited regimens, '# per year)]]*Table1[[#This Row],[Price per unit_5]])), 0) -> 0 | CM3: =IFERROR(IF(Table1[[#This Row],[Regimen type (0=unlimited, 1=time-limited)]]=1, Table1[[#This Row],[Drug Price per year_5]], IF(Table1[[#This Row],[Regimen type (0=unlimited, 1=time-limited)]]="1", Table1[[#This Row],[Drug Price per year_5]], IF(Table1[[#This Row],[Regimen type (0=unlimited, 1=time-limited)]]=0, Table1[[#This Row],[Drug Price per year_5]]/12, IF(Table1[[#This Row],[Regimen type (0=unlimited, 1=time-limited)]]="0", Table1[[#This Row],[Drug Price per year_5]]/12, "CHECK")))), 0) -> 0 | CN3: =IF(Table1[[#This Row],[ASP price per unit_5]]<>0, Table1[[#This Row],[Drug Price_5]]/1.06*0.06, 0) -> 0 | CO3: 0 | CP3: 0 | CQ3: 0 | CR3: 0 | CS3: 0 | CT3: 0 | CU3: =IF(ISNUMBER(SEARCH("/m2", Table1[[#This Row],[Drug units_6]])), Table1[[#This Row],[Drug dose_6]]*1.7, IF(ISNUMBER(SEARCH("/kg", Table1[[#This Row],[Drug units_6]])), Table1[[#This Row],[Drug dose_6]]*70, Table1[[#This Row],[Drug dose_6]])) -> 0 | CV3: =IFERROR(INDEX(Table2[ASP Price per Unit], MATCH(Table1[[#This Row],[Drug ROA_6]], Table2[Unique Drugs All ROA], 0)), "") ->  | CW3: =IFERROR(INDEX(Table2[Price per unit], MATCH(Table1[[#This Row],[Drug ROA_6]], Table2[Unique Drugs All ROA], 0)), "") ->  | CX3: =IFERROR(INDEX(Table2[Unit], MATCH(Table1[[#This Row],[Drug ROA_6]], Table2[Unique Drugs All ROA], 0)), "") ->  | CY3: =IFERROR(IF(Table1[[#This Row],[Unit_6]]="post-SC admin price", Table1[[#This Row],[Price per unit_6]], IF(Table1[[#This Row],[Unit_6]]="pre-SC admin price", Table1[[#This Row],[Price per unit_6]], Table1[[#This Row],[Dose with Mass Multiplier_6]]*Table1[[#This Row],[Drug '# of doses_6 (for unlimited regimens, '# per year)]]*Table1[[#This Row],[Price per unit_6]])), 0) -> 0 | CZ3: =IFERROR(IF(Table1[[#This Row],[Regimen type (0=unlimited, 1=time-limited)]]=1, Table1[[#This Row],[Drug Price per year_6]], IF(Table1[[#This Row],[Regimen type (0=unlimited, 1=time-limited)]]="1", Table1[[#This Row],[Drug Price per year_6]], IF(Table1[[#This Row],[Regimen type (0=unlimited, 1=time-limited)]]=0, Table1[[#This Row],[Drug Price per year_6]]/12, IF(Table1[[#This Row],[Regimen type (0=unlimited, 1=time-limited)]]="0", Table1[[#This Row],[Drug Price per year_6]]/12, "CHECK")))), 0) -> 0 | DA3: =IF(Table1[[#This Row],[ASP price per unit_6]]<>0, Table1[[#This Row],[Drug Price_6]]/1.06*0.06, 0) -> 0 | DB3: 0 | DC3: 0 | DD3: 0 | DE3: 0 | DF3: 0 | DG3: 0 | DH3: =IF(ISNUMBER(SEARCH("/m2", Table1[[#This Row],[Drug units_7]])), Table1[[#This Row],[Drug dose_7]]*1.7, IF(ISNUMBER(SEARCH("/kg", Table1[[#This Row],[Drug units_7]])), Table1[[#This Row],[Drug dose_7]]*70, Table1[[#This Row],[Drug dose_7]])) -> 0 | DI3: =IFERROR(INDEX(Table2[ASP Price per Unit], MATCH(Table1[[#This Row],[Drug ROA_7]], Table2[Unique Drugs All ROA], 0)), "") ->  | DJ3: =IFERROR(INDEX(Table2[Price per unit], MATCH(Table1[[#This Row],[Drug ROA_7]], Table2[Unique Drugs All ROA], 0)), "") ->  | DK3: =IFERROR(INDEX(Table2[Unit], MATCH(Table1[[#This Row],[Drug ROA_7]], Table2[Unique Drugs All ROA], 0)), "") ->  | DL3: =IFERROR(IF(Table1[[#This Row],[Unit_7]]="post-SC admin price", Table1[[#This Row],[Price per unit_7]], IF(Table1[[#This Row],[Unit_7]]="pre-SC admin price", Table1[[#This Row],[Price per unit_7]], Table1[[#This Row],[Dose with Mass Multiplier_7]]*Table1[[#This Row],[Drug '# of doses_7 (for unlimited regimens, '# per year)]]*Table1[[#This Row],[Price per unit_7]])), 0) -> 0 | DM3: =IFERROR(IF(Table1[[#This Row],[Regimen type (0=unlimited, 1=time-limited)]]=1, Table1[[#This Row],[Drug Price per year_7]], IF(Table1[[#This Row],[Regimen type (0=unlimited, 1=time-limited)]]="1", Table1[[#This Row],[Drug Price per year_7]], IF(Table1[[#This Row],[Regimen type (0=unlimited, 1=time-limited)]]=0, Table1[[#This Row],[Drug Price per year_7]]/12, IF(Table1[[#This Row],[Regimen type (0=unlimited, 1=time-limited)]]="0", Table1[[#This Row],[Drug Price per year_7]]/12, "CHECK")))), 0) -> 0 | DN3: =IF(Table1[[#This Row],[ASP price per unit_7]]<>0, Table1[[#This Row],[Drug Price_7]]/1.06*0.06, 0) -> 0 | DO3: 0 | DP3: 0 | DQ3: 0 | DR3: 0 | DS3: 0 | DT3: 0 | DU3: =IF(ISNUMBER(SEARCH("/m2", Table1[[#This Row],[Drug units_8]])), Table1[[#This Row],[Drug dose_8]]*1.7, IF(ISNUMBER(SEARCH("/kg", Table1[[#This Row],[Drug units_8]])), Table1[[#This Row],[Drug dose_8]]*70, Table1[[#This Row],[Drug dose_8]])) -> 0 | DV3: =IFERROR(INDEX(Table2[ASP Price per Unit], MATCH(Table1[[#This Row],[Drug ROA_8]], Table2[Unique Drugs All ROA], 0)), "") ->  | DW3: =IFERROR(INDEX(Table2[Price per unit], MATCH(Table1[[#This Row],[Drug ROA_8]], Table2[Unique Drugs All ROA], 0)), "") ->  | DX3: =IFERROR(INDEX(Table2[Unit], MATCH(Table1[[#This Row],[Drug ROA_8]], Table2[Unique Drugs All ROA], 0)), "") ->  | DY3: =IFERROR(IF(Table1[[#This Row],[Unit_8]]="post-SC admin price", Table1[[#This Row],[Price per unit_8]], IF(Table1[[#This Row],[Unit_8]]="pre-SC admin price", Table1[[#This Row],[Price per unit_8]], Table1[[#This Row],[Dose with Mass Multiplier_8]]*Table1[[#This Row],[Drug '# of doses_8 (for unlimited regimens, '# per year)]]*Table1[[#This Row],[Price per unit_8]])), 0) -> 0 | DZ3: =IFERROR(IF(Table1[[#This Row],[Regimen type (0=unlimited, 1=time-limited)]]=1, Table1[[#This Row],[Drug Price per year_8]], IF(Table1[[#This Row],[Regimen type (0=unlimited, 1=time-limited)]]="1", Table1[[#This Row],[Drug Price per year_8]], IF(Table1[[#This Row],[Regimen type (0=unlimited, 1=time-limited)]]=0, Table1[[#This Row],[Drug Price per year_8]]/12, IF(Table1[[#This Row],[Regimen type (0=unlimited, 1=time-limited)]]="0", Table1[[#This Row],[Drug Price per year_8]]/12, "CHECK")))), 0) -> 0 | EA3: =IF(Table1[[#This Row],[ASP price per unit_8]]<>0, Table1[[#This Row],[Drug Price_8]]/1.06*0.06, 0) -> 0 | EB3: 0 | EC3: 0 | ED3: 0 | EE3: 0 | EF3: 0 | EG3: 0 | EH3: =IF(ISNUMBER(SEARCH("/m2", Table1[[#This Row],[Drug units_9]])), Table1[[#This Row],[Drug dose_9]]*1.7, IF(ISNUMBER(SEARCH("/kg", Table1[[#This Row],[Drug units_9]])), Table1[[#This Row],[Drug dose_9]]*70, Table1[[#This Row],[Drug dose_9]])) -> 0 | EI3: =IFERROR(INDEX(Table2[ASP Price per Unit], MATCH(Table1[[#This Row],[Drug ROA_9]], Table2[Unique Drugs All ROA], 0)), "") ->  | EJ3: =IFERROR(INDEX(Table2[Price per unit], MATCH(Table1[[#This Row],[Drug ROA_9]], Table2[Unique Drugs All ROA], 0)), "") ->  | EK3: =IFERROR(INDEX(Table2[Unit], MATCH(Table1[[#This Row],[Drug ROA_9]], Table2[Unique Drugs All ROA], 0)), "") ->  | EL3: =IFERROR(IF(Table1[[#This Row],[Unit_9]]="post-SC admin price", Table1[[#This Row],[Price per unit_9]], IF(Table1[[#This Row],[Unit_9]]="pre-SC admin price", Table1[[#This Row],[Price per unit_9]], Table1[[#This Row],[Dose with Mass Multiplier_9]]*Table1[[#This Row],[Drug '# of doses_9 (for unlimited regimens, '# per year)]]*Table1[[#This Row],[Price per unit_9]])), 0) -> 0 | EM3: =IFERROR(IF(Table1[[#This Row],[Regimen type (0=unlimited, 1=time-limited)]]=1, Table1[[#This Row],[Drug Price per year_9]], IF(Table1[[#This Row],[Regimen type (0=unlimited, 1=time-limited)]]="1", Table1[[#This Row],[Drug Price per year_9]], IF(Table1[[#This Row],[Regimen type (0=unlimited, 1=time-limited)]]=0, Table1[[#This Row],[Drug Price per year_9]]/12, IF(Table1[[#This Row],[Regimen type (0=unlimited, 1=time-limited)]]="0", Table1[[#This Row],[Drug Price per year_9]]/12, "CHECK")))), 0) -> 0 | EN3: =IF(Table1[[#This Row],[ASP price per unit_9]]<>0, Table1[[#This Row],[Drug Price_9]]/1.06*0.06, 0) -> 0 | EO3: 0 | EP3: 0 | EQ3: 0 | ER3: 0 | ES3: 0 | ET3: 0 | EU3: =IF(ISNUMBER(SEARCH("/m2", Table1[[#This Row],[Drug units_10]])), Table1[[#This Row],[Drug dose_10]]*1.7, IF(ISNUMBER(SEARCH("/kg", Table1[[#This Row],[Drug units_10]])), Table1[[#This Row],[Drug dose_10]]*70, Table1[[#This Row],[Drug dose_10]])) -> 0 | EV3: =IFERROR(INDEX(Table2[ASP Price per Unit], MATCH(Table1[[#This Row],[Drug ROA_10]], Table2[Unique Drugs All ROA], 0)), "") ->  | EW3: =IFERROR(INDEX(Table2[Price per unit], MATCH(Table1[[#This Row],[Drug ROA_10]], Table2[Unique Drugs All ROA], 0)), "") ->  | EX3: =IFERROR(INDEX(Table2[Unit], MATCH(Table1[[#This Row],[Drug ROA_10]], Table2[Unique Drugs All ROA], 0)), "") ->  | EY3: =IFERROR(IF(Table1[[#This Row],[Unit_10]]="post-SC admin price", Table1[[#This Row],[Price per unit_10]], IF(Table1[[#This Row],[Unit_10]]="pre-SC admin price", Table1[[#This Row],[Price per unit_10]], Table1[[#This Row],[Dose with Mass Multiplier_10]]*Table1[[#This Row],[Drug '# of doses_10 (for unlimited regimens, '# per year)]]*Table1[[#This Row],[Price per unit_10]])), 0) -> 0 | EZ3: =IFERROR(IF(Table1[[#This Row],[Regimen type (0=unlimited, 1=time-limited)]]=1, Table1[[#This Row],[Drug Price per year_10]], IF(Table1[[#This Row],[Regimen type (0=unlimited, 1=time-limited)]]="1", Table1[[#This Row],[Drug Price per year_10]], IF(Table1[[#This Row],[Regimen type (0=unlimited, 1=time-limited)]]=0, Table1[[#This Row],[Drug Price per year_10]]/12, IF(Table1[[#This Row],[Regimen type (0=unlimited, 1=time-limited)]]="0", Table1[[#This Row],[Drug Price per year_10]]/12, "CHECK")))), 0) -> 0 | FA3: =IF(Table1[[#This Row],[ASP price per unit_10]]<>0, Table1[[#This Row],[Drug Price_10]]/1.06*0.06, 0) -> 0 | FB3: 0 | FC3: 0 | FD3: 0 | FE3: 0 | FF3: 0 | FG3: 0 | FH3: =IF(ISNUMBER(SEARCH("/m2", Table1[[#This Row],[Drug units_11]])), Table1[[#This Row],[Drug dose_11]]*1.7, IF(ISNUMBER(SEARCH("/kg", Table1[[#This Row],[Drug units_11]])), Table1[[#This Row],[Drug dose_11]]*70, Table1[[#This Row],[Drug dose_11]])) -> 0 | FI3: =IFERROR(INDEX(Table2[ASP Price per Unit], MATCH(Table1[[#This Row],[Drug ROA_11]], Table2[Unique Drugs All ROA], 0)), "") ->  | FJ3: =IFERROR(INDEX(Table2[Price per unit], MATCH(Table1[[#This Row],[Drug ROA_11]], Table2[Unique Drugs All ROA], 0)), "") ->  | FK3: =IFERROR(INDEX(Table2[Unit], MATCH(Table1[[#This Row],[Drug ROA_11]], Table2[Unique Drugs All ROA], 0)), "") ->  | FL3: =IFERROR(IF(Table1[[#This Row],[Unit_11]]="post-SC admin price", Table1[[#This Row],[Price per unit_11]], IF(Table1[[#This Row],[Unit_11]]="pre-SC admin price", Table1[[#This Row],[Price per unit_11]], Table1[[#This Row],[Dose with Mass Multiplier_11]]*Table1[[#This Row],[Drug '# of doses_11 (for unlimited regimens, '# per year)]]*Table1[[#This Row],[Price per unit_11]])), 0) -> 0 | FM3: =IFERROR(IF(Table1[[#This Row],[Regimen type (0=unlimited, 1=time-limited)]]=1, Table1[[#This Row],[Drug Price per year_11]], IF(Table1[[#This Row],[Regimen type (0=unlimited, 1=time-limited)]]="1", Table1[[#This Row],[Drug Price per year_11]], IF(Table1[[#This Row],[Regimen type (0=unlimited, 1=time-limited)]]=0, Table1[[#This Row],[Drug Price per year_11]]/12, IF(Table1[[#This Row],[Regimen type (0=unlimited, 1=time-limited)]]="0", Table1[[#This Row],[Drug Price per year_11]]/12, "CHECK")))), 0) -> 0 | FN3: =IF(Table1[[#This Row],[ASP price per unit_11]]<>0, Table1[[#This Row],[Drug Price_11]]/1.06*0.06, 0) -> 0 | FO3: =Table1[[#This Row],[Drug Price_1]] + Table1[[#This Row],[Drug Price_2]] + Table1[[#This Row],[Drug Price_3]]+ Table1[[#This Row],[Drug Price_4]]+ Table1[[#This Row],[Drug Price_5]]+ Table1[[#This Row],[Drug Price_6]]+ Table1[[#This Row],[Drug Price_7]]+ Table1[[#This Row],[Drug Price_8]]+ Table1[[#This Row],[Drug Price_9]]+ Table1[[#This Row],[Drug Price_10]]+ Table1[[#This Row],[Drug Price_11]] -> 49.804 | FP3: 0 | FQ3: 0 | FR3: 0 | FS3: 0 | FT3: =IF(Table1[[#This Row],[Emetic Risk (0=min, 1=low, 2=inter, 3=high)]]=0, SC_Admin_SpecialCases!$F$12*Table1[[#This Row],['# of supportive doses]], IF(Table1[[#This Row],[Emetic Risk (0=min, 1=low, 2=inter, 3=high)]]=1, SC_Admin_SpecialCases!$F$14*Table1[[#This Row],['# of supportive doses]], IF(Table1[[#This Row],[Emetic Risk (0=min, 1=low, 2=inter, 3=high)]]=2, SC_Admin_SpecialCases!$F$16*Table1[[#This Row],['# of supportive doses]], IF(Table1[[#This Row],[Emetic Risk (0=min, 1=low, 2=inter, 3=high)]]=3, SC_Admin_SpecialCases!$F$18*Table1[[#This Row],['# of supportive doses]], "CHECK")))) -> 0 | FU3: =IF(Table1[[#This Row],[Emetic Risk (0=min, 1=low, 2=inter, 3=high)]]=0, SC_Admin_SpecialCases!$F$13*Table1[[#This Row],['# of supportive doses]], IF(Table1[[#This Row],[Emetic Risk (0=min, 1=low, 2=inter, 3=high)]]=1, SC_Admin_SpecialCases!$F$15*Table1[[#This Row],['# of supportive doses]], IF(Table1[[#This Row],[Emetic Risk (0=min, 1=low, 2=inter, 3=high)]]=2, SC_Admin_SpecialCases!$F$17*Table1[[#This Row],['# of supportive doses]], IF(Table1[[#This Row],[Emetic Risk (0=min, 1=low, 2=inter, 3=high)]]=3, SC_Admin_SpecialCases!$F$19*Table1[[#This Row],['# of supportive doses]], "CHECK")))) -> 0 | FV3: =IF(Table1[[#This Row],[Growth Factor (0=low, 1=inter, 2=high)]]=0, SC_Admin_SpecialCases!$F$4*Table1[[#This Row],['# of GCSF doses]], IF(Table1[[#This Row],[Growth Factor (0=low, 1=inter, 2=high)]]=1, SC_Admin_SpecialCases!$F$6*Table1[[#This Row],['# of GCSF doses]], IF(Table1[[#This Row],[Growth Factor (0=low, 1=inter, 2=high)]]=2, SC_Admin_SpecialCases!$F$8*Table1[[#This Row],['# of GCSF doses]], "CHECK"))) -> 0 | FW3: =IF(Table1[[#This Row],[Growth Factor (0=low, 1=inter, 2=high)]]=0, SC_Admin_SpecialCases!$F$5*Table1[[#This Row],['# of GCSF doses]], IF(Table1[[#This Row],[Growth Factor (0=low, 1=inter, 2=high)]]=1, SC_Admin_SpecialCases!$F$7*Table1[[#This Row],['# of GCSF doses]], IF(Table1[[#This Row],[Growth Factor (0=low, 1=inter, 2=high)]]=2, SC_Admin_SpecialCases!$F$9*Table1[[#This Row],['# of GCSF doses]], "CHECK"))) -> 0 | FX3: =IF(Table1[[#This Row],[Regimen type (0=unlimited, 1=time-limited)]]=0, Table1[[#This Row],[Supportive Care, low margin]]/12, IF(Table1[[#This Row],[Regimen type (0=unlimited, 1=time-limited)]]="0", Table1[[#This Row],[Supportive Care, low margin]]/12, IF(Table1[[#This Row],[Regimen type (0=unlimited, 1=time-limited)]]=1, Table1[[#This Row],[Supportive Care, low margin]], IF(Table1[[#This Row],[Regimen type (0=unlimited, 1=time-limited)]]="1", Table1[[#This Row],[Supportive Care, low margin]], "CHECK")))) -> 0 | FY3: =IF(Table1[[#This Row],[Regimen type (0=unlimited, 1=time-limited)]]=0, Table1[[#This Row],[Supportive Care, high margin]]/12, IF(Table1[[#This Row],[Regimen type (0=unlimited, 1=time-limited)]]="0", Table1[[#This Row],[Supportive Care, high margin]]/12, IF(Table1[[#This Row],[Regimen type (0=unlimited, 1=time-limited)]]=1, Table1[[#This Row],[Supportive Care, high margin]], IF(Table1[[#This Row],[Regimen type (0=unlimited, 1=time-limited)]]="1", Table1[[#This Row],[Supportive Care, high margin]], "CHECK")))) -> 0 | FZ3: =IF(Table1[[#This Row],[Regimen type (0=unlimited, 1=time-limited)]]=0, Table1[[#This Row],[GF, low margin]]/12, IF(Table1[[#This Row],[Regimen type (0=unlimited, 1=time-limited)]]="0", Table1[[#This Row],[GF, low margin]]/12, IF(Table1[[#This Row],[Regimen type (0=unlimited, 1=time-limited)]]=1, Table1[[#This Row],[GF, low margin]], IF(Table1[[#This Row],[Regimen type (0=unlimited, 1=time-limited)]]="1", Table1[[#This Row],[GF, low margin]], "CHECK")))) -> 0 | GA3: =IF(Table1[[#This Row],[Regimen type (0=unlimited, 1=time-limited)]]=0, Table1[[#This Row],[GF, high margin]]/12, IF(Table1[[#This Row],[Regimen type (0=unlimited, 1=time-limited)]]="0", Table1[[#This Row],[GF, high margin]]/12, IF(Table1[[#This Row],[Regimen type (0=unlimited, 1=time-limited)]]=1, Table1[[#This Row],[GF, high margin]], IF(Table1[[#This Row],[Regimen type (0=unlimited, 1=time-limited)]]="1", Table1[[#This Row],[GF, high margin]], "CHECK")))) -> 0 | GB3: =Table1[[#This Row],[Supportive Care, low margin_adj]]/1.06*0.06 -> 0 | GC3: =Table1[[#This Row],[Supportive Care, high margin_adj]]/1.06*0.06 -> 0 | GD3: =Table1[[#This Row],[GF, low margin_adj]]/1.06*0.06 -> 0 | GE3: =Table1[[#This Row],[GF, high margin_adj]]/1.06*0.06 -> 0 | GF3: =IFERROR(IF(Table1[[#This Row],[Regimen type (0=unlimited, 1=time-limited)]]=0, Table1[[#This Row],[Drug '# of doses_1 (for unlimited regimens, '# per year)]]/12, IF(Table1[[#This Row],[Regimen type (0=unlimited, 1=time-limited)]]="0", Table1[[#This Row],[Drug '# of doses_1 (for unlimited regimens, '# per year)]]/12, IF(Table1[[#This Row],[Regimen type (0=unlimited, 1=time-limited)]]=1, Table1[[#This Row],[Drug '# of doses_1 (for unlimited regimens, '# per year)]], IF(Table1[[#This Row],[Regimen type (0=unlimited, 1=time-limited)]]="1", Table1[[#This Row],[Drug '# of doses_1 (for unlimited regimens, '# per year)]], "CHECK"))))*INDEX(Table3[Total Admin Cost], MATCH(Table1[[#This Row],[Drug ROA_1]], Table3[Drug ROA Admin], 0)), 0) -> 139.61 | GG3: =IFERROR(IF(Table1[[#This Row],[Regimen type (0=unlimited, 1=time-limited)]]=0, Table1[[#This Row],[Drug '# of doses_2 (for unlimited regimens, '# per year)]]/12, IF(Table1[[#This Row],[Regimen type (0=unlimited, 1=time-limited)]]="0", Table1[[#This Row],[Drug '# of doses_2 (for unlimited regimens, '# per year)]]/12, IF(Table1[[#This Row],[Regimen type (0=unlimited, 1=time-limited)]]=1, Table1[[#This Row],[Drug '# of doses_2 (for unlimited regimens, '# per year)]], IF(Table1[[#This Row],[Regimen type (0=unlimited, 1=time-limited)]]="1", Table1[[#This Row],[Drug '# of doses_2 (for unlimited regimens, '# per year)]], "CHECK"))))*INDEX(Table3[Total Admin Cost], MATCH(Table1[[#This Row],[Drug ROA_2]], Table3[Drug ROA Admin], 0)), 0) -> 0 | GH3: =IFERROR(IF(Table1[[#This Row],[Regimen type (0=unlimited, 1=time-limited)]]=0, Table1[[#This Row],[Drug '# of doses_3 (for unlimited regimens, '# per year)]]/12, IF(Table1[[#This Row],[Regimen type (0=unlimited, 1=time-limited)]]="0", Table1[[#This Row],[Drug '# of doses_3 (for unlimited regimens, '# per year)]]/12, IF(Table1[[#This Row],[Regimen type (0=unlimited, 1=time-limited)]]=1, Table1[[#This Row],[Drug '# of doses_3 (for unlimited regimens, '# per year)]], IF(Table1[[#This Row],[Regimen type (0=unlimited, 1=time-limited)]]="1", Table1[[#This Row],[Drug '# of doses_3 (for unlimited regimens, '# per year)]], "CHECK"))))*INDEX(Table3[Total Admin Cost], MATCH(Table1[[#This Row],[Drug ROA_3]], Table3[Drug ROA Admin], 0)), 0) -> 0 | GI3: =IFERROR(IF(Table1[[#This Row],[Regimen type (0=unlimited, 1=time-limited)]]=0, Table1[[#This Row],[Drug '# of doses_4 (for unlimited regimens, '# per year)]]/12, IF(Table1[[#This Row],[Regimen type (0=unlimited, 1=time-limited)]]="0", Table1[[#This Row],[Drug '# of doses_4 (for unlimited regimens, '# per year)]]/12, IF(Table1[[#This Row],[Regimen type (0=unlimited, 1=time-limited)]]=1, Table1[[#This Row],[Drug '# of doses_4 (for unlimited regimens, '# per year)]], IF(Table1[[#This Row],[Regimen type (0=unlimited, 1=time-limited)]]="1", Table1[[#This Row],[Drug '# of doses_4 (for unlimited regimens, '# per year)]], "CHECK"))))*INDEX(Table3[Total Admin Cost], MATCH(Table1[[#This Row],[Drug ROA_4]], Table3[Drug ROA Admin], 0)), 0) -> 0 | GJ3: =IFERROR(IF(Table1[[#This Row],[Regimen type (0=unlimited, 1=time-limited)]]=0, Table1[[#This Row],[Drug '# of doses_5 (for unlimited regimens, '# per year)]]/12, IF(Table1[[#This Row],[Regimen type (0=unlimited, 1=time-limited)]]="0", Table1[[#This Row],[Drug '# of doses_5 (for unlimited regimens, '# per year)]]/12, IF(Table1[[#This Row],[Regimen type (0=unlimited, 1=time-limited)]]=1, Table1[[#This Row],[Drug '# of doses_5 (for unlimited regimens, '# per year)]], IF(Table1[[#This Row],[Regimen type (0=unlimited, 1=time-limited)]]="1", Table1[[#This Row],[Drug '# of doses_5 (for unlimited regimens, '# per year)]], "CHECK"))))*INDEX(Table3[Total Admin Cost], MATCH(Table1[[#This Row],[Drug ROA_5]], Table3[Drug ROA Admin], 0)), 0) -> 0 | GK3: =IFERROR(IF(Table1[[#This Row],[Regimen type (0=unlimited, 1=time-limited)]]=0, Table1[[#This Row],[Drug '# of doses_6 (for unlimited regimens, '# per year)]]/12, IF(Table1[[#This Row],[Regimen type (0=unlimited, 1=time-limited)]]="0", Table1[[#This Row],[Drug '# of doses_6 (for unlimited regimens, '# per year)]]/12, IF(Table1[[#This Row],[Regimen type (0=unlimited, 1=time-limited)]]=1, Table1[[#This Row],[Drug '# of doses_6 (for unlimited regimens, '# per year)]], IF(Table1[[#This Row],[Regimen type (0=unlimited, 1=time-limited)]]="1", Table1[[#This Row],[Drug '# of doses_6 (for unlimited regimens, '# per year)]], "CHECK"))))*INDEX(Table3[Total Admin Cost], MATCH(Table1[[#This Row],[Drug ROA_6]], Table3[Drug ROA Admin], 0)), 0) -> 0 | GL3: =IFERROR(IF(Table1[[#This Row],[Regimen type (0=unlimited, 1=time-limited)]]=0, Table1[[#This Row],[Drug '# of doses_7 (for unlimited regimens, '# per year)]]/12, IF(Table1[[#This Row],[Regimen type (0=unlimited, 1=time-limited)]]="0", Table1[[#This Row],[Drug '# of doses_7 (for unlimited regimens, '# per year)]]/12, IF(Table1[[#This Row],[Regimen type (0=unlimited, 1=time-limited)]]=1, Table1[[#This Row],[Drug '# of doses_7 (for unlimited regimens, '# per year)]], IF(Table1[[#This Row],[Regimen type (0=unlimited, 1=time-limited)]]="1", Table1[[#This Row],[Drug '# of doses_7 (for unlimited regimens, '# per year)]], "CHECK"))))*INDEX(Table3[Total Admin Cost], MATCH(Table1[[#This Row],[Drug ROA_7]], Table3[Drug ROA Admin], 0)), 0) -> 0 | GM3: =IFERROR(IF(Table1[[#This Row],[Regimen type (0=unlimited, 1=time-limited)]]=0, Table1[[#This Row],[Drug '# of doses_8 (for unlimited regimens, '# per year)]]/12, IF(Table1[[#This Row],[Regimen type (0=unlimited, 1=time-limited)]]="0", Table1[[#This Row],[Drug '# of doses_8 (for unlimited regimens, '# per year)]]/12, IF(Table1[[#This Row],[Regimen type (0=unlimited, 1=time-limited)]]=1, Table1[[#This Row],[Drug '# of doses_8 (for unlimited regimens, '# per year)]], IF(Table1[[#This Row],[Regimen type (0=unlimited, 1=time-limited)]]="1", Table1[[#This Row],[Drug '# of doses_8 (for unlimited regimens, '# per year)]], "CHECK"))))*INDEX(Table3[Total Admin Cost], MATCH(Table1[[#This Row],[Drug ROA_8]], Table3[Drug ROA Admin], 0)), 0) -> 0 | GN3: =IFERROR(IF(Table1[[#This Row],[Regimen type (0=unlimited, 1=time-limited)]]=0, Table1[[#This Row],[Drug '# of doses_9 (for unlimited regimens, '# per year)]]/12, IF(Table1[[#This Row],[Regimen type (0=unlimited, 1=time-limited)]]="0", Table1[[#This Row],[Drug '# of doses_9 (for unlimited regimens, '# per year)]]/12, IF(Table1[[#This Row],[Regimen type (0=unlimited, 1=time-limited)]]=1, Table1[[#This Row],[Drug '# of doses_9 (for unlimited regimens, '# per year)]], IF(Table1[[#This Row],[Regimen type (0=unlimited, 1=time-limited)]]="1", Table1[[#This Row],[Drug '# of doses_9 (for unlimited regimens, '# per year)]], "CHECK"))))*INDEX(Table3[Total Admin Cost], MATCH(Table1[[#This Row],[Drug ROA_9]], Table3[Drug ROA Admin], 0)), 0) -> 0 | GO3: =IFERROR(IF(Table1[[#This Row],[Regimen type (0=unlimited, 1=time-limited)]]=0, Table1[[#This Row],[Drug '# of doses_10 (for unlimited regimens, '# per year)]]/12, IF(Table1[[#This Row],[Regimen type (0=unlimited, 1=time-limited)]]="0", Table1[[#This Row],[Drug '# of doses_10 (for unlimited regimens, '# per year)]]/12, IF(Table1[[#This Row],[Regimen type (0=unlimited, 1=time-limited)]]=1, Table1[[#This Row],[Drug '# of doses_10 (for unlimited regimens, '# per year)]], IF(Table1[[#This Row],[Regimen type (0=unlimited, 1=time-limited)]]="1", Table1[[#This Row],[Drug '# of doses_10 (for unlimited regimens, '# per year)]], "CHECK"))))*INDEX(Table3[Total Admin Cost], MATCH(Table1[[#This Row],[Drug ROA_10]], Table3[Drug ROA Admin], 0)), 0) -> 0 | GP3: =IFERROR(IF(Table1[[#This Row],[Regimen type (0=unlimited, 1=time-limited)]]=0, Table1[[#This Row],[Drug '# of doses_11 (for unlimited regimens, '# per year)]]/12, IF(Table1[[#This Row],[Regimen type (0=unlimited, 1=time-limited)]]="0", Table1[[#This Row],[Drug '# of doses_11 (for unlimited regimens, '# per year)]]/12, IF(Table1[[#This Row],[Regimen type (0=unlimited, 1=time-limited)]]=1, Table1[[#This Row],[Drug '# of doses_11 (for unlimited regimens, '# per year)]], IF(Table1[[#This Row],[Regimen type (0=unlimited, 1=time-limited)]]="1", Table1[[#This Row],[Drug '# of doses_11 (for unlimited regimens, '# per year)]], "CHECK"))))*INDEX(Table3[Total Admin Cost], MATCH(Table1[[#This Row],[Drug ROA_11]], Table3[Drug ROA Admin], 0)), 0) -> 0 | GQ3: =SUM(Table1[[#This Row],[Admin Drug 1]:[Admin Drug 11]]) -> 139.61
A4: Breast | B4: Breast | C4: 2.2016 | D4: Systemic disease or de novo stage IV | F4: 14138 | G4: Pamidronate | H4: 3 | I4: 4 | J4: 4 | K4: 5 | L4: 4 | M4: =SUM(Table1[[#This Row],[Efficacy]:[Safety]]) -> 7 | N4: =SUM(Table1[[#This Row],[Efficacy]:[Consistency]]) -> 16 | O4: 0 | P4: 0 | Q4: 0 | R4: 2A | S4: First-line | T4: =IF(Table1[[#This Row],[Line of therapy]]="first-line", "0", IF(Table1[[#This Row],[Line of therapy]]="second-line or subsequent", "1", IF(Table1[[#This Row],[Line of therapy]]="second-line", "1", IF(Table1[[#This Row],[Line of therapy]]="third-line", "1", IF(Table1[[#This Row],[Line of therapy]]="fourth-line", "1", IF(Table1[[#This Row],[Line of therapy]]="fifth-line", "1", IF(Table1[[#This Row],[Line of therapy]]="sixth-line", "1", IF(Table1[[#This Row],[Line of therapy]]="persistent disease or progression", "1", IF(Table1[[#This Row],[Line of therapy]]="relapsed/refractory", "1", IF(Table1[[#This Row],[Line of therapy]]="subsequent", "1", IF(Table1[[#This Row],[Line of therapy]]="maintenance", "2", ""))))))))))) -> 0 | U4: 1 | V4: 0 | W4: =Table1[[#This Row],[Total regimen price]]+Table1[[#This Row],[Admin Total]] -> 198.566 | X4: =Table1[[#This Row],[Total regimen price]]+Table1[[#This Row],[Supportive Care, high margin_adj]]+Table1[[#This Row],[GF, high margin_adj]]+Table1[[#This Row],[Admin Total]] -> 198.566 | Y4: =Table1[[#This Row],[Total regimen price]]+Table1[[#This Row],[Supportive Care, low margin_adj]]+Table1[[#This Row],[GF, low margin_adj]]+Table1[[#This Row],[Admin Total]] -> 198.566 | Z4: =Table1[[#This Row],[Physician margin_1]]+Table1[[#This Row],[Physician margin_2]]+Table1[[#This Row],[Physician margin_3]]+Table1[[#This Row],[Physician margin_4]]+Table1[[#This Row],[Physician margin_5]]+Table1[[#This Row],[Physician margin_6]]+Table1[[#This Row],[Physician margin_7]]+Table1[[#This Row],[Physician margin_8]]+Table1[[#This Row],[Physician margin_9]]+Table1[[#This Row],[Physician margin_10]]+Table1[[#This Row],[Physician margin_11]]+Table1[[#This Row],[Physician margin supportive Care, high margin_adj]]+Table1[[#This Row],[Physician margin GF, high margin_adj]] -> 1.712037736 | AA4: =Table1[[#This Row],[Physician margin_1]]+Table1[[#This Row],[Physician margin_2]]+Table1[[#This Row],[Physician margin_3]]+Table1[[#This Row],[Physician margin_4]]+Table1[[#This Row],[Physician margin_5]]+Table1[[#This Row],[Physician margin_6]]+Table1[[#This Row],[Physician margin_7]]+Table1[[#This Row],[Physician margin_8]]+Table1[[#This Row],[Physician margin_9]]+Table1[[#This Row],[Physician margin_10]]+Table1[[#This Row],[Physician margin_11]]+Table1[[#This Row],[Physician margin supportive Care, low margin_adj]]+Table1[[#This Row],[Physician margin GF, low margin_adj]] -> 1.712037736 | AB4: Pamidronate | AC4: IV | AD4: Pamidronate IV | AE4: 90 | AF4: mg | AG4: 1 | AH4: =IF(ISNUMBER(SEARCH("/m2", Table1[[#This Row],[Drug units_1]])), Table1[[#This Row],[Drug dose_1]]*1.7, IF(ISNUMBER(SEARCH("/kg", Table1[[#This Row],[Drug units_1]])), Table1[[#This Row],[Drug dose_1]]*70, Table1[[#This Row],[Drug dose_1]])) -> 90 | AI4: =IFERROR(INDEX(Table2[ASP Price per Unit], MATCH(Table1[[#This Row],[Drug ROA_1]], Table2[Unique Drugs All ROA], 0)), "") -> 0.3360666667 | AJ4: =IFERROR(INDEX(Table2[Price per unit], MATCH(Table1[[#This Row],[Drug ROA_1]], Table2[Unique Drugs All ROA], 0)), "") -> 0.3360666667 | AK4: =IFERROR(INDEX(Table2[Unit], MATCH(Table1[[#This Row],[Drug ROA_1]], Table2[Unique Drugs All ROA], 0)), "") -> MG | AL4: =IFERROR(IF(Table1[[#This Row],[Unit_1]]="post-SC admin price", Table1[[#This Row],[Price per unit_1]], IF(Table1[[#This Row],[Unit_1]]="pre-SC admin price", Table1[[#This Row],[Price per unit_1]], Table1[[#This Row],[Dose with Mass Multiplier_1]]*Table1[[#This Row],[Drug '# of doses_1 (for unlimited regimens, '# per year)]]*Table1[[#This Row],[Price per unit_1]])), 0) -> 30.246 | AM4: =IFERROR(IF(Table1[[#This Row],[Regimen type (0=unlimited, 1=time-limited)]]=1, Table1[[#This Row],[Drug Price per year_1]], IF(Table1[[#This Row],[Regimen type (0=unlimited, 1=time-limited)]]="1", Table1[[#This Row],[Drug Price per year_1]], IF(Table1[[#This Row],[Regimen type (0=unlimited, 1=time-limited)]]=0, Table1[[#This Row],[Drug Price per year_1]]/12, IF(Table1[[#This Row],[Regimen type (0=unlimited, 1=time-limited)]]="0", Table1[[#This Row],[Drug Price per year_1]]/12, "CHECK")))), 0) -> 30.246 | AN4: =IF(Table1[[#This Row],[ASP price per unit_1]]<>0, Table1[[#This Row],[Drug Price_1]]/1.06*0.06, 0) -> 1.712037736 | AO4: 0 | AP4: 0 | AQ4: 0 | AR4: 0 | AS4: 0 | AT4: 0 | AU4: =IF(ISNUMBER(SEARCH("/m2", Table1[[#This Row],[Drug units_2]])), Table1[[#This Row],[Drug dose_2]]*1.7, IF(ISNUMBER(SEARCH("/kg", Table1[[#This Row],[Drug units_2]])), Table1[[#This Row],[Drug dose_2]]*70, Table1[[#This Row],[Drug dose_2]])) -> 0 | AV4: =IFERROR(INDEX(Table2[ASP Price per Unit], MATCH(Table1[[#This Row],[Drug ROA_2]], Table2[Unique Drugs All ROA], 0)), "") ->  | AW4: =IFERROR(INDEX(Table2[Price per unit], MATCH(Table1[[#This Row],[Drug ROA_2]], Table2[Unique Drugs All ROA], 0)), "") ->  | AX4: =IFERROR(INDEX(Table2[Unit], MATCH(Table1[[#This Row],[Drug ROA_2]], Table2[Unique Drugs All ROA], 0)), "") ->  | AY4: =IFERROR(IF(Table1[[#This Row],[Unit_2]]="post-SC admin price", Table1[[#This Row],[Price per unit_2]], IF(Table1[[#This Row],[Unit_2]]="pre-SC admin price", Table1[[#This Row],[Price per unit_2]], Table1[[#This Row],[Dose with Mass Multiplier_2]]*Table1[[#This Row],[Drug '# of doses_2 (for unlimited regimens, '# per year)]]*Table1[[#This Row],[Price per unit_2]])), 0) -> 0 | AZ4: =IFERROR(IF(Table1[[#This Row],[Regimen type (0=unlimited, 1=time-limited)]]=1, Table1[[#This Row],[Drug Price per year_2]], IF(Table1[[#This Row],[Regimen type (0=unlimited, 1=time-limited)]]="1", Table1[[#This Row],[Drug Price per year_2]], IF(Table1[[#This Row],[Regimen type (0=unlimited, 1=time-limited)]]=0, Table1[[#This Row],[Drug Price per year_2]]/12, IF(Table1[[#This Row],[Regimen type (0=unlimited, 1=time-limited)]]="0", Table1[[#This Row],[Drug Price per year_2]]/12, "CHECK")))), 0) -> 0 | BA4: =IF(Table1[[#This Row],[ASP price per unit_2]]<>0, Table1[[#This Row],[Drug Price_2]]/1.06*0.06, 0) -> 0 | BB4: 0 | BC4: 0 | BD4: 0 | BE4: 0 | BF4: 0 | BG4: 0 | BH4: =IF(ISNUMBER(SEARCH("/m2", Table1[[#This Row],[Drug units_3]])), Table1[[#This Row],[Drug dose_3]]*1.7, IF(ISNUMBER(SEARCH("/kg", Table1[[#This Row],[Drug units_3]])), Table1[[#This Row],[Drug dose_3]]*70, Table1[[#This Row],[Drug dose_3]])) -> 0 | BI4: =IFERROR(INDEX(Table2[ASP Price per Unit], MATCH(Table1[[#This Row],[Drug ROA_3]], Table2[Unique Drugs All ROA], 0)), "") ->  | BJ4: =IFERROR(INDEX(Table2[Price per unit], MATCH(Table1[[#This Row],[Drug ROA_3]], Table2[Unique Drugs All ROA], 0)), "") ->  | BK4: =IFERROR(INDEX(Table2[Unit], MATCH(Table1[[#This Row],[Drug ROA_3]], Table2[Unique Drugs All ROA], 0)), "") ->  | BL4: =IFERROR(IF(Table1[[#This Row],[Unit_3]]="post-SC admin price", Table1[[#This Row],[Price per unit_3]], IF(Table1[[#This Row],[Unit_3]]="pre-SC admin price", Table1[[#This Row],[Price per unit_3]], Table1[[#This Row],[Dose with Mass Multiplier_3]]*Table1[[#This Row],[Drug '# of doses_3 (for unlimited regimens, '# per year)]]*Table1[[#This Row],[Price per unit_3]])), 0) -> 0 | BM4: =IFERROR(IF(Table1[[#This Row],[Regimen type (0=unlimited, 1=time-limited)]]=1, Table1[[#This Row],[Drug Price per year_3]], IF(Table1[[#This Row],[Regimen type (0=unlimited, 1=time-limited)]]="1", Table1[[#This Row],[Drug Price per year_3]], IF(Table1[[#This Row],[Regimen type (0=unlimited, 1=time-limited)]]=0, Table1[[#This Row],[Drug Price per year_3]]/12, IF(Table1[[#This Row],[Regimen type (0=unlimited, 1=time-limited)]]="0", Table1[[#This Row],[Drug Price per year_3]]/12, "CHECK")))), 0) -> 0 | BN4: =IF(Table1[[#This Row],[ASP price per unit_3]]<>0, Table1[[#This Row],[Drug Price_3]]/1.06*0.06, 0) -> 0 | BO4: 0 | BP4: 0 | BQ4: 0 | BR4: 0 | BS4: 0 | BT4: 0 | BU4: =IF(ISNUMBER(SEARCH("/m2", Table1[[#This Row],[Drug units_4]])), Table1[[#This Row],[Drug dose_4]]*1.7, IF(ISNUMBER(SEARCH("/kg", Table1[[#This Row],[Drug units_4]])), Table1[[#This Row],[Drug dose_4]]*70, Table1[[#This Row],[Drug dose_4]])) -> 0 | BV4: =IFERROR(INDEX(Table2[ASP Price per Unit], MATCH(Table1[[#This Row],[Drug ROA_4]], Table2[Unique Drugs All ROA], 0)), "") ->  | BW4: =IFERROR(INDEX(Table2[Price per unit], MATCH(Table1[[#This Row],[Drug ROA_4]], Table2[Unique Drugs All ROA], 0)), "") ->  | BX4: =IFERROR(INDEX(Table2[Unit], MATCH(Table1[[#This Row],[Drug ROA_4]], Table2[Unique Drugs All ROA], 0)), "") ->  | BY4: =IFERROR(IF(Table1[[#This Row],[Unit_4]]="post-SC admin price", Table1[[#This Row],[Price per unit_4]], IF(Table1[[#This Row],[Unit_4]]="pre-SC admin price", Table1[[#This Row],[Price per unit_4]], Table1[[#This Row],[Dose with Mass Multiplier_4]]*Table1[[#This Row],[Drug '# of doses_4 (for unlimited regimens, '# per year)]]*Table1[[#This Row],[Price per unit_4]])), 0) -> 0 | BZ4: =IFERROR(IF(Table1[[#This Row],[Regimen type (0=unlimited, 1=time-limited)]]=1, Table1[[#This Row],[Drug Price per year_4]], IF(Table1[[#This Row],[Regimen type (0=unlimited, 1=time-limited)]]="1", Table1[[#This Row],[Drug Price per year_4]], IF(Table1[[#This Row],[Regimen type (0=unlimited, 1=time-limited)]]=0, Table1[[#This Row],[Drug Price per year_4]]/12, IF(Table1[[#This Row],[Regimen type (0=unlimited, 1=time-limited)]]="0", Table1[[#This Row],[Drug Price per year_4]]/12, "CHECK")))), 0) -> 0 | CA4: =IF(Table1[[#This Row],[ASP price per unit_4]]<>0, Table1[[#This Row],[Drug Price_4]]/1.06*0.06, 0) -> 0 | CB4: 0 | CC4: 0 | CD4: 0 | CE4: 0 | CF4: 0 | CG4: 0 | CH4: =IF(ISNUMBER(SEARCH("/m2", Table1[[#This Row],[Drug units_5]])), Table1[[#This Row],[Drug dose_5]]*1.7, IF(ISNUMBER(SEARCH("/kg", Table1[[#This Row],[Drug units_5]])), Table1[[#This Row],[Drug dose_5]]*70, Table1[[#This Row],[Drug dose_5]])) -> 0 | CI4: =IFERROR(INDEX(Table2[ASP Price per Unit], MATCH(Table1[[#This Row],[Drug ROA_5]], Table2[Unique Drugs All ROA], 0)), "") ->  | CJ4: =IFERROR(INDEX(Table2[Price per unit], MATCH(Table1[[#This Row],[Drug ROA_5]], Table2[Unique Drugs All ROA], 0)), "") ->  | CK4: =IFERROR(INDEX(Table2[Unit], MATCH(Table1[[#This Row],[Drug ROA_5]], Table2[Unique Drugs All ROA], 0)), "") ->  | CL4: =IFERROR(IF(Table1[[#This Row],[Unit_5]]="post-SC admin price", Table1[[#This Row],[Price per unit_5]], IF(Table1[[#This Row],[Unit_5]]="pre-SC admin price", Table1[[#This Row],[Price per unit_5]], Table1[[#This Row],[Dose with Mass Multiplier_5]]*Table1[[#This Row],[Drug '# of doses_5 (for unlimited regimens, '# per year)]]*Table1[[#This Row],[Price per unit_5]])), 0) -> 0 | CM4: =IFERROR(IF(Table1[[#This Row],[Regimen type (0=unlimited, 1=time-limited)]]=1, Table1[[#This Row],[Drug Price per year_5]], IF(Table1[[#This Row],[Regimen type (0=unlimited, 1=time-limited)]]="1", Table1[[#This Row],[Drug Price per year_5]], IF(Table1[[#This Row],[Regimen type (0=unlimited, 1=time-limited)]]=0, Table1[[#This Row],[Drug Price per year_5]]/12, IF(Table1[[#This Row],[Regimen type (0=unlimited, 1=time-limited)]]="0", Table1[[#This Row],[Drug Price per year_5]]/12, "CHECK")))), 0) -> 0 | CN4: =IF(Table1[[#This Row],[ASP price per unit_5]]<>0, Table1[[#This Row],[Drug Price_5]]/1.06*0.06, 0) -> 0 | CO4: 0 | CP4: 0 | CQ4: 0 | CR4: 0 | CS4: 0 | CT4: 0 | CU4: =IF(ISNUMBER(SEARCH("/m2", Table1[[#This Row],[Drug units_6]])), Table1[[#This Row],[Drug dose_6]]*1.7, IF(ISNUMBER(SEARCH("/kg", Table1[[#This Row],[Drug units_6]])), Table1[[#This Row],[Drug dose_6]]*70, Table1[[#This Row],[Drug dose_6]])) -> 0 | CV4: =IFERROR(INDEX(Table2[ASP Price per Unit], MATCH(Table1[[#This Row],[Drug ROA_6]], Table2[Unique Drugs All ROA], 0)), "") ->  | CW4: =IFERROR(INDEX(Table2[Price per unit], MATCH(Table1[[#This Row],[Drug ROA_6]], Table2[Unique Drugs All ROA], 0)), "") ->  | CX4: =IFERROR(INDEX(Table2[Unit], MATCH(Table1[[#This Row],[Drug ROA_6]], Table2[Unique Drugs All ROA], 0)), "") ->  | CY4: =IFERROR(IF(Table1[[#This Row],[Unit_6]]="post-SC admin price", Table1[[#This Row],[Price per unit_6]], IF(Table1[[#This Row],[Unit_6]]="pre-SC admin price", Table1[[#This Row],[Price per unit_6]], Table1[[#This Row],[Dose with Mass Multiplier_6]]*Table1[[#This Row],[Drug '# of doses_6 (for unlimited regimens, '# per year)]]*Table1[[#This Row],[Price per unit_6]])), 0) -> 0 | CZ4: =IFERROR(IF(Table1[[#This Row],[Regimen type (0=unlimited, 1=time-limited)]]=1, Table1[[#This Row],[Drug Price per year_6]], IF(Table1[[#This Row],[Regimen type (0=unlimited, 1=time-limited)]]="1", Table1[[#This Row],[Drug Price per year_6]], IF(Table1[[#This Row],[Regimen type (0=unlimited, 1=time-limited)]]=0, Table1[[#This Row],[Drug Price per year_6]]/12, IF(Table1[[#This Row],[Regimen type (0=unlimited, 1=time-limited)]]="0", Table1[[#This Row],[Drug Price per year_6]]/12, "CHECK")))), 0) -> 0 | DA4: =IF(Table1[[#This Row],[ASP price per unit_6]]<>0, Table1[[#This Row],[Drug Price_6]]/1.06*0.06, 0) -> 0 | DB4: 0 | DC4: 0 | DD4: 0 | DE4: 0 | DF4: 0 | DG4: 0 | DH4: =IF(ISNUMBER(SEARCH("/m2", Table1[[#This Row],[Drug units_7]])), Table1[[#This Row],[Drug dose_7]]*1.7, IF(ISNUMBER(SEARCH("/kg", Table1[[#This Row],[Drug units_7]])), Table1[[#This Row],[Drug dose_7]]*70, Table1[[#This Row],[Drug dose_7]])) -> 0 | DI4: =IFERROR(INDEX(Table2[ASP Price per Unit], MATCH(Table1[[#This Row],[Drug ROA_7]], Table2[Unique Drugs All ROA], 0)), "") ->  | DJ4: =IFERROR(INDEX(Table2[Price per unit], MATCH(Table1[[#This Row],[Drug ROA_7]], Table2[Unique Drugs All ROA], 0)), "") ->  | DK4: =IFERROR(INDEX(Table2[Unit], MATCH(Table1[[#This Row],[Drug ROA_7]], Table2[Unique Drugs All ROA], 0)), "") ->  | DL4: =IFERROR(IF(Table1[[#This Row],[Unit_7]]="post-SC admin price", Table1[[#This Row],[Price per unit_7]], IF(Table1[[#This Row],[Unit_7]]="pre-SC admin price", Table1[[#This Row],[Price per unit_7]], Table1[[#This Row],[Dose with Mass Multiplier_7]]*Table1[[#This Row],[Drug '# of doses_7 (for unlimited regimens, '# per year)]]*Table1[[#This Row],[Price per unit_7]])), 0) -> 0 | DM4: =IFERROR(IF(Table1[[#This Row],[Regimen type (0=unlimited, 1=time-limited)]]=1, Table1[[#This Row],[Drug Price per year_7]], IF(Table1[[#This Row],[Regimen type (0=unlimited, 1=time-limited)]]="1", Table1[[#This Row],[Drug Price per year_7]], IF(Table1[[#This Row],[Regimen type (0=unlimited, 1=time-limited)]]=0, Table1[[#This Row],[Drug Price per year_7]]/12, IF(Table1[[#This Row],[Regimen type (0=unlimited, 1=time-limited)]]="0", Table1[[#This Row],[Drug Price per year_7]]/12, "CHECK")))), 0) -> 0 | DN4: =IF(Table1[[#This Row],[ASP price per unit_7]]<>0, Table1[[#This Row],[Drug Price_7]]/1.06*0.06, 0) -> 0 | DO4: 0 | DP4: 0 | DQ4: 0 | DR4: 0 | DS4: 0 | DT4: 0 | DU4: =IF(ISNUMBER(SEARCH("/m2", Table1[[#This Row],[Drug units_8]])), Table1[[#This Row],[Drug dose_8]]*1.7, IF(ISNUMBER(SEARCH("/kg", Table1[[#This Row],[Drug units_8]])), Table1[[#This Row],[Drug dose_8]]*70, Table1[[#This Row],[Drug dose_8]])) -> 0 | DV4: =IFERROR(INDEX(Table2[ASP Price per Unit], MATCH(Table1[[#This Row],[Drug ROA_8]], Table2[Unique Drugs All ROA], 0)), "") ->  | DW4: =IFERROR(INDEX(Table2[Price per unit], MATCH(Table1[[#This Row],[Drug ROA_8]], Table2[Unique Drugs All ROA], 0)), "") ->  | DX4: =IFERROR(INDEX(Table2[Unit], MATCH(Table1[[#This Row],[Drug ROA_8]], Table2[Unique Drugs All ROA], 0)), "") ->  | DY4: =IFERROR(IF(Table1[[#This Row],[Unit_8]]="post-SC admin price", Table1[[#This Row],[Price per unit_8]], IF(Table1[[#This Row],[Unit_8]]="pre-SC admin price", Table1[[#This Row],[Price per unit_8]], Table1[[#This Row],[Dose with Mass Multiplier_8]]*Table1[[#This Row],[Drug '# of doses_8 (for unlimited regimens, '# per year)]]*Table1[[#This Row],[Price per unit_8]])), 0) -> 0 | DZ4: =IFERROR(IF(Table1[[#This Row],[Regimen type (0=unlimited, 1=time-limited)]]=1, Table1[[#This Row],[Drug Price per year_8]], IF(Table1[[#This Row],[Regimen type (0=unlimited, 1=time-limited)]]="1", Table1[[#This Row],[Drug Price per year_8]], IF(Table1[[#This Row],[Regimen type (0=unlimited, 1=time-limited)]]=0, Table1[[#This Row],[Drug Price per year_8]]/12, IF(Table1[[#This Row],[Regimen type (0=unlimited, 1=time-limited)]]="0", Table1[[#This Row],[Drug Price per year_8]]/12, "CHECK")))), 0) -> 0 | EA4: =IF(Table1[[#This Row],[ASP price per unit_8]]<>0, Table1[[#This Row],[Drug Price_8]]/1.06*0.06, 0) -> 0 | EB4: 0 | EC4: 0 | ED4: 0 | EE4: 0 | EF4: 0 | EG4: 0 | EH4: =IF(ISNUMBER(SEARCH("/m2", Table1[[#This Row],[Drug units_9]])), Table1[[#This Row],[Drug dose_9]]*1.7, IF(ISNUMBER(SEARCH("/kg", Table1[[#This Row],[Drug units_9]])), Table1[[#This Row],[Drug dose_9]]*70, Table1[[#This Row],[Drug dose_9]])) -> 0 | EI4: =IFERROR(INDEX(Table2[ASP Price per Unit], MATCH(Table1[[#This Row],[Drug ROA_9]], Table2[Unique Drugs All ROA], 0)), "") ->  | EJ4: =IFERROR(INDEX(Table2[Price per unit], MATCH(Table1[[#This Row],[Drug ROA_9]], Table2[Unique Drugs All ROA], 0)), "") ->  | EK4: =IFERROR(INDEX(Table2[Unit], MATCH(Table1[[#This Row],[Drug ROA_9]], Table2[Unique Drugs All ROA], 0)), "") ->  | EL4: =IFERROR(IF(Table1[[#This Row],[Unit_9]]="post-SC admin price", Table1[[#This Row],[Price per unit_9]], IF(Table1[[#This Row],[Unit_9]]="pre-SC admin price", Table1[[#This Row],[Price per unit_9]], Table1[[#This Row],[Dose with Mass Multiplier_9]]*Table1[[#This Row],[Drug '# of doses_9 (for unlimited regimens, '# per year)]]*Table1[[#This Row],[Price per unit_9]])), 0) -> 0 | EM4: =IFERROR(IF(Table1[[#This Row],[Regimen type (0=unlimited, 1=time-limited)]]=1, Table1[[#This Row],[Drug Price per year_9]], IF(Table1[[#This Row],[Regimen type (0=unlimited, 1=time-limited)]]="1", Table1[[#This Row],[Drug Price per year_9]], IF(Table1[[#This Row],[Regimen type (0=unlimited, 1=time-limited)]]=0, Table1[[#This Row],[Drug Price per year_9]]/12, IF(Table1[[#This Row],[Regimen type (0=unlimited, 1=time-limited)]]="0", Table1[[#This Row],[Drug Price per year_9]]/12, "CHECK")))), 0) -> 0 | EN4: =IF(Table1[[#This Row],[ASP price per unit_9]]<>0, Table1[[#This Row],[Drug Price_9]]/1.06*0.06, 0) -> 0 | EO4: 0 | EP4: 0 | EQ4: 0 | ER4: 0 | ES4: 0 | ET4: 0 | EU4: =IF(ISNUMBER(SEARCH("/m2", Table1[[#This Row],[Drug units_10]])), Table1[[#This Row],[Drug dose_10]]*1.7, IF(ISNUMBER(SEARCH("/kg", Table1[[#This Row],[Drug units_10]])), Table1[[#This Row],[Drug dose_10]]*70, Table1[[#This Row],[Drug dose_10]])) -> 0 | EV4: =IFERROR(INDEX(Table2[ASP Price per Unit], MATCH(Table1[[#This Row],[Drug ROA_10]], Table2[Unique Drugs All ROA], 0)), "") ->  | EW4: =IFERROR(INDEX(Table2[Price per unit], MATCH(Table1[[#This Row],[Drug ROA_10]], Table2[Unique Drugs All ROA], 0)), "") ->  | EX4: =IFERROR(INDEX(Table2[Unit], MATCH(Table1[[#This Row],[Drug ROA_10]], Table2[Unique Drugs All ROA], 0)), "") ->  | EY4: =IFERROR(IF(Table1[[#This Row],[Unit_10]]="post-SC admin price", Table1[[#This Row],[Price per unit_10]], IF(Table1[[#This Row],[Unit_10]]="pre-SC admin price", Table1[[#This Row],[Price per unit_10]], Table1[[#This Row],[Dose with Mass Multiplier_10]]*Table1[[#This Row],[Drug '# of doses_10 (for unlimited regimens, '# per year)]]*Table1[[#This Row],[Price per unit_10]])), 0) -> 0 | EZ4: =IFERROR(IF(Table1[[#This Row],[Regimen type (0=unlimited, 1=time-limited)]]=1, Table1[[#This Row],[Drug Price per year_10]], IF(Table1[[#This Row],[Regimen type (0=unlimited, 1=time-limited)]]="1", Table1[[#This Row],[Drug Price per year_10]], IF(Table1[[#This Row],[Regimen type (0=unlimited, 1=time-limited)]]=0, Table1[[#This Row],[Drug Price per year_10]]/12, IF(Table1[[#This Row],[Regimen type (0=unlimited, 1=time-limited)]]="0", Table1[[#This Row],[Drug Price per year_10]]/12, "CHECK")))), 0) -> 0 | FA4: =IF(Table1[[#This Row],[ASP price per unit_10]]<>0, Table1[[#This Row],[Drug Price_10]]/1.06*0.06, 0) -> 0 | FB4: 0 | FC4: 0 | FD4: 0 | FE4: 0 | FF4: 0 | FG4: 0 | FH4: =IF(ISNUMBER(SEARCH("/m2", Table1[[#This Row],[Drug units_11]])), Table1[[#This Row],[Drug dose_11]]*1.7, IF(ISNUMBER(SEARCH("/kg", Table1[[#This Row],[Drug units_11]])), Table1[[#This Row],[Drug dose_11]]*70, Table1[[#This Row],[Drug dose_11]])) -> 0 | FI4: =IFERROR(INDEX(Table2[ASP Price per Unit], MATCH(Table1[[#This Row],[Drug ROA_11]], Table2[Unique Drugs All ROA], 0)), "") ->  | FJ4: =IFERROR(INDEX(Table2[Price per unit], MATCH(Table1[[#This Row],[Drug ROA_11]], Table2[Unique Drugs All ROA], 0)), "") ->  | FK4: =IFERROR(INDEX(Table2[Unit], MATCH(Table1[[#This Row],[Drug ROA_11]], Table2[Unique Drugs All ROA], 0)), "") ->  | FL4: =IFERROR(IF(Table1[[#This Row],[Unit_11]]="post-SC admin price", Table1[[#This Row],[Price per unit_11]], IF(Table1[[#This Row],[Unit_11]]="pre-SC admin price", Table1[[#This Row],[Price per unit_11]], Table1[[#This Row],[Dose with Mass Multiplier_11]]*Table1[[#This Row],[Drug '# of doses_11 (for unlimited regimens, '# per year)]]*Table1[[#This Row],[Price per unit_11]])), 0) -> 0 | FM4: =IFERROR(IF(Table1[[#This Row],[Regimen type (0=unlimited, 1=time-limited)]]=1, Table1[[#This Row],[Drug Price per year_11]], IF(Table1[[#This Row],[Regimen type (0=unlimited, 1=time-limited)]]="1", Table1[[#This Row],[Drug Price per year_11]], IF(Table1[[#This Row],[Regimen type (0=unlimited, 1=time-limited)]]=0, Table1[[#This Row],[Drug Price per year_11]]/12, IF(Table1[[#This Row],[Regimen type (0=unlimited, 1=time-limited)]]="0", Table1[[#This Row],[Drug Price per year_11]]/12, "CHECK")))), 0) -> 0 | FN4: =IF(Table1[[#This Row],[ASP price per unit_11]]<>0, Table1[[#This Row],[Drug Price_11]]/1.06*0.06, 0) -> 0 | FO4: =Table1[[#This Row],[Drug Price_1]] + Table1[[#This Row],[Drug Price_2]] + Table1[[#This Row],[Drug Price_3]]+ Table1[[#This Row],[Drug Price_4]]+ Table1[[#This Row],[Drug Price_5]]+ Table1[[#This Row],[Drug Price_6]]+ Table1[[#This Row],[Drug Price_7]]+ Table1[[#This Row],[Drug Price_8]]+ Table1[[#This Row],[Drug Price_9]]+ Table1[[#This Row],[Drug Price_10]]+ Table1[[#This Row],[Drug Price_11]] -> 30.246 | FP4: 0 | FQ4: 0 | FR4: 0 | FS4: 0 | FT4: =IF(Table1[[#This Row],[Emetic Risk (0=min, 1=low, 2=inter, 3=high)]]=0, SC_Admin_SpecialCases!$F$12*Table1[[#This Row],['# of supportive doses]], IF(Table1[[#This Row],[Emetic Risk (0=min, 1=low, 2=inter, 3=high)]]=1, SC_Admin_SpecialCases!$F$14*Table1[[#This Row],['# of supportive doses]], IF(Table1[[#This Row],[Emetic Risk (0=min, 1=low, 2=inter, 3=high)]]=2, SC_Admin_SpecialCases!$F$16*Table1[[#This Row],['# of supportive doses]], IF(Table1[[#This Row],[Emetic Risk (0=min, 1=low, 2=inter, 3=high)]]=3, SC_Admin_SpecialCases!$F$18*Table1[[#This Row],['# of supportive doses]], "CHECK")))) -> 0 | FU4: =IF(Table1[[#This Row],[Emetic Risk (0=min, 1=low, 2=inter, 3=high)]]=0, SC_Admin_SpecialCases!$F$13*Table1[[#This Row],['# of supportive doses]], IF(Table1[[#This Row],[Emetic Risk (0=min, 1=low, 2=inter, 3=high)]]=1, SC_Admin_SpecialCases!$F$15*Table1[[#This Row],['# of supportive doses]], IF(Table1[[#This Row],[Emetic Risk (0=min, 1=low, 2=inter, 3=high)]]=2, SC_Admin_SpecialCases!$F$17*Table1[[#This Row],['# of supportive doses]], IF(Table1[[#This Row],[Emetic Risk (0=min, 1=low, 2=inter, 3=high)]]=3, SC_Admin_SpecialCases!$F$19*Table1[[#This Row],['# of supportive doses]], "CHECK")))) -> 0 | FV4: =IF(Table1[[#This Row],[Growth Factor (0=low, 1=inter, 2=high)]]=0, SC_Admin_SpecialCases!$F$4*Table1[[#This Row],['# of GCSF doses]], IF(Table1[[#This Row],[Growth Factor (0=low, 1=inter, 2=high)]]=1, SC_Admin_SpecialCases!$F$6*Table1[[#This Row],['# of GCSF doses]], IF(Table1[[#This Row],[Growth Factor (0=low, 1=inter, 2=high)]]=2, SC_Admin_SpecialCases!$F$8*Table1[[#This Row],['# of GCSF doses]], "CHECK"))) -> 0 | FW4: =IF(Table1[[#This Row],[Growth Factor (0=low, 1=inter, 2=high)]]=0, SC_Admin_SpecialCases!$F$5*Table1[[#This Row],['# of GCSF doses]], IF(Table1[[#This Row],[Growth Factor (0=low, 1=inter, 2=high)]]=1, SC_Admin_SpecialCases!$F$7*Table1[[#This Row],['# of GCSF doses]], IF(Table1[[#This Row],[Growth Factor (0=low, 1=inter, 2=high)]]=2, SC_Admin_SpecialCases!$F$9*Table1[[#This Row],['# of GCSF doses]], "CHECK"))) -> 0 | FX4: =IF(Table1[[#This Row],[Regimen type (0=unlimited, 1=time-limited)]]=0, Table1[[#This Row],[Supportive Care, low margin]]/12, IF(Table1[[#This Row],[Regimen type (0=unlimited, 1=time-limited)]]="0", Table1[[#This Row],[Supportive Care, low margin]]/12, IF(Table1[[#This Row],[Regimen type (0=unlimited, 1=time-limited)]]=1, Table1[[#This Row],[Supportive Care, low margin]], IF(Table1[[#This Row],[Regimen type (0=unlimited, 1=time-limited)]]="1", Table1[[#This Row],[Supportive Care, low margin]], "CHECK")))) -> 0 | FY4: =IF(Table1[[#This Row],[Regimen type (0=unlimited, 1=time-limited)]]=0, Table1[[#This Row],[Supportive Care, high margin]]/12, IF(Table1[[#This Row],[Regimen type (0=unlimited, 1=time-limited)]]="0", Table1[[#This Row],[Supportive Care, high margin]]/12, IF(Table1[[#This Row],[Regimen type (0=unlimited, 1=time-limited)]]=1, Table1[[#This Row],[Supportive Care, high margin]], IF(Table1[[#This Row],[Regimen type (0=unlimited, 1=time-limited)]]="1", Table1[[#This Row],[Supportive Care, high margin]], "CHECK")))) -> 0 | FZ4: =IF(Table1[[#This Row],[Regimen type (0=unlimited, 1=time-limited)]]=0, Table1[[#This Row],[GF, low margin]]/12, IF(Table1[[#This Row],[Regimen type (0=unlimited, 1=time-limited)]]="0", Table1[[#This Row],[GF, low margin]]/12, IF(Table1[[#This Row],[Regimen type (0=unlimited, 1=time-limited)]]=1, Table1[[#This Row],[GF, low margin]], IF(Table1[[#This Row],[Regimen type (0=unlimited, 1=time-limited)]]="1", Table1[[#This Row],[GF, low margin]], "CHECK")))) -> 0 | GA4: =IF(Table1[[#This Row],[Regimen type (0=unlimited, 1=time-limited)]]=0, Table1[[#This Row],[GF, high margin]]/12, IF(Table1[[#This Row],[Regimen type (0=unlimited, 1=time-limited)]]="0", Table1[[#This Row],[GF, high margin]]/12, IF(Table1[[#This Row],[Regimen type (0=unlimited, 1=time-limited)]]=1, Table1[[#This Row],[GF, high margin]], IF(Table1[[#This Row],[Regimen type (0=unlimited, 1=time-limited)]]="1", Table1[[#This Row],[GF, high margin]], "CHECK")))) -> 0 | GB4: =Table1[[#This Row],[Supportive Care, low margin_adj]]/1.06*0.06 -> 0 | GC4: =Table1[[#This Row],[Supportive Care, high margin_adj]]/1.06*0.06 -> 0 | GD4: =Table1[[#This Row],[GF, low margin_adj]]/1.06*0.06 -> 0 | GE4: =Table1[[#This Row],[GF, high margin_adj]]/1.06*0.06 -> 0 | GF4: =IFERROR(IF(Table1[[#This Row],[Regimen type (0=unlimited, 1=time-limited)]]=0, Table1[[#This Row],[Drug '# of doses_1 (for unlimited regimens, '# per year)]]/12, IF(Table1[[#This Row],[Regimen type (0=unlimited, 1=time-limited)]]="0", Table1[[#This Row],[Drug '# of doses_1 (for unlimited regimens, '# per year)]]/12, IF(Table1[[#This Row],[Regimen type (0=unlimited, 1=time-limited)]]=1, Table1[[#This Row],[Drug '# of doses_1 (for unlimited regimens, '# per year)]], IF(Table1[[#This Row],[Regimen type (0=unlimited, 1=time-limited)]]="1", Table1[[#This Row],[Drug '# of doses_1 (for unlimited regimens, '# per year)]], "CHECK"))))*INDEX(Table3[Total Admin Cost], MATCH(Table1[[#This Row],[Drug ROA_1]], Table3[Drug ROA Admin], 0)), 0) -> 168.32 | GG4: =IFERROR(IF(Table1[[#This Row],[Regimen type (0=unlimited, 1=time-limited)]]=0, Table1[[#This Row],[Drug '# of doses_2 (for unlimited regimens, '# per year)]]/12, IF(Table1[[#This Row],[Regimen type (0=unlimited, 1=time-limited)]]="0", Table1[[#This Row],[Drug '# of doses_2 (for unlimited regimens, '# per year)]]/12, IF(Table1[[#This Row],[Regimen type (0=unlimited, 1=time-limited)]]=1, Table1[[#This Row],[Drug '# of doses_2 (for unlimited regimens, '# per year)]], IF(Table1[[#This Row],[Regimen type (0=unlimited, 1=time-limited)]]="1", Table1[[#This Row],[Drug '# of doses_2 (for unlimited regimens, '# per year)]], "CHECK"))))*INDEX(Table3[Total Admin Cost], MATCH(Table1[[#This Row],[Drug ROA_2]], Table3[Drug ROA Admin], 0)), 0) -> 0 | GH4: =IFERROR(IF(Table1[[#This Row],[Regimen type (0=unlimited, 1=time-limited)]]=0, Table1[[#This Row],[Drug '# of doses_3 (for unlimited regimens, '# per year)]]/12, IF(Table1[[#This Row],[Regimen type (0=unlimited, 1=time-limited)]]="0", Table1[[#This Row],[Drug '# of doses_3 (for unlimited regimens, '# per year)]]/12, IF(Table1[[#This Row],[Regimen type (0=unlimited, 1=time-limited)]]=1, Table1[[#This Row],[Drug '# of doses_3 (for unlimited regimens, '# per year)]], IF(Table1[[#This Row],[Regimen type (0=unlimited, 1=time-limited)]]="1", Table1[[#This Row],[Drug '# of doses_3 (for unlimited regimens, '# per year)]], "CHECK"))))*INDEX(Table3[Total Admin Cost], MATCH(Table1[[#This Row],[Drug ROA_3]], Table3[Drug ROA Admin], 0)), 0) -> 0 | GI4: =IFERROR(IF(Table1[[#This Row],[Regimen type (0=unlimited, 1=time-limited)]]=0, Table1[[#This Row],[Drug '# of doses_4 (for unlimited regimens, '# per year)]]/12, IF(Table1[[#This Row],[Regimen type (0=unlimited, 1=time-limited)]]="0", Table1[[#This Row],[Drug '# of doses_4 (for unlimited regimens, '# per year)]]/12, IF(Table1[[#This Row],[Regimen type (0=unlimited, 1=time-limited)]]=1, Table1[[#This Row],[Drug '# of doses_4 (for unlimited regimens, '# per year)]], IF(Table1[[#This Row],[Regimen type (0=unlimited, 1=time-limited)]]="1", Table1[[#This Row],[Drug '# of doses_4 (for unlimited regimens, '# per year)]], "CHECK"))))*INDEX(Table3[Total Admin Cost], MATCH(Table1[[#This Row],[Drug ROA_4]], Table3[Drug ROA Admin], 0)), 0) -> 0 | GJ4: =IFERROR(IF(Table1[[#This Row],[Regimen type (0=unlimited, 1=time-limited)]]=0, Table1[[#This Row],[Drug '# of doses_5 (for unlimited regimens, '# per year)]]/12, IF(Table1[[#This Row],[Regimen type (0=unlimited, 1=time-limited)]]="0", Table1[[#This Row],[Drug '# of doses_5 (for unlimited regimens, '# per year)]]/12, IF(Table1[[#This Row],[Regimen type (0=unlimited, 1=time-limited)]]=1, Table1[[#This Row],[Drug '# of doses_5 (for unlimited regimens, '# per year)]], IF(Table1[[#This Row],[Regimen type (0=unlimited, 1=time-limited)]]="1", Table1[[#This Row],[Drug '# of doses_5 (for unlimited regimens, '# per year)]], "CHECK"))))*INDEX(Table3[Total Admin Cost], MATCH(Table1[[#This Row],[Drug ROA_5]], Table3[Drug ROA Admin], 0)), 0) -> 0 | GK4: =IFERROR(IF(Table1[[#This Row],[Regimen type (0=unlimited, 1=time-limited)]]=0, Table1[[#This Row],[Drug '# of doses_6 (for unlimited regimens, '# per year)]]/12, IF(Table1[[#This Row],[Regimen type (0=unlimited, 1=time-limited)]]="0", Table1[[#This Row],[Drug '# of doses_6 (for unlimited regimens, '# per year)]]/12, IF(Table1[[#This Row],[Regimen type (0=unlimited, 1=time-limited)]]=1, Table1[[#This Row],[Drug '# of doses_6 (for unlimited regimens, '# per year)]], IF(Table1[[#This Row],[Regimen type (0=unlimited, 1=time-limited)]]="1", Table1[[#This Row],[Drug '# of doses_6 (for unlimited regimens, '# per year)]], "CHECK"))))*INDEX(Table3[Total Admin Cost], MATCH(Table1[[#This Row],[Drug ROA_6]], Table3[Drug ROA Admin], 0)), 0) -> 0 | GL4: =IFERROR(IF(Table1[[#This Row],[Regimen type (0=unlimited, 1=time-limited)]]=0, Table1[[#This Row],[Drug '# of doses_7 (for unlimited regimens, '# per year)]]/12, IF(Table1[[#This Row],[Regimen type (0=unlimited, 1=time-limited)]]="0", Table1[[#This Row],[Drug '# of doses_7 (for unlimited regimens, '# per year)]]/12, IF(Table1[[#This Row],[Regimen type (0=unlimited, 1=time-limited)]]=1, Table1[[#This Row],[Drug '# of doses_7 (for unlimited regimens, '# per year)]], IF(Table1[[#This Row],[Regimen type (0=unlimited, 1=time-limited)]]="1", Table1[[#This Row],[Drug '# of doses_7 (for unlimited regimens, '# per year)]], "CHECK"))))*INDEX(Table3[Total Admin Cost], MATCH(Table1[[#This Row],[Drug ROA_7]], Table3[Drug ROA Admin], 0)), 0) -> 0 | GM4: =IFERROR(IF(Table1[[#This Row],[Regimen type (0=unlimited, 1=time-limited)]]=0, Table1[[#This Row],[Drug '# of doses_8 (for unlimited regimens, '# per year)]]/12, IF(Table1[[#This Row],[Regimen type (0=unlimited, 1=time-limited)]]="0", Table1[[#This Row],[Drug '# of doses_8 (for unlimited regimens, '# per year)]]/12, IF(Table1[[#This Row],[Regimen type (0=unlimited, 1=time-limited)]]=1, Table1[[#This Row],[Drug '# of doses_8 (for unlimited regimens, '# per year)]], IF(Table1[[#This Row],[Regimen type (0=unlimited, 1=time-limited)]]="1", Table1[[#This Row],[Drug '# of doses_8 (for unlimited regimens, '# per year)]], "CHECK"))))*INDEX(Table3[Total Admin Cost], MATCH(Table1[[#This Row],[Drug ROA_8]], Table3[Drug ROA Admin], 0)), 0) -> 0 | GN4: =IFERROR(IF(Table1[[#This Row],[Regimen type (0=unlimited, 1=time-limited)]]=0, Table1[[#This Row],[Drug '# of doses_9 (for unlimited regimens, '# per year)]]/12, IF(Table1[[#This Row],[Regimen type (0=unlimited, 1=time-limited)]]="0", Table1[[#This Row],[Drug '# of doses_9 (for unlimited regimens, '# per year)]]/12, IF(Table1[[#This Row],[Regimen type (0=unlimited, 1=time-limited)]]=1, Table1[[#This Row],[Drug '# of doses_9 (for unlimited regimens, '# per year)]], IF(Table1[[#This Row],[Regimen type (0=unlimited, 1=time-limited)]]="1", Table1[[#This Row],[Drug '# of doses_9 (for unlimited regimens, '# per year)]], "CHECK"))))*INDEX(Table3[Total Admin Cost], MATCH(Table1[[#This Row],[Drug ROA_9]], Table3[Drug ROA Admin], 0)), 0) -> 0 | GO4: =IFERROR(IF(Table1[[#This Row],[Regimen type (0=unlimited, 1=time-limited)]]=0, Table1[[#This Row],[Drug '# of doses_10 (for unlimited regimens, '# per year)]]/12, IF(Table1[[#This Row],[Regimen type (0=unlimited, 1=time-limited)]]="0", Table1[[#This Row],[Drug '# of doses_10 (for unlimited regimens, '# per year)]]/12, IF(Table1[[#This Row],[Regimen type (0=unlimited, 1=time-limited)]]=1, Table1[[#This Row],[Drug '# of doses_10 (for unlimited regimens, '# per year)]], IF(Table1[[#This Row],[Regimen type (0=unlimited, 1=time-limited)]]="1", Table1[[#This Row],[Drug '# of doses_10 (for unlimited regimens, '# per year)]], "CHECK"))))*INDEX(Table3[Total Admin Cost], MATCH(Table1[[#This Row],[Drug ROA_10]], Table3[Drug ROA Admin], 0)), 0) -> 0 | GP4: =IFERROR(IF(Table1[[#This Row],[Regimen type (0=unlimited, 1=time-limited)]]=0, Table1[[#This Row],[Drug '# of doses_11 (for unlimited regimens, '# per year)]]/12, IF(Table1[[#This Row],[Regimen type (0=unlimited, 1=time-limited)]]="0", Table1[[#This Row],[Drug '# of doses_11 (for unlimited regimens, '# per year)]]/12, IF(Table1[[#This Row],[Regimen type (0=unlimited, 1=time-limited)]]=1, Table1[[#This Row],[Drug '# of doses_11 (for unlimited regimens, '# per year)]], IF(Table1[[#This Row],[Regimen type (0=unlimited, 1=time-limited)]]="1", Table1[[#This Row],[Drug '# of doses_11 (for unlimited regimens, '# per year)]], "CHECK"))))*INDEX(Table3[Total Admin Cost], MATCH(Table1[[#This Row],[Drug ROA_11]], Table3[Drug ROA Admin], 0)), 0) -> 0 | GQ4: =SUM(Table1[[#This Row],[Admin Drug 1]:[Admin Drug 11]]) -> 168.32
A5: Breast | B5: Breast | C5: 2.2016 | D5: Preoperative/adjuvant therapy regimens for HER2-negative disease | E5: Neoadjuvant | F5: 14001 | G5: Dose-dense AC (doxorubicin + cyclophosphamide) followed by paclitaxel every 2 weeks | H5: 4 | I5: 2 | J5: 4 | K5: 4 | L5: 2 | M5: =SUM(Table1[[#This Row],[Efficacy]:[Safety]]) -> 6 | N5: =SUM(Table1[[#This Row],[Efficacy]:[Consistency]]) -> 14 | O5: 1 | P5: 0 | Q5: 0 | R5: 2A | S5: First-line | T5: =IF(Table1[[#This Row],[Line of therapy]]="first-line", "0", IF(Table1[[#This Row],[Line of therapy]]="second-line or subsequent", "1", IF(Table1[[#This Row],[Line of therapy]]="second-line", "1", IF(Table1[[#This Row],[Line of therapy]]="third-line", "1", IF(Table1[[#This Row],[Line of therapy]]="fourth-line", "1", IF(Table1[[#This Row],[Line of therapy]]="fifth-line", "1", IF(Table1[[#This Row],[Line of therapy]]="sixth-line", "1", IF(Table1[[#This Row],[Line of therapy]]="persistent disease or progression", "1", IF(Table1[[#This Row],[Line of therapy]]="relapsed/refractory", "1", IF(Table1[[#This Row],[Line of therapy]]="subsequent", "1", IF(Table1[[#This Row],[Line of therapy]]="maintenance", "2", ""))))))))))) -> 0 | U5: 1 | V5: 0 | W5: =Table1[[#This Row],[Total regimen price]]+Table1[[#This Row],[Admin Total]] -> 3946.36 | X5: =Table1[[#This Row],[Total regimen price]]+Table1[[#This Row],[Supportive Care, high margin_adj]]+Table1[[#This Row],[GF, high margin_adj]]+Table1[[#This Row],[Admin Total]] -> 23451.832 | Y5: =Table1[[#This Row],[Total regimen price]]+Table1[[#This Row],[Supportive Care, low margin_adj]]+Table1[[#This Row],[GF, low margin_adj]]+Table1[[#This Row],[Admin Total]] -> 23223.924 | Z5: =Table1[[#This Row],[Physician margin_1]]+Table1[[#This Row],[Physician margin_2]]+Table1[[#This Row],[Physician margin_3]]+Table1[[#This Row],[Physician margin_4]]+Table1[[#This Row],[Physician margin_5]]+Table1[[#This Row],[Physician margin_6]]+Table1[[#This Row],[Physician margin_7]]+Table1[[#This Row],[Physician margin_8]]+Table1[[#This Row],[Physician margin_9]]+Table1[[#This Row],[Physician margin_10]]+Table1[[#This Row],[Physician margin_11]]+Table1[[#This Row],[Physician margin supportive Care, high margin_adj]]+Table1[[#This Row],[Physician margin GF, high margin_adj]] -> 1219.632 | AA5: =Table1[[#This Row],[Physician margin_1]]+Table1[[#This Row],[Physician margin_2]]+Table1[[#This Row],[Physician margin_3]]+Table1[[#This Row],[Physician margin_4]]+Table1[[#This Row],[Physician margin_5]]+Table1[[#This Row],[Physician margin_6]]+Table1[[#This Row],[Physician margin_7]]+Table1[[#This Row],[Physician margin_8]]+Table1[[#This Row],[Physician margin_9]]+Table1[[#This Row],[Physician margin_10]]+Table1[[#This Row],[Physician margin_11]]+Table1[[#This Row],[Physician margin supportive Care, low margin_adj]]+Table1[[#This Row],[Physician margin GF, low margin_adj]] -> 1206.731547 | AB5: Doxorubicin | AC5: IV | AD5: Doxorubicin IV | AE5: 60 | AF5: mg/m2 | AG5: 4 | AH5: =IF(ISNUMBER(SEARCH("/m2", Table1[[#This Row],[Drug units_1]])), Table1[[#This Row],[Drug dose_1]]*1.7, IF(ISNUMBER(SEARCH("/kg", Table1[[#This Row],[Drug units_1]])), Table1[[#This Row],[Drug dose_1]]*70, Table1[[#This Row],[Drug dose_1]])) -> 102 | AI5: =IFERROR(INDEX(Table2[ASP Price per Unit], MATCH(Table1[[#This Row],[Drug ROA_1]], Table2[Unique Drugs All ROA], 0)), "") -> 0.2415 | AJ5: =IFERROR(INDEX(Table2[Price per unit], MATCH(Table1[[#This Row],[Drug ROA_1]], Table2[Unique Drugs All ROA], 0)), "") -> 0.2415 | AK5: =IFERROR(INDEX(Table2[Unit], MATCH(Table1[[#This Row],[Drug ROA_1]], Table2[Unique Drugs All ROA], 0)), "") -> MG | AL5: =IFERROR(IF(Table1[[#This Row],[Unit_1]]="post-SC admin price", Table1[[#This Row],[Price per unit_1]], IF(Table1[[#This Row],[Unit_1]]="pre-SC admin price", Table1[[#This Row],[Price per unit_1]], Table1[[#This Row],[Dose with Mass Multiplier_1]]*Table1[[#This Row],[Drug '# of doses_1 (for unlimited regimens, '# per year)]]*Table1[[#This Row],[Price per unit_1]])), 0) -> 98.532 | AM5: =IFERROR(IF(Table1[[#This Row],[Regimen type (0=unlimited, 1=time-limited)]]=1, Table1[[#This Row],[Drug Price per year_1]], IF(Table1[[#This Row],[Regimen type (0=unlimited, 1=time-limited)]]="1", Table1[[#This Row],[Drug Price per year_1]], IF(Table1[[#This Row],[Regimen type (0=unlimited, 1=time-limited)]]=0, Table1[[#This Row],[Drug Price per year_1]]/12, IF(Table1[[#This Row],[Regimen type (0=unlimited, 1=time-limited)]]="0", Table1[[#This Row],[Drug Price per year_1]]/12, "CHECK")))), 0) -> 98.532 | AN5: =IF(Table1[[#This Row],[ASP price per unit_1]]<>0, Table1[[#This Row],[Drug Price_1]]/1.06*0.06, 0) -> 5.577283019 | AO5: Cyclophosphamide | AP5: IV | AQ5: Cyclophosphamide IV | AR5: 600 | AS5: mg/m2 | AT5: 4 | AU5: =IF(ISNUMBER(SEARCH("/m2", Table1[[#This Row],[Drug units_2]])), Table1[[#This Row],[Drug dose_2]]*1.7, IF(ISNUMBER(SEARCH("/kg", Table1[[#This Row],[Drug units_2]])), Table1[[#This Row],[Drug dose_2]]*70, Table1[[#This Row],[Drug dose_2]])) -> 1020 | AV5: =IFERROR(INDEX(Table2[ASP Price per Unit], MATCH(Table1[[#This Row],[Drug ROA_2]], Table2[Unique Drugs All ROA], 0)), "") -> 0.4231 | AW5: =IFERROR(INDEX(Table2[Price per unit], MATCH(Table1[[#This Row],[Drug ROA_2]], Table2[Unique Drugs All ROA], 0)), "") -> 0.4231 | AX5: =IFERROR(INDEX(Table2[Unit], MATCH(Table1[[#This Row],[Drug ROA_2]], Table2[Unique Drugs All ROA], 0)), "") -> MG | AY5: =IFERROR(IF(Table1[[#This Row],[Unit_2]]="post-SC admin price", Table1[[#This Row],[Price per unit_2]], IF(Table1[[#This Row],[Unit_2]]="pre-SC admin price", Table1[[#This Row],[Price per unit_2]], Table1[[#This Row],[Dose with Mass Multiplier_2]]*Table1[[#This Row],[Drug '# of doses_2 (for unlimited regimens, '# per year)]]*Table1[[#This Row],[Price per unit_2]])), 0) -> 1726.248 | AZ5: =IFERROR(IF(Table1[[#This Row],[Regimen type (0=unlimited, 1=time-limited)]]=1, Table1[[#This Row],[Drug Price per year_2]], IF(Table1[[#This Row],[Regimen type (0=unlimited, 1=time-limited)]]="1", Table1[[#This Row],[Drug Price per year_2]], IF(Table1[[#This Row],[Regimen type (0=unlimited, 1=time-limited)]]=0, Table1[[#This Row],[Drug Price per year_2]]/12, IF(Table1[[#This Row],[Regimen type (0=unlimited, 1=time-limited)]]="0", Table1[[#This Row],[Drug Price per year_2]]/12, "CHECK")))), 0) -> 1726.248 | BA5: =IF(Table1[[#This Row],[ASP price per unit_2]]<>0, Table1[[#This Row],[Drug Price_2]]/1.06*0.06, 0) -> 97.71215094 | BB5: Paclitaxel | BC5: IV | BD5: Paclitaxel IV | BE5: 175 | BF5: mg/m2 | BG5: 4 | BH5: =IF(ISNUMBER(SEARCH("/m2", Table1[[#This Row],[Drug units_3]])), Table1[[#This Row],[Drug dose_3]]*1.7, IF(ISNUMBER(SEARCH("/kg", Table1[[#This Row],[Drug units_3]])), Table1[[#This Row],[Drug dose_3]]*70, Table1[[#This Row],[Drug dose_3]])) -> 297.5 | BI5: =IFERROR(INDEX(Table2[ASP Price per Unit], MATCH(Table1[[#This Row],[Drug ROA_3]], Table2[Unique Drugs All ROA], 0)), "") -> 0.182 | BJ5: =IFERROR(INDEX(Table2[Price per unit], MATCH(Table1[[#This Row],[Drug ROA_3]], Table2[Unique Drugs All ROA], 0)), "") -> 0.182 | BK5: =IFERROR(INDEX(Table2[Unit], MATCH(Table1[[#This Row],[Drug ROA_3]], Table2[Unique Drugs All ROA], 0)), "") -> MG | BL5: =IFERROR(IF(Table1[[#This Row],[Unit_3]]="post-SC admin price", Table1[[#This Row],[Price per unit_3]], IF(Table1[[#This Row],[Unit_3]]="pre-SC admin price", Table1[[#This Row],[Price per unit_3]], Table1[[#This Row],[Dose with Mass Multiplier_3]]*Table1[[#This Row],[Drug '# of doses_3 (for unlimited regimens, '# per year)]]*Table1[[#This Row],[Price per unit_3]])), 0) -> 216.58 | BM5: =IFERROR(IF(Table1[[#This Row],[Regimen type (0=unlimited, 1=time-limited)]]=1, Table1[[#This Row],[Drug Price per year_3]], IF(Table1[[#This Row],[Regimen type (0=unlimited, 1=time-limited)]]="1", Table1[[#This Row],[Drug Price per year_3]], IF(Table1[[#This Row],[Regimen type (0=unlimited, 1=time-limited)]]=0, Table1[[#This Row],[Drug Price per year_3]]/12, IF(Table1[[#This Row],[Regimen type (0=unlimited, 1=time-limited)]]="0", Table1[[#This Row],[Drug Price per year_3]]/12, "CHECK")))), 0) -> 216.58 | BN5: =IF(Table1[[#This Row],[ASP price per unit_3]]<>0, Table1[[#This Row],[Drug Price_3]]/1.06*0.06, 0) -> 12.25924528 | BO5: 0 | BP5: 0 | BR5: 0 | BS5: 0 | BT5: 0 | BU5: =IF(ISNUMBER(SEARCH("/m2", Table1[[#This Row],[Drug units_4]])), Table1[[#This Row],[Drug dose_4]]*1.7, IF(ISNUMBER(SEARCH("/kg", Table1[[#This Row],[Drug units_4]])), Table1[[#This Row],[Drug dose_4]]*70, Table1[[#This Row],[Drug dose_4]])) -> 0 | BV5: =IFERROR(INDEX(Table2[ASP Price per Unit], MATCH(Table1[[#This Row],[Drug ROA_4]], Table2[Unique Drugs All ROA], 0)), "") ->  | BW5: =IFERROR(INDEX(Table2[Price per unit], MATCH(Table1[[#This Row],[Drug ROA_4]], Table2[Unique Drugs All ROA], 0)), "") ->  | BX5: =IFERROR(INDEX(Table2[Unit], MATCH(Table1[[#This Row],[Drug ROA_4]], Table2[Unique Drugs All ROA], 0)), "") ->  | BY5: =IFERROR(IF(Table1[[#This Row],[Unit_4]]="post-SC admin price", Table1[[#This Row],[Price per unit_4]], IF(Table1[[#This Row],[Unit_4]]="pre-SC admin price", Table1[[#This Row],[Price per unit_4]], Table1[[#This Row],[Dose with Mass Multiplier_4]]*Table1[[#This Row],[Drug '# of doses_4 (for unlimited regimens, '# per year)]]*Table1[[#This Row],[Price per unit_4]])), 0) -> 0 | BZ5: =IFERROR(IF(Table1[[#This Row],[Regimen type (0=unlimited, 1=time-limited)]]=1, Table1[[#This Row],[Drug Price per year_4]], IF(Table1[[#This Row],[Regimen type (0=unlimited, 1=time-limited)]]="1", Table1[[#This Row],[Drug Price per year_4]], IF(Table1[[#This Row],[Regimen type (0=unlimited, 1=time-limited)]]=0, Table1[[#This Row],[Drug Price per year_4]]/12, IF(Table1[[#This Row],[Regimen type (0=unlimited, 1=time-limited)]]="0", Table1[[#This Row],[Drug Price per year_4]]/12, "CHECK")))), 0) -> 0 | CA5: =IF(Table1[[#This Row],[ASP price per unit_4]]<>0, Table1[[#This Row],[Drug Price_4]]/1.06*0.06, 0) -> 0 | CB5: 0 | CC5: 0 | CE5: 0 | CF5: 0 | CG5: 0 | CH5: =IF(ISNUMBER(SEARCH("/m2", Table1[[#This Row],[Drug units_5]])), Table1[[#This Row],[Drug dose_5]]*1.7, IF(ISNUMBER(SEARCH("/kg", Table1[[#This Row],[Drug units_5]])), Table1[[#This Row],[Drug dose_5]]*70, Table1[[#This Row],[Drug dose_5]])) -> 0 | CI5: =IFERROR(INDEX(Table2[ASP Price per Unit], MATCH(Table1[[#This Row],[Drug ROA_5]], Table2[Unique Drugs All ROA], 0)), "") ->  | CJ5: =IFERROR(INDEX(Table2[Price per unit], MATCH(Table1[[#This Row],[Drug ROA_5]], Table2[Unique Drugs All ROA], 0)), "") ->  | CK5: =IFERROR(INDEX(Table2[Unit], MATCH(Table1[[#This Row],[Drug ROA_5]], Table2[Unique Drugs All ROA], 0)), "") ->  | CL5: =IFERROR(IF(Table1[[#This Row],[Unit_5]]="post-SC admin price", Table1[[#This Row],[Price per unit_5]], IF(Table1[[#This Row],[Unit_5]]="pre-SC admin price", Table1[[#This Row],[Price per unit_5]], Table1[[#This Row],[Dose with Mass Multiplier_5]]*Table1[[#This Row],[Drug '# of doses_5 (for unlimited regimens, '# per year)]]*Table1[[#This Row],[Price per unit_5]])), 0) -> 0 | CM5: =IFERROR(IF(Table1[[#This Row],[Regimen type (0=unlimited, 1=time-limited)]]=1, Table1[[#This Row],[Drug Price per year_5]], IF(Table1[[#This Row],[Regimen type (0=unlimited, 1=time-limited)]]="1", Table1[[#This Row],[Drug Price per year_5]], IF(Table1[[#This Row],[Regimen type (0=unlimited, 1=time-limited)]]=0, Table1[[#This Row],[Drug Price per year_5]]/12, IF(Table1[[#This Row],[Regimen type (0=unlimited, 1=time-limited)]]="0", Table1[[#This Row],[Drug Price per year_5]]/12, "CHECK")))), 0) -> 0 | CN5: =IF(Table1[[#This Row],[ASP price per unit_5]]<>0, Table1[[#This Row],[Drug Price_5]]/1.06*0.06, 0) -> 0 | CO5: 0 | CP5: 0 | CR5: 0 | CS5: 0 | CT5: 0 | CU5: =IF(ISNUMBER(SEARCH("/m2", Table1[[#This Row],[Drug units_6]])), Table1[[#This Row],[Drug dose_6]]*1.7, IF(ISNUMBER(SEARCH("/kg", Table1[[#This Row],[Drug units_6]])), Table1[[#This Row],[Drug dose_6]]*70, Table1[[#This Row],[Drug dose_6]])) -> 0 | CV5: =IFERROR(INDEX(Table2[ASP Price per Unit], MATCH(Table1[[#This Row],[Drug ROA_6]], Table2[Unique Drugs All ROA], 0)), "") ->  | CW5: =IFERROR(INDEX(Table2[Price per unit], MATCH(Table1[[#This Row],[Drug ROA_6]], Table2[Unique Drugs All ROA], 0)), "") ->  | CX5: =IFERROR(INDEX(Table2[Unit], MATCH(Table1[[#This Row],[Drug ROA_6]], Table2[Unique Drugs All ROA], 0)), "") ->  | CY5: =IFERROR(IF(Table1[[#This Row],[Unit_6]]="post-SC admin price", Table1[[#This Row],[Price per unit_6]], IF(Table1[[#This Row],[Unit_6]]="pre-SC admin price", Table1[[#This Row],[Price per unit_6]], Table1[[#This Row],[Dose with Mass Multiplier_6]]*Table1[[#This Row],[Drug '# of doses_6 (for unlimited regimens, '# per year)]]*Table1[[#This Row],[Price per unit_6]])), 0) -> 0 | CZ5: =IFERROR(IF(Table1[[#This Row],[Regimen type (0=unlimited, 1=time-limited)]]=1, Table1[[#This Row],[Drug Price per year_6]], IF(Table1[[#This Row],[Regimen type (0=unlimited, 1=time-limited)]]="1", Table1[[#This Row],[Drug Price per year_6]], IF(Table1[[#This Row],[Regimen type (0=unlimited, 1=time-limited)]]=0, Table1[[#This Row],[Drug Price per year_6]]/12, IF(Table1[[#This Row],[Regimen type (0=unlimited, 1=time-limited)]]="0", Table1[[#This Row],[Drug Price per year_6]]/12, "CHECK")))), 0) -> 0 | DA5: =IF(Table1[[#This Row],[ASP price per unit_6]]<>0, Table1[[#This Row],[Drug Price_6]]/1.06*0.06, 0) -> 0 | DB5: 0 | DC5: 0 | DE5: 0 | DF5: 0 | DG5: 0 | DH5: =IF(ISNUMBER(SEARCH("/m2", Table1[[#This Row],[Drug units_7]])), Table1[[#This Row],[Drug dose_7]]*1.7, IF(ISNUMBER(SEARCH("/kg", Table1[[#This Row],[Drug units_7]])), Table1[[#This Row],[Drug dose_7]]*70, Table1[[#This Row],[Drug dose_7]])) -> 0 | DI5: =IFERROR(INDEX(Table2[ASP Price per Unit], MATCH(Table1[[#This Row],[Drug ROA_7]], Table2[Unique Drugs All ROA], 0)), "") ->  | DJ5: =IFERROR(INDEX(Table2[Price per unit], MATCH(Table1[[#This Row],[Drug ROA_7]], Table2[Unique Drugs All ROA], 0)), "") ->  | DK5: =IFERROR(INDEX(Table2[Unit], MATCH(Table1[[#This Row],[Drug ROA_7]], Table2[Unique Drugs All ROA], 0)), "") ->  | DL5: =IFERROR(IF(Table1[[#This Row],[Unit_7]]="post-SC admin price", Table1[[#This Row],[Price per unit_7]], IF(Table1[[#This Row],[Unit_7]]="pre-SC admin price", Table1[[#This Row],[Price per unit_7]], Table1[[#This Row],[Dose with Mass Multiplier_7]]*Table1[[#This Row],[Drug '# of doses_7 (for unlimited regimens, '# per year)]]*Table1[[#This Row],[Price per unit_7]])), 0) -> 0 | DM5: =IFERROR(IF(Table1[[#This Row],[Regimen type (0=unlimited, 1=time-limited)]]=1, Table1[[#This Row],[Drug Price per year_7]], IF(Table1[[#This Row],[Regimen type (0=unlimited, 1=time-limited)]]="1", Table1[[#This Row],[Drug Price per year_7]], IF(Table1[[#This Row],[Regimen type (0=unlimited, 1=time-limited)]]=0, Table1[[#This Row],[Drug Price per year_7]]/12, IF(Table1[[#This Row],[Regimen type (0=unlimited, 1=time-limited)]]="0", Table1[[#This Row],[Drug Price per year_7]]/12, "CHECK")))), 0) -> 0 | DN5: =IF(Table1[[#This Row],[ASP price per unit_7]]<>0, Table1[[#This Row],[Drug Price_7]]/1.06*0.06, 0) -> 0 | DO5: 0 | DP5: 0 | DR5: 0 | DS5: 0 | DT5: 0 | DU5: =IF(ISNUMBER(SEARCH("/m2", Table1[[#This Row],[Drug units_8]])), Table1[[#This Row],[Drug dose_8]]*1.7, IF(ISNUMBER(SEARCH("/kg", Table1[[#This Row],[Drug units_8]])), Table1[[#This Row],[Drug dose_8]]*70, Table1[[#This Row],[Drug dose_8]])) -> 0 | DV5: =IFERROR(INDEX(Table2[ASP Price per Unit], MATCH(Table1[[#This Row],[Drug ROA_8]], Table2[Unique Drugs All ROA], 0)), "") ->  | DW5: =IFERROR(INDEX(Table2[Price per unit], MATCH(Table1[[#This Row],[Drug ROA_8]], Table2[Unique Drugs All ROA], 0)), "") ->  | DX5: =IFERROR(INDEX(Table2[Unit], MATCH(Table1[[#This Row],[Drug ROA_8]], Table2[Unique Drugs All ROA], 0)), "") ->  | DY5: =IFERROR(IF(Table1[[#This Row],[Unit_8]]="post-SC admin price", Table1[[#This Row],[Price per unit_8]], IF(Table1[[#This Row],[Unit_8]]="pre-SC admin price", Table1[[#This Row],[Price per unit_8]], Table1[[#This Row],[Dose with Mass Multiplier_8]]*Table1[[#This Row],[Drug '# of doses_8 (for unlimited regimens, '# per year)]]*Table1[[#This Row],[Price per unit_8]])), 0) -> 0 | DZ5: =IFERROR(IF(Table1[[#This Row],[Regimen type (0=unlimited, 1=time-limited)]]=1, Table1[[#This Row],[Drug Price per year_8]], IF(Table1[[#This Row],[Regimen type (0=unlimited, 1=time-limited)]]="1", Table1[[#This Row],[Drug Price per year_8]], IF(Table1[[#This Row],[Regimen type (0=unlimited, 1=time-limited)]]=0, Table1[[#This Row],[Drug Price per year_8]]/12, IF(Table1[[#This Row],[Regimen type (0=unlimited, 1=time-limited)]]="0", Table1[[#This Row],[Drug Price per year_8]]/12, "CHECK")))), 0) -> 0 | EA5: =IF(Table1[[#This Row],[ASP price per unit_8]]<>0, Table1[[#This Row],[Drug Price_8]]/1.06*0.06, 0) -> 0 | EE5: 0 | EH5: =IF(ISNUMBER(SEARCH("/m2", Table1[[#This Row],[Drug units_9]])), Table1[[#This Row],[Drug dose_9]]*1.7, IF(ISNUMBER(SEARCH("/kg", Table1[[#This Row],[Drug units_9]])), Table1[[#This Row],[Drug dose_9]]*70, Table1[[#This Row],[Drug dose_9]])) -> 0 | EI5: =IFERROR(INDEX(Table2[ASP Price per Unit], MATCH(Table1[[#This Row],[Drug ROA_9]], Table2[Unique Drugs All ROA], 0)), "") ->  | EJ5: =IFERROR(INDEX(Table2[Price per unit], MATCH(Table1[[#This Row],[Drug ROA_9]], Table2[Unique Drugs All ROA], 0)), "") ->  | EK5: =IFERROR(INDEX(Table2[Unit], MATCH(Table1[[#This Row],[Drug ROA_9]], Table2[Unique Drugs All ROA], 0)), "") ->  | EL5: =IFERROR(IF(Table1[[#This Row],[Unit_9]]="post-SC admin price", Table1[[#This Row],[Price per unit_9]], IF(Table1[[#This Row],[Unit_9]]="pre-SC admin price", Table1[[#This Row],[Price per unit_9]], Table1[[#This Row],[Dose with Mass Multiplier_9]]*Table1[[#This Row],[Drug '# of doses_9 (for unlimited regimens, '# per year)]]*Table1[[#This Row],[Price per unit_9]])), 0) -> 0 | EM5: =IFERROR(IF(Table1[[#This Row],[Regimen type (0=unlimited, 1=time-limited)]]=1, Table1[[#This Row],[Drug Price per year_9]], IF(Table1[[#This Row],[Regimen type (0=unlimited, 1=time-limited)]]="1", Table1[[#This Row],[Drug Price per year_9]], IF(Table1[[#This Row],[Regimen type (0=unlimited, 1=time-limited)]]=0, Table1[[#This Row],[Drug Price per year_9]]/12, IF(Table1[[#This Row],[Regimen type (0=unlimited, 1=time-limited)]]="0", Table1[[#This Row],[Drug Price per year_9]]/12, "CHECK")))), 0) -> 0 | EN5: =IF(Table1[[#This Row],[ASP price per unit_9]]<>0, Table1[[#This Row],[Drug Price_9]]/1.06*0.06, 0) -> 0 | EO5: 0 | EP5: 0 | ER5: 0 | ES5: 0 | ET5: 0 | EU5: =IF(ISNUMBER(SEARCH("/m2", Table1[[#This Row],[Drug units_10]])), Table1[[#This Row],[Drug dose_10]]*1.7, IF(ISNUMBER(SEARCH("/kg", Table1[[#This Row],[Drug units_10]])), Table1[[#This Row],[Drug dose_10]]*70, Table1[[#This Row],[Drug dose_10]])) -> 0 | EV5: =IFERROR(INDEX(Table2[ASP Price per Unit], MATCH(Table1[[#This Row],[Drug ROA_10]], Table2[Unique Drugs All ROA], 0)), "") ->  | EW5: =IFERROR(INDEX(Table2[Price per unit], MATCH(Table1[[#This Row],[Drug ROA_10]], Table2[Unique Drugs All ROA], 0)), "") ->  | EX5: =IFERROR(INDEX(Table2[Unit], MATCH(Table1[[#This Row],[Drug ROA_10]], Table2[Unique Drugs All ROA], 0)), "") ->  | EY5: =IFERROR(IF(Table1[[#This Row],[Unit_10]]="post-SC admin price", Table1[[#This Row],[Price per unit_10]], IF(Table1[[#This Row],[Unit_10]]="pre-SC admin price", Table1[[#This Row],[Price per unit_10]], Table1[[#This Row],[Dose with Mass Multiplier_10]]*Table1[[#This Row],[Drug '# of doses_10 (for unlimited regimens, '# per year)]]*Table1[[#This Row],[Price per unit_10]])), 0) -> 0 | EZ5: =IFERROR(IF(Table1[[#This Row],[Regimen type (0=unlimited, 1=time-limited)]]=1, Table1[[#This Row],[Drug Price per year_10]], IF(Table1[[#This Row],[Regimen type (0=unlimited, 1=time-limited)]]="1", Table1[[#This Row],[Drug Price per year_10]], IF(Table1[[#This Row],[Regimen type (0=unlimited, 1=time-limited)]]=0, Table1[[#This Row],[Drug Price per year_10]]/12, IF(Table1[[#This Row],[Regimen type (0=unlimited, 1=time-limited)]]="0", Table1[[#This Row],[Drug Price per year_10]]/12, "CHECK")))), 0) -> 0 | FA5: =IF(Table1[[#This Row],[ASP price per unit_10]]<>0, Table1[[#This Row],[Drug Price_10]]/1.06*0.06, 0) -> 0 | FB5: 0 | FC5: 0 | FE5: 0 | FF5: 0 | FG5: 0 | FH5: =IF(ISNUMBER(SEARCH("/m2", Table1[[#This Row],[Drug units_11]])), Table1[[#This Row],[Drug dose_11]]*1.7, IF(ISNUMBER(SEARCH("/kg", Table1[[#This Row],[Drug units_11]])), Table1[[#This Row],[Drug dose_11]]*70, Table1[[#This Row],[Drug dose_11]])) -> 0 | FI5: =IFERROR(INDEX(Table2[ASP Price per Unit], MATCH(Table1[[#This Row],[Drug ROA_11]], Table2[Unique Drugs All ROA], 0)), "") ->  | FJ5: =IFERROR(INDEX(Table2[Price per unit], MATCH(Table1[[#This Row],[Drug ROA_11]], Table2[Unique Drugs All ROA], 0)), "") ->  | FK5: =IFERROR(INDEX(Table2[Unit], MATCH(Table1[[#This Row],[Drug ROA_11]], Table2[Unique Drugs All ROA], 0)), "") ->  | FL5: =IFERROR(IF(Table1[[#This Row],[Unit_11]]="post-SC admin price", Table1[[#This Row],[Price per unit_11]], IF(Table1[[#This Row],[Unit_11]]="pre-SC admin price", Table1[[#This Row],[Price per unit_11]], Table1[[#This Row],[Dose with Mass Multiplier_11]]*Table1[[#This Row],[Drug '# of doses_11 (for unlimited regimens, '# per year)]]*Table1[[#This Row],[Price per unit_11]])), 0) -> 0 | FM5: =IFERROR(IF(Table1[[#This Row],[Regimen type (0=unlimited, 1=time-limited)]]=1, Table1[[#This Row],[Drug Price per year_11]], IF(Table1[[#This Row],[Regimen type (0=unlimited, 1=time-limited)]]="1", Table1[[#This Row],[Drug Price per year_11]], IF(Table1[[#This Row],[Regimen type (0=unlimited, 1=time-limited)]]=0, Table1[[#This Row],[Drug Price per year_11]]/12, IF(Table1[[#This Row],[Regimen type (0=unlimited, 1=time-limited)]]="0", Table1[[#This Row],[Drug Price per year_11]]/12, "CHECK")))), 0) -> 0 | FN5: =IF(Table1[[#This Row],[ASP price per unit_11]]<>0, Table1[[#This Row],[Drug Price_11]]/1.06*0.06, 0) -> 0 | FO5: =Table1[[#This Row],[Drug Price_1]] + Table1[[#This Row],[Drug Price_2]] + Table1[[#This Row],[Drug Price_3]]+ Table1[[#This Row],[Drug Price_4]]+ Table1[[#This Row],[Drug Price_5]]+ Table1[[#This Row],[Drug Price_6]]+ Table1[[#This Row],[Drug Price_7]]+ Table1[[#This Row],[Drug Price_8]]+ Table1[[#This Row],[Drug Price_9]]+ Table1[[#This Row],[Drug Price_10]]+ Table1[[#This Row],[Drug Price_11]] -> 2041.36 | FP5: 3 | FQ5: 4 | FR5: 2 | FS5: 4 | FT5: =IF(Table1[[#This Row],[Emetic Risk (0=min, 1=low, 2=inter, 3=high)]]=0, SC_Admin_SpecialCases!$F$12*Table1[[#This Row],['# of supportive doses]], IF(Table1[[#This Row],[Emetic Risk (0=min, 1=low, 2=inter, 3=high)]]=1, SC_Admin_SpecialCases!$F$14*Table1[[#This Row],['# of supportive doses]], IF(Table1[[#This Row],[Emetic Risk (0=min, 1=low, 2=inter, 3=high)]]=2, SC_Admin_SpecialCases!$F$16*Table1[[#This Row],['# of supportive doses]], IF(Table1[[#This Row],[Emetic Risk (0=min, 1=low, 2=inter, 3=high)]]=3, SC_Admin_SpecialCases!$F$18*Table1[[#This Row],['# of supportive doses]], "CHECK")))) -> 2808.632 | FU5: =IF(Table1[[#This Row],[Emetic Risk (0=min, 1=low, 2=inter, 3=high)]]=0, SC_Admin_SpecialCases!$F$13*Table1[[#This Row],['# of supportive doses]], IF(Table1[[#This Row],[Emetic Risk (0=min, 1=low, 2=inter, 3=high)]]=1, SC_Admin_SpecialCases!$F$15*Table1[[#This Row],['# of supportive doses]], IF(Table1[[#This Row],[Emetic Risk (0=min, 1=low, 2=inter, 3=high)]]=2, SC_Admin_SpecialCases!$F$17*Table1[[#This Row],['# of supportive doses]], IF(Table1[[#This Row],[Emetic Risk (0=min, 1=low, 2=inter, 3=high)]]=3, SC_Admin_SpecialCases!$F$19*Table1[[#This Row],['# of supportive doses]], "CHECK")))) -> 3036.54 | FV5: =IF(Table1[[#This Row],[Growth Factor (0=low, 1=inter, 2=high)]]=0, SC_Admin_SpecialCases!$F$4*Table1[[#This Row],['# of GCSF doses]], IF(Table1[[#This Row],[Growth Factor (0=low, 1=inter, 2=high)]]=1, SC_Admin_SpecialCases!$F$6*Table1[[#This Row],['# of GCSF doses]], IF(Table1[[#This Row],[Growth Factor (0=low, 1=inter, 2=high)]]=2, SC_Admin_SpecialCases!$F$8*Table1[[#This Row],['# of GCSF doses]], "CHECK"))) -> 16468.932 | FW5: =IF(Table1[[#This Row],[Growth Factor (0=low, 1=inter, 2=high)]]=0, SC_Admin_SpecialCases!$F$5*Table1[[#This Row],['# of GCSF doses]], IF(Table1[[#This Row],[Growth Factor (0=low, 1=inter, 2=high)]]=1, SC_Admin_SpecialCases!$F$7*Table1[[#This Row],['# of GCSF doses]], IF(Table1[[#This Row],[Growth Factor (0=low, 1=inter, 2=high)]]=2, SC_Admin_SpecialCases!$F$9*Table1[[#This Row],['# of GCSF doses]], "CHECK"))) -> 16468.932 | FX5: =IF(Table1[[#This Row],[Regimen type (0=unlimited, 1=time-limited)]]=0, Table1[[#This Row],[Supportive Care, low margin]]/12, IF(Table1[[#This Row],[Regimen type (0=unlimited, 1=time-limited)]]="0", Table1[[#This Row],[Supportive Care, low margin]]/12, IF(Table1[[#This Row],[Regimen type (0=unlimited, 1=time-limited)]]=1, Table1[[#This Row],[Supportive Care, low margin]], IF(Table1[[#This Row],[Regimen type (0=unlimited, 1=time-limited)]]="1", Table1[[#This Row],[Supportive Care, low margin]], "CHECK")))) -> 2808.632 | FY5: =IF(Table1[[#This Row],[Regimen type (0=unlimited, 1=time-limited)]]=0, Table1[[#This Row],[Supportive Care, high margin]]/12, IF(Table1[[#This Row],[Regimen type (0=unlimited, 1=time-limited)]]="0", Table1[[#This Row],[Supportive Care, high margin]]/12, IF(Table1[[#This Row],[Regimen type (0=unlimited, 1=time-limited)]]=1, Table1[[#This Row],[Supportive Care, high margin]], IF(Table1[[#This Row],[Regimen type (0=unlimited, 1=time-limited)]]="1", Table1[[#This Row],[Supportive Care, high margin]], "CHECK")))) -> 3036.54 | FZ5: =IF(Table1[[#This Row],[Regimen type (0=unlimited, 1=time-limited)]]=0, Table1[[#This Row],[GF, low margin]]/12, IF(Table1[[#This Row],[Regimen type (0=unlimited, 1=time-limited)]]="0", Table1[[#This Row],[GF, low margin]]/12, IF(Table1[[#This Row],[Regimen type (0=unlimited, 1=time-limited)]]=1, Table1[[#This Row],[GF, low margin]], IF(Table1[[#This Row],[Regimen type (0=unlimited, 1=time-limited)]]="1", Table1[[#This Row],[GF, low margin]], "CHECK")))) -> 16468.932 | GA5: =IF(Table1[[#This Row],[Regimen type (0=unlimited, 1=time-limited)]]=0, Table1[[#This Row],[GF, high margin]]/12, IF(Table1[[#This Row],[Regimen type (0=unlimited, 1=time-limited)]]="0", Table1[[#This Row],[GF, high margin]]/12, IF(Table1[[#This Row],[Regimen type (0=unlimited, 1=time-limited)]]=1, Table1[[#This Row],[GF, high margin]], IF(Table1[[#This Row],[Regimen type (0=unlimited, 1=time-limited)]]="1", Table1[[#This Row],[GF, high margin]], "CHECK")))) -> 16468.932 | GB5: =Table1[[#This Row],[Supportive Care, low margin_adj]]/1.06*0.06 -> 158.9791698 | GC5: =Table1[[#This Row],[Supportive Care, high margin_adj]]/1.06*0.06 -> 171.8796226 | GD5: =Table1[[#This Row],[GF, low margin_adj]]/1.06*0.06 -> 932.2036981 | GE5: =Table1[[#This Row],[GF, high margin_adj]]/1.06*0.06 -> 932.2036981 | GF5: =IFERROR(IF(Table1[[#This Row],[Regimen type (0=unlimited, 1=time-limited)]]=0, Table1[[#This Row],[Drug '# of doses_1 (for unlimited regimens, '# per year)]]/12, IF(Table1[[#This Row],[Regimen type (0=unlimited, 1=time-limited)]]="0", Table1[[#This Row],[Drug '# of doses_1 (for unlimited regimens, '# per year)]]/12, IF(Table1[[#This Row],[Regimen type (0=unlimited, 1=time-limited)]]=1, Table1[[#This Row],[Drug '# of doses_1 (for unlimited regimens, '# per year)]], IF(Table1[[#This Row],[Regimen type (0=unlimited, 1=time-limited)]]="1", Table1[[#This Row],[Drug '# of doses_1 (for unlimited regimens, '# per year)]], "CHECK"))))*INDEX(Table3[Total Admin Cost], MATCH(Table1[[#This Row],[Drug ROA_1]], Table3[Drug ROA Admin], 0)), 0) -> 558.44 | GG5: =IFERROR(IF(Table1[[#This Row],[Regimen type (0=unlimited, 1=time-limited)]]=0, Table1[[#This Row],[Drug '# of doses_2 (for unlimited regimens, '# per year)]]/12, IF(Table1[[#This Row],[Regimen type (0=unlimited, 1=time-limited)]]="0", Table1[[#This Row],[Drug '# of doses_2 (for unlimited regimens, '# per year)]]/12, IF(Table1[[#This Row],[Regimen type (0=unlimited, 1=time-limited)]]=1, Table1[[#This Row],[Drug '# of doses_2 (for unlimited regimens, '# per year)]], IF(Table1[[#This Row],[Regimen type (0=unlimited, 1=time-limited)]]="1", Table1[[#This Row],[Drug '# of doses_2 (for unlimited regimens, '# per year)]], "CHECK"))))*INDEX(Table3[Total Admin Cost], MATCH(Table1[[#This Row],[Drug ROA_2]], Table3[Drug ROA Admin], 0)), 0) -> 558.44 | GH5: =IFERROR(IF(Table1[[#This Row],[Regimen type (0=unlimited, 1=time-limited)]]=0, Table1[[#This Row],[Drug '# of doses_3 (for unlimited regimens, '# per year)]]/12, IF(Table1[[#This Row],[Regimen type (0=unlimited, 1=time-limited)]]="0", Table1[[#This Row],[Drug '# of doses_3 (for unlimited regimens, '# per year)]]/12, IF(Table1[[#This Row],[Regimen type (0=unlimited, 1=time-limited)]]=1, Table1[[#This Row],[Drug '# of doses_3 (for unlimited regimens, '# per year)]], IF(Table1[[#This Row],[Regimen type (0=unlimited, 1=time-limited)]]="1", Table1[[#This Row],[Drug '# of doses_3 (for unlimited regimens, '# per year)]], "CHECK"))))*INDEX(Table3[Total Admin Cost], MATCH(Table1[[#This Row],[Drug ROA_3]], Table3[Drug ROA Admin], 0)), 0) -> 788.12 | GI5: =IFERROR(IF(Table1[[#This Row],[Regimen type (0=unlimited, 1=time-limited)]]=0, Table1[[#This Row],[Drug '# of doses_4 (for unlimited regimens, '# per year)]]/12, IF(Table1[[#This Row],[Regimen type (0=unlimited, 1=time-limited)]]="0", Table1[[#This Row],[Drug '# of doses_4 (for unlimited regimens, '# per year)]]/12, IF(Table1[[#This Row],[Regimen type (0=unlimited, 1=time-limited)]]=1, Table1[[#This Row],[Drug '# of doses_4 (for unlimited regimens, '# per year)]], IF(Table1[[#This Row],[Regimen type (0=unlimited, 1=time-limited)]]="1", Table1[[#This Row],[Drug '# of doses_4 (for unlimited regimens, '# per year)]], "CHECK"))))*INDEX(Table3[Total Admin Cost], MATCH(Table1[[#This Row],[Drug ROA_4]], Table3[Drug ROA Admin], 0)), 0) -> 0 | GJ5: =IFERROR(IF(Table1[[#This Row],[Regimen type (0=unlimited, 1=time-limited)]]=0, Table1[[#This Row],[Drug '# of doses_5 (for unlimited regimens, '# per year)]]/12, IF(Table1[[#This Row],[Regimen type (0=unlimited, 1=time-limited)]]="0", Table1[[#This Row],[Drug '# of doses_5 (for unlimited regimens, '# per year)]]/12, IF(Table1[[#This Row],[Regimen type (0=unlimited, 1=time-limited)]]=1, Table1[[#This Row],[Drug '# of doses_5 (for unlimited regimens, '# per year)]], IF(Table1[[#This Row],[Regimen type (0=unlimited, 1=time-limited)]]="1", Table1[[#This Row],[Drug '# of doses_5 (for unlimited regimens, '# per year)]], "CHECK"))))*INDEX(Table3[Total Admin Cost], MATCH(Table1[[#This Row],[Drug ROA_5]], Table3[Drug ROA Admin], 0)), 0) -> 0 | GK5: =IFERROR(IF(Table1[[#This Row],[Regimen type (0=unlimited, 1=time-limited)]]=0, Table1[[#This Row],[Drug '# of doses_6 (for unlimited regimens, '# per year)]]/12, IF(Table1[[#This Row],[Regimen type (0=unlimited, 1=time-limited)]]="0", Table1[[#This Row],[Drug '# of doses_6 (for unlimited regimens, '# per year)]]/12, IF(Table1[[#This Row],[Regimen type (0=unlimited, 1=time-limited)]]=1, Table1[[#This Row],[Drug '# of doses_6 (for unlimited regimens, '# per year)]], IF(Table1[[#This Row],[Regimen type (0=unlimited, 1=time-limited)]]="1", Table1[[#This Row],[Drug '# of doses_6 (for unlimited regimens, '# per year)]], "CHECK"))))*INDEX(Table3[Total Admin Cost], MATCH(Table1[[#This Row],[Drug ROA_6]], Table3[Drug ROA Admin], 0)), 0) -> 0 | GL5: =IFERROR(IF(Table1[[#This Row],[Regimen type (0=unlimited, 1=time-limited)]]=0, Table1[[#This Row],[Drug '# of doses_7 (for unlimited regimens, '# per year)]]/12, IF(Table1[[#This Row],[Regimen type (0=unlimited, 1=time-limited)]]="0", Table1[[#This Row],[Drug '# of doses_7 (for unlimited regimens, '# per year)]]/12, IF(Table1[[#This Row],[Regimen type (0=unlimited, 1=time-limited)]]=1, Table1[[#This Row],[Drug '# of doses_7 (for unlimited regimens, '# per year)]], IF(Table1[[#This Row],[Regimen type (0=unlimited, 1=time-limited)]]="1", Table1[[#This Row],[Drug '# of doses_7 (for unlimited regimens, '# per year)]], "CHECK"))))*INDEX(Table3[Total Admin Cost], MATCH(Table1[[#This Row],[Drug ROA_7]], Table3[Drug ROA Admin], 0)), 0) -> 0 | GM5: =IFERROR(IF(Table1[[#This Row],[Regimen type (0=unlimited, 1=time-limited)]]=0, Table1[[#This Row],[Drug '# of doses_8 (for unlimited regimens, '# per year)]]/12, IF(Table1[[#This Row],[Regimen type (0=unlimited, 1=time-limited)]]="0", Table1[[#This Row],[Drug '# of doses_8 (for unlimited regimens, '# per year)]]/12, IF(Table1[[#This Row],[Regimen type (0=unlimited, 1=time-limited)]]=1, Table1[[#This Row],[Drug '# of doses_8 (for unlimited regimens, '# per year)]], IF(Table1[[#This Row],[Regimen type (0=unlimited, 1=time-limited)]]="1", Table1[[#This Row],[Drug '# of doses_8 (for unlimited regimens, '# per year)]], "CHECK"))))*INDEX(Table3[Total Admin Cost], MATCH(Table1[[#This Row],[Drug ROA_8]], Table3[Drug ROA Admin], 0)), 0) -> 0 | GN5: =IFERROR(IF(Table1[[#This Row],[Regimen type (0=unlimited, 1=time-limited)]]=0, Table1[[#This Row],[Drug '# of doses_9 (for unlimited regimens, '# per year)]]/12, IF(Table1[[#This Row],[Regimen type (0=unlimited, 1=time-limited)]]="0", Table1[[#This Row],[Drug '# of doses_9 (for unlimited regimens, '# per year)]]/12, IF(Table1[[#This Row],[Regimen type (0=unlimited, 1=time-limited)]]=1, Table1[[#This Row],[Drug '# of doses_9 (for unlimited regimens, '# per year)]], IF(Table1[[#This Row],[Regimen type (0=unlimited, 1=time-limited)]]="1", Table1[[#This Row],[Drug '# of doses_9 (for unlimited regimens, '# per year)]], "CHECK"))))*INDEX(Table3[Total Admin Cost], MATCH(Table1[[#This Row],[Drug ROA_9]], Table3[Drug ROA Admin], 0)), 0) -> 0 | GO5: =IFERROR(IF(Table1[[#This Row],[Regimen type (0=unlimited, 1=time-limited)]]=0, Table1[[#This Row],[Drug '# of doses_10 (for unlimited regimens, '# per year)]]/12, IF(Table1[[#This Row],[Regimen type (0=unlimited, 1=time-limited)]]="0", Table1[[#This Row],[Drug '# of doses_10 (for unlimited regimens, '# per year)]]/12, IF(Table1[[#This Row],[Regimen type (0=unlimited, 1=time-limited)]]=1, Table1[[#This Row],[Drug '# of doses_10 (for unlimited regimens, '# per year)]], IF(Table1[[#This Row],[Regimen type (0=unlimited, 1=time-limited)]]="1", Table1[[#This Row],[Drug '# of doses_10 (for unlimited regimens, '# per year)]], "CHECK"))))*INDEX(Table3[Total Admin Cost], MATCH(Table1[[#This Row],[Drug ROA_10]], Table3[Drug ROA Admin], 0)), 0) -> 0 | GP5: =IFERROR(IF(Table1[[#This Row],[Regimen type (0=unlimited, 1=time-limited)]]=0, Table1[[#This Row],[Drug '# of doses_11 (for unlimited regimens, '# per year)]]/12, IF(Table1[[#This Row],[Regimen type (0=unlimited, 1=time-limited)]]="0", Table1[[#This Row],[Drug '# of doses_11 (for unlimited regimens, '# per year)]]/12, IF(Table1[[#This Row],[Regimen type (0=unlimited, 1=time-limited)]]=1, Table1[[#This Row],[Drug '# of doses_11 (for unlimited regimens, '# per year)]], IF(Table1[[#This Row],[Regimen type (0=unlimited, 1=time-limited)]]="1", Table1[[#This Row],[Drug '# of doses_11 (for unlimited regimens, '# per year)]], "CHECK"))))*INDEX(Table3[Total Admin Cost], MATCH(Table1[[#This Row],[Drug ROA_11]], Table3[Drug ROA Admin], 0)), 0) -> 0 | GQ5: =SUM(Table1[[#This Row],[Admin Drug 1]:[Admin Drug 11]]) -> 1905
A6: Breast | B6: Breast | C6: 2.2016 | D6: Preoperative/adjuvant therapy regimens for HER2-negative disease | E6: Neoadjuvant | F6: 14002 | G6: Dose-dense AC (doxorubicin + cyclophosphamide) followed by weekly paclitaxel | H6: 4 | I6: 2 | J6: 4 | K6: 4 | L6: 3 | M6: =SUM(Table1[[#This Row],[Efficacy]:[Safety]]) -> 6 | N6: =SUM(Table1[[#This Row],[Efficacy]:[Consistency]]) -> 14 | O6: 1 | P6: 0 | Q6: 0 | R6: 2A | S6: First-line | T6: =IF(Table1[[#This Row],[Line of therapy]]="first-line", "0", IF(Table1[[#This Row],[Line of therapy]]="second-line or subsequent", "1", IF(Table1[[#This Row],[Line of therapy]]="second-line", "1", IF(Table1[[#This Row],[Line of therapy]]="third-line", "1", IF(Table1[[#This Row],[Line of therapy]]="fourth-line", "1", IF(Table1[[#This Row],[Line of therapy]]="fifth-line", "1", IF(Table1[[#This Row],[Line of therapy]]="sixth-line", "1", IF(Table1[[#This Row],[Line of therapy]]="persistent disease or progression", "1", IF(Table1[[#This Row],[Line of therapy]]="relapsed/refractory", "1", IF(Table1[[#This Row],[Line of therapy]]="subsequent", "1", IF(Table1[[#This Row],[Line of therapy]]="maintenance", "2", ""))))))))))) -> 0 | U6: 1 | V6: 0 | W6: =Table1[[#This Row],[Total regimen price]]+Table1[[#This Row],[Admin Total]] -> 5603.044 | X6: =Table1[[#This Row],[Total regimen price]]+Table1[[#This Row],[Supportive Care, high margin_adj]]+Table1[[#This Row],[GF, high margin_adj]]+Table1[[#This Row],[Admin Total]] -> 25108.516 | Y6: =Table1[[#This Row],[Total regimen price]]+Table1[[#This Row],[Supportive Care, low margin_adj]]+Table1[[#This Row],[GF, low margin_adj]]+Table1[[#This Row],[Admin Total]] -> 24880.608 | Z6: =Table1[[#This Row],[Physician margin_1]]+Table1[[#This Row],[Physician margin_2]]+Table1[[#This Row],[Physician margin_3]]+Table1[[#This Row],[Physician margin_4]]+Table1[[#This Row],[Physician margin_5]]+Table1[[#This Row],[Physician margin_6]]+Table1[[#This Row],[Physician margin_7]]+Table1[[#This Row],[Physician margin_8]]+Table1[[#This Row],[Physician margin_9]]+Table1[[#This Row],[Physician margin_10]]+Table1[[#This Row],[Physician margin_11]]+Table1[[#This Row],[Physician margin supportive Care, high margin_adj]]+Table1[[#This Row],[Physician margin GF, high margin_adj]] -> 1224.185434 | AA6: =Table1[[#This Row],[Physician margin_1]]+Table1[[#This Row],[Physician margin_2]]+Table1[[#This Row],[Physician margin_3]]+Table1[[#This Row],[Physician margin_4]]+Table1[[#This Row],[Physician margin_5]]+Table1[[#This Row],[Physician margin_6]]+Table1[[#This Row],[Physician margin_7]]+Table1[[#This Row],[Physician margin_8]]+Table1[[#This Row],[Physician margin_9]]+Table1[[#This Row],[Physician margin_10]]+Table1[[#This Row],[Physician margin_11]]+Table1[[#This Row],[Physician margin supportive Care, low margin_adj]]+Table1[[#This Row],[Physician margin GF, low margin_adj]] -> 1211.284981 | AB6: Doxorubicin | AC6: IV | AD6: Doxorubicin IV | AE6: 60 | AF6: mg/m2 | AG6: 4 | AH6: =IF(ISNUMBER(SEARCH("/m2", Table1[[#This Row],[Drug units_1]])), Table1[[#This Row],[Drug dose_1]]*1.7, IF(ISNUMBER(SEARCH("/kg", Table1[[#This Row],[Drug units_1]])), Table1[[#This Row],[Drug dose_1]]*70, Table1[[#This Row],[Drug dose_1]])) -> 102 | AI6: =IFERROR(INDEX(Table2[ASP Price per Unit], MATCH(Table1[[#This Row],[Drug ROA_1]], Table2[Unique Drugs All ROA], 0)), "") -> 0.2415 | AJ6: =IFERROR(INDEX(Table2[Price per unit], MATCH(Table1[[#This Row],[Drug ROA_1]], Table2[Unique Drugs All ROA], 0)), "") -> 0.2415 | AK6: =IFERROR(INDEX(Table2[Unit], MATCH(Table1[[#This Row],[Drug ROA_1]], Table2[Unique Drugs All ROA], 0)), "") -> MG | AL6: =IFERROR(IF(Table1[[#This Row],[Unit_1]]="post-SC admin price", Table1[[#This Row],[Price per unit_1]], IF(Table1[[#This Row],[Unit_1]]="pre-SC admin price", Table1[[#This Row],[Price per unit_1]], Table1[[#This Row],[Dose with Mass Multiplier_1]]*Table1[[#This Row],[Drug '# of doses_1 (for unlimited regimens, '# per year)]]*Table1[[#This Row],[Price per unit_1]])), 0) -> 98.532 | AM6: =IFERROR(IF(Table1[[#This Row],[Regimen type (0=unlimited, 1=time-limited)]]=1, Table1[[#This Row],[Drug Price per year_1]], IF(Table1[[#This Row],[Regimen type (0=unlimited, 1=time-limited)]]="1", Table1[[#This Row],[Drug Price per year_1]], IF(Table1[[#This Row],[Regimen type (0=unlimited, 1=time-limited)]]=0, Table1[[#This Row],[Drug Price per year_1]]/12, IF(Table1[[#This Row],[Regimen type (0=unlimited, 1=time-limited)]]="0", Table1[[#This Row],[Drug Price per year_1]]/12, "CHECK")))), 0) -> 98.532 | AN6: =IF(Table1[[#This Row],[ASP price per unit_1]]<>0, Table1[[#This Row],[Drug Price_1]]/1.06*0.06, 0) -> 5.577283019 | AO6: Cyclophosphamide | AP6: IV | AQ6: Cyclophosphamide IV | AR6: 600 | AS6: mg/m2 | AT6: 4 | AU6: =IF(ISNUMBER(SEARCH("/m2", Table1[[#This Row],[Drug units_2]])), Table1[[#This Row],[Drug dose_2]]*1.7, IF(ISNUMBER(SEARCH("/kg", Table1[[#This Row],[Drug units_2]])), Table1[[#This Row],[Drug dose_2]]*70, Table1[[#This Row],[Drug dose_2]])) -> 1020 | AV6: =IFERROR(INDEX(Table2[ASP Price per Unit], MATCH(Table1[[#This Row],[Drug ROA_2]], Table2[Unique Drugs All ROA], 0)), "") -> 0.4231 | AW6: =IFERROR(INDEX(Table2[Price per unit], MATCH(Table1[[#This Row],[Drug ROA_2]], Table2[Unique Drugs All ROA], 0)), "") -> 0.4231 | AX6: =IFERROR(INDEX(Table2[Unit], MATCH(Table1[[#This Row],[Drug ROA_2]], Table2[Unique Drugs All ROA], 0)), "") -> MG | AY6: =IFERROR(IF(Table1[[#This Row],[Unit_2]]="post-SC admin price", Table1[[#This Row],[Price per unit_2]], IF(Table1[[#This Row],[Unit_2]]="pre-SC admin price", Table1[[#This Row],[Price per unit_2]], Table1[[#This Row],[Dose with Mass Multiplier_2]]*Table1[[#This Row],[Drug '# of doses_2 (for unlimited regimens, '# per year)]]*Table1[[#This Row],[Price per unit_2]])), 0) -> 1726.248 | AZ6: =IFERROR(IF(Table1[[#This Row],[Regimen type (0=unlimited, 1=time-limited)]]=1, Table1[[#This Row],[Drug Price per year_2]], IF(Table1[[#This Row],[Regimen type (0=unlimited, 1=time-limited)]]="1", Table1[[#This Row],[Drug Price per year_2]], IF(Table1[[#This Row],[Regimen type (0=unlimited, 1=time-limited)]]=0, Table1[[#This Row],[Drug Price per year_2]]/12, IF(Table1[[#This Row],[Regimen type (0=unlimited, 1=time-limited)]]="0", Table1[[#This Row],[Drug Price per year_2]]/12, "CHECK")))), 0) -> 1726.248 | BA6: =IF(Table1[[#This Row],[ASP price per unit_2]]<>0, Table1[[#This Row],[Drug Price_2]]/1.06*0.06, 0) -> 97.71215094 | BB6: Paclitaxel | BC6: IV | BD6: Paclitaxel IV | BE6: 80 | BF6: mg/m2 | BG6: 12 | BH6: =IF(ISNUMBER(SEARCH("/m2", Table1[[#This Row],[Drug units_3]])), Table1[[#This Row],[Drug dose_3]]*1.7, IF(ISNUMBER(SEARCH("/kg", Table1[[#This Row],[Drug units_3]])), Table1[[#This Row],[Drug dose_3]]*70, Table1[[#This Row],[Drug dose_3]])) -> 136 | BI6: =IFERROR(INDEX(Table2[ASP Price per Unit], MATCH(Table1[[#This Row],[Drug ROA_3]], Table2[Unique Drugs All ROA], 0)), "") -> 0.182 | BJ6: =IFERROR(INDEX(Table2[Price per unit], MATCH(Table1[[#This Row],[Drug ROA_3]], Table2[Unique Drugs All ROA], 0)), "") -> 0.182 | BK6: =IFERROR(INDEX(Table2[Unit], MATCH(Table1[[#This Row],[Drug ROA_3]], Table2[Unique Drugs All ROA], 0)), "") -> MG | BL6: =IFERROR(IF(Table1[[#This Row],[Unit_3]]="post-SC admin price", Table1[[#This Row],[Price per unit_3]], IF(Table1[[#This Row],[Unit_3]]="pre-SC admin price", Table1[[#This Row],[Price per unit_3]], Table1[[#This Row],[Dose with Mass Multiplier_3]]*Table1[[#This Row],[Drug '# of doses_3 (for unlimited regimens, '# per year)]]*Table1[[#This Row],[Price per unit_3]])), 0) -> 297.024 | BM6: =IFERROR(IF(Table1[[#This Row],[Regimen type (0=unlimited, 1=time-limited)]]=1, Table1[[#This Row],[Drug Price per year_3]], IF(Table1[[#This Row],[Regimen type (0=unlimited, 1=time-limited)]]="1", Table1[[#This Row],[Drug Price per year_3]], IF(Table1[[#This Row],[Regimen type (0=unlimited, 1=time-limited)]]=0, Table1[[#This Row],[Drug Price per year_3]]/12, IF(Table1[[#This Row],[Regimen type (0=unlimited, 1=time-limited)]]="0", Table1[[#This Row],[Drug Price per year_3]]/12, "CHECK")))), 0) -> 297.024 | BN6: =IF(Table1[[#This Row],[ASP price per unit_3]]<>0, Table1[[#This Row],[Drug Price_3]]/1.06*0.06, 0) -> 16.81267925 | BO6: 0 | BP6: 0 | BR6: 0 | BS6: 0 | BT6: 0 | BU6: =IF(ISNUMBER(SEARCH("/m2", Table1[[#This Row],[Drug units_4]])), Table1[[#This Row],[Drug dose_4]]*1.7, IF(ISNUMBER(SEARCH("/kg", Table1[[#This Row],[Drug units_4]])), Table1[[#This Row],[Drug dose_4]]*70, Table1[[#This Row],[Drug dose_4]])) -> 0 | BV6: =IFERROR(INDEX(Table2[ASP Price per Unit], MATCH(Table1[[#This Row],[Drug ROA_4]], Table2[Unique Drugs All ROA], 0)), "") ->  | BW6: =IFERROR(INDEX(Table2[Price per unit], MATCH(Table1[[#This Row],[Drug ROA_4]], Table2[Unique Drugs All ROA], 0)), "") ->  | BX6: =IFERROR(INDEX(Table2[Unit], MATCH(Table1[[#This Row],[Drug ROA_4]], Table2[Unique Drugs All ROA], 0)), "") ->  | BY6: =IFERROR(IF(Table1[[#This Row],[Unit_4]]="post-SC admin price", Table1[[#This Row],[Price per unit_4]], IF(Table1[[#This Row],[Unit_4]]="pre-SC admin price", Table1[[#This Row],[Price per unit_4]], Table1[[#This Row],[Dose with Mass Multiplier_4]]*Table1[[#This Row],[Drug '# of doses_4 (for unlimited regimens, '# per year)]]*Table1[[#This Row],[Price per unit_4]])), 0) -> 0 | BZ6: =IFERROR(IF(Table1[[#This Row],[Regimen type (0=unlimited, 1=time-limited)]]=1, Table1[[#This Row],[Drug Price per year_4]], IF(Table1[[#This Row],[Regimen type (0=unlimited, 1=time-limited)]]="1", Table1[[#This Row],[Drug Price per year_4]], IF(Table1[[#This Row],[Regimen type (0=unlimited, 1=time-limited)]]=0, Table1[[#This Row],[Drug Price per year_4]]/12, IF(Table1[[#This Row],[Regimen type (0=unlimited, 1=time-limited)]]="0", Table1[[#This Row],[Drug Price per year_4]]/12, "CHECK")))), 0) -> 0 | CA6: =IF(Table1[[#This Row],[ASP price per unit_4]]<>0, Table1[[#This Row],[Drug Price_4]]/1.06*0.06, 0) -> 0 | CB6: 0 | CC6: 0 | CE6: 0 | CF6: 0 | CG6: 0 | CH6: =IF(ISNUMBER(SEARCH("/m2", Table1[[#This Row],[Drug units_5]])), Table1[[#This Row],[Drug dose_5]]*1.7, IF(ISNUMBER(SEARCH("/kg", Table1[[#This Row],[Drug units_5]])), Table1[[#This Row],[Drug dose_5]]*70, Table1[[#This Row],[Drug dose_5]])) -> 0 | CI6: =IFERROR(INDEX(Table2[ASP Price per Unit], MATCH(Table1[[#This Row],[Drug ROA_5]], Table2[Unique Drugs All ROA], 0)), "") ->  | CJ6: =IFERROR(INDEX(Table2[Price per unit], MATCH(Table1[[#This Row],[Drug ROA_5]], Table2[Unique Drugs All ROA], 0)), "") ->  | CK6: =IFERROR(INDEX(Table2[Unit], MATCH(Table1[[#This Row],[Drug ROA_5]], Table2[Unique Drugs All ROA], 0)), "") ->  | CL6: =IFERROR(IF(Table1[[#This Row],[Unit_5]]="post-SC admin price", Table1[[#This Row],[Price per unit_5]], IF(Table1[[#This Row],[Unit_5]]="pre-SC admin price", Table1[[#This Row],[Price per unit_5]], Table1[[#This Row],[Dose with Mass Multiplier_5]]*Table1[[#This Row],[Drug '# of doses_5 (for unlimited regimens, '# per year)]]*Table1[[#This Row],[Price per unit_5]])), 0) -> 0 | CM6: =IFERROR(IF(Table1[[#This Row],[Regimen type (0=unlimited, 1=time-limited)]]=1, Table1[[#This Row],[Drug Price per year_5]], IF(Table1[[#This Row],[Regimen type (0=unlimited, 1=time-limited)]]="1", Table1[[#This Row],[Drug Price per year_5]], IF(Table1[[#This Row],[Regimen type (0=unlimited, 1=time-limited)]]=0, Table1[[#This Row],[Drug Price per year_5]]/12, IF(Table1[[#This Row],[Regimen type (0=unlimited, 1=time-limited)]]="0", Table1[[#This Row],[Drug Price per year_5]]/12, "CHECK")))), 0) -> 0 | CN6: =IF(Table1[[#This Row],[ASP price per unit_5]]<>0, Table1[[#This Row],[Drug Price_5]]/1.06*0.06, 0) -> 0 | CO6: 0 | CP6: 0 | CR6: 0 | CS6: 0 | CT6: 0 | CU6: =IF(ISNUMBER(SEARCH("/m2", Table1[[#This Row],[Drug units_6]])), Table1[[#This Row],[Drug dose_6]]*1.7, IF(ISNUMBER(SEARCH("/kg", Table1[[#This Row],[Drug units_6]])), Table1[[#This Row],[Drug dose_6]]*70, Table1[[#This Row],[Drug dose_6]])) -> 0 | CV6: =IFERROR(INDEX(Table2[ASP Price per Unit], MATCH(Table1[[#This Row],[Drug ROA_6]], Table2[Unique Drugs All ROA], 0)), "") ->  | CW6: =IFERROR(INDEX(Table2[Price per unit], MATCH(Table1[[#This Row],[Drug ROA_6]], Table2[Unique Drugs All ROA], 0)), "") ->  | CX6: =IFERROR(INDEX(Table2[Unit], MATCH(Table1[[#This Row],[Drug ROA_6]], Table2[Unique Drugs All ROA], 0)), "") ->  | CY6: =IFERROR(IF(Table1[[#This Row],[Unit_6]]="post-SC admin price", Table1[[#This Row],[Price per unit_6]], IF(Table1[[#This Row],[Unit_6]]="pre-SC admin price", Table1[[#This Row],[Price per unit_6]], Table1[[#This Row],[Dose with Mass Multiplier_6]]*Table1[[#This Row],[Drug '# of doses_6 (for unlimited regimens, '# per year)]]*Table1[[#This Row],[Price per unit_6]])), 0) -> 0 | CZ6: =IFERROR(IF(Table1[[#This Row],[Regimen type (0=unlimited, 1=time-limited)]]=1, Table1[[#This Row],[Drug Price per year_6]], IF(Table1[[#This Row],[Regimen type (0=unlimited, 1=time-limited)]]="1", Table1[[#This Row],[Drug Price per year_6]], IF(Table1[[#This Row],[Regimen type (0=unlimited, 1=time-limited)]]=0, Table1[[#This Row],[Drug Price per year_6]]/12, IF(Table1[[#This Row],[Regimen type (0=unlimited, 1=time-limited)]]="0", Table1[[#This Row],[Drug Price per year_6]]/12, "CHECK")))), 0) -> 0 | DA6: =IF(Table1[[#This Row],[ASP price per unit_6]]<>0, Table1[[#This Row],[Drug Price_6]]/1.06*0.06, 0) -> 0 | DB6: 0 | DC6: 0 | DE6: 0 | DF6: 0 | DG6: 0 | DH6: =IF(ISNUMBER(SEARCH("/m2", Table1[[#This Row],[Drug units_7]])), Table1[[#This Row],[Drug dose_7]]*1.7, IF(ISNUMBER(SEARCH("/kg", Table1[[#This Row],[Drug units_7]])), Table1[[#This Row],[Drug dose_7]]*70, Table1[[#This Row],[Drug dose_7]])) -> 0 | DI6: =IFERROR(INDEX(Table2[ASP Price per Unit], MATCH(Table1[[#This Row],[Drug ROA_7]], Table2[Unique Drugs All ROA], 0)), "") ->  | DJ6: =IFERROR(INDEX(Table2[Price per unit], MATCH(Table1[[#This Row],[Drug ROA_7]], Table2[Unique Drugs All ROA], 0)), "") ->  | DK6: =IFERROR(INDEX(Table2[Unit], MATCH(Table1[[#This Row],[Drug ROA_7]], Table2[Unique Drugs All ROA], 0)), "") ->  | DL6: =IFERROR(IF(Table1[[#This Row],[Unit_7]]="post-SC admin price", Table1[[#This Row],[Price per unit_7]], IF(Table1[[#This Row],[Unit_7]]="pre-SC admin price", Table1[[#This Row],[Price per unit_7]], Table1[[#This Row],[Dose with Mass Multiplier_7]]*Table1[[#This Row],[Drug '# of doses_7 (for unlimited regimens, '# per year)]]*Table1[[#This Row],[Price per unit_7]])), 0) -> 0 | DM6: =IFERROR(IF(Table1[[#This Row],[Regimen type (0=unlimited, 1=time-limited)]]=1, Table1[[#This Row],[Drug Price per year_7]], IF(Table1[[#This Row],[Regimen type (0=unlimited, 1=time-limited)]]="1", Table1[[#This Row],[Drug Price per year_7]], IF(Table1[[#This Row],[Regimen type (0=unlimited, 1=time-limited)]]=0, Table1[[#This Row],[Drug Price per year_7]]/12, IF(Table1[[#This Row],[Regimen type (0=unlimited, 1=time-limited)]]="0", Table1[[#This Row],[Drug Price per year_7]]/12, "CHECK")))), 0) -> 0 | DN6: =IF(Table1[[#This Row],[ASP price per unit_7]]<>0, Table1[[#This Row],[Drug Price_7]]/1.06*0.06, 0) -> 0 | DO6: 0 | DP6: 0 | DR6: 0 | DS6: 0 | DT6: 0 | DU6: =IF(ISNUMBER(SEARCH("/m2", Table1[[#This Row],[Drug units_8]])), Table1[[#This Row],[Drug dose_8]]*1.7, IF(ISNUMBER(SEARCH("/kg", Table1[[#This Row],[Drug units_8]])), Table1[[#This Row],[Drug dose_8]]*70, Table1[[#This Row],[Drug dose_8]])) -> 0 | DV6: =IFERROR(INDEX(Table2[ASP Price per Unit], MATCH(Table1[[#This Row],[Drug ROA_8]], Table2[Unique Drugs All ROA], 0)), "") ->  | DW6: =IFERROR(INDEX(Table2[Price per unit], MATCH(Table1[[#This Row],[Drug ROA_8]], Table2[Unique Drugs All ROA], 0)), "") ->  | DX6: =IFERROR(INDEX(Table2[Unit], MATCH(Table1[[#This Row],[Drug ROA_8]], Table2[Unique Drugs All ROA], 0)), "") ->  | DY6: =IFERROR(IF(Table1[[#This Row],[Unit_8]]="post-SC admin price", Table1[[#This Row],[Price per unit_8]], IF(Table1[[#This Row],[Unit_8]]="pre-SC admin price", Table1[[#This Row],[Price per unit_8]], Table1[[#This Row],[Dose with Mass Multiplier_8]]*Table1[[#This Row],[Drug '# of doses_8 (for unlimited regimens, '# per year)]]*Table1[[#This Row],[Price per unit_8]])), 0) -> 0 | DZ6: =IFERROR(IF(Table1[[#This Row],[Regimen type (0=unlimited, 1=time-limited)]]=1, Table1[[#This Row],[Drug Price per year_8]], IF(Table1[[#This Row],[Regimen type (0=unlimited, 1=time-limited)]]="1", Table1[[#This Row],[Drug Price per year_8]], IF(Table1[[#This Row],[Regimen type (0=unlimited, 1=time-limited)]]=0, Table1[[#This Row],[Drug Price per year_8]]/12, IF(Table1[[#This Row],[Regimen type (0=unlimited, 1=time-limited)]]="0", Table1[[#This Row],[Drug Price per year_8]]/12, "CHECK")))), 0) -> 0 | EA6: =IF(Table1[[#This Row],[ASP price per unit_8]]<>0, Table1[[#This Row],[Drug Price_8]]/1.06*0.06, 0) -> 0 | EE6: 0 | EH6: =IF(ISNUMBER(SEARCH("/m2", Table1[[#This Row],[Drug units_9]])), Table1[[#This Row],[Drug dose_9]]*1.7, IF(ISNUMBER(SEARCH("/kg", Table1[[#This Row],[Drug units_9]])), Table1[[#This Row],[Drug dose_9]]*70, Table1[[#This Row],[Drug dose_9]])) -> 0 | EI6: =IFERROR(INDEX(Table2[ASP Price per Unit], MATCH(Table1[[#This Row],[Drug ROA_9]], Table2[Unique Drugs All ROA], 0)), "") ->  | EJ6: =IFERROR(INDEX(Table2[Price per unit], MATCH(Table1[[#This Row],[Drug ROA_9]], Table2[Unique Drugs All ROA], 0)), "") ->  | EK6: =IFERROR(INDEX(Table2[Unit], MATCH(Table1[[#This Row],[Drug ROA_9]], Table2[Unique Drugs All ROA], 0)), "") ->  | EL6: =IFERROR(IF(Table1[[#This Row],[Unit_9]]="post-SC admin price", Table1[[#This Row],[Price per unit_9]], IF(Table1[[#This Row],[Unit_9]]="pre-SC admin price", Table1[[#This Row],[Price per unit_9]], Table1[[#This Row],[Dose with Mass Multiplier_9]]*Table1[[#This Row],[Drug '# of doses_9 (for unlimited regimens, '# per year)]]*Table1[[#This Row],[Price per unit_9]])), 0) -> 0 | EM6: =IFERROR(IF(Table1[[#This Row],[Regimen type (0=unlimited, 1=time-limited)]]=1, Table1[[#This Row],[Drug Price per year_9]], IF(Table1[[#This Row],[Regimen type (0=unlimited, 1=time-limited)]]="1", Table1[[#This Row],[Drug Price per year_9]], IF(Table1[[#This Row],[Regimen type (0=unlimited, 1=time-limited)]]=0, Table1[[#This Row],[Drug Price per year_9]]/12, IF(Table1[[#This Row],[Regimen type (0=unlimited, 1=time-limited)]]="0", Table1[[#This Row],[Drug Price per year_9]]/12, "CHECK")))), 0) -> 0 | EN6: =IF(Table1[[#This Row],[ASP price per unit_9]]<>0, Table1[[#This Row],[Drug Price_9]]/1.06*0.06, 0) -> 0 | EO6: 0 | EP6: 0 | ER6: 0 | ES6: 0 | ET6: 0 | EU6: =IF(ISNUMBER(SEARCH("/m2", Table1[[#This Row],[Drug units_10]])), Table1[[#This Row],[Drug dose_10]]*1.7, IF(ISNUMBER(SEARCH("/kg", Table1[[#This Row],[Drug units_10]])), Table1[[#This Row],[Drug dose_10]]*70, Table1[[#This Row],[Drug dose_10]])) -> 0 | EV6: =IFERROR(INDEX(Table2[ASP Price per Unit], MATCH(Table1[[#This Row],[Drug ROA_10]], Table2[Unique Drugs All ROA], 0)), "") ->  | EW6: =IFERROR(INDEX(Table2[Price per unit], MATCH(Table1[[#This Row],[Drug ROA_10]], Table2[Unique Drugs All ROA], 0)), "") ->  | EX6: =IFERROR(INDEX(Table2[Unit], MATCH(Table1[[#This Row],[Drug ROA_10]], Table2[Unique Drugs All ROA], 0)), "") ->  | EY6: =IFERROR(IF(Table1[[#This Row],[Unit_10]]="post-SC admin price", Table1[[#This Row],[Price per unit_10]], IF(Table1[[#This Row],[Unit_10]]="pre-SC admin price", Table1[[#This Row],[Price per unit_10]], Table1[[#This Row],[Dose with Mass Multiplier_10]]*Table1[[#This Row],[Drug '# of doses_10 (for unlimited regimens, '# per year)]]*Table1[[#This Row],[Price per unit_10]])), 0) -> 0 | EZ6: =IFERROR(IF(Table1[[#This Row],[Regimen type (0=unlimited, 1=time-limited)]]=1, Table1[[#This Row],[Drug Price per year_10]], IF(Table1[[#This Row],[Regimen type (0=unlimited, 1=time-limited)]]="1", Table1[[#This Row],[Drug Price per year_10]], IF(Table1[[#This Row],[Regimen type (0=unlimited, 1=time-limited)]]=0, Table1[[#This Row],[Drug Price per year_10]]/12, IF(Table1[[#This Row],[Regimen type (0=unlimited, 1=time-limited)]]="0", Table1[[#This Row],[Drug Price per year_10]]/12, "CHECK")))), 0) -> 0 | FA6: =IF(Table1[[#This Row],[ASP price per unit_10]]<>0, Table1[[#This Row],[Drug Price_10]]/1.06*0.06, 0) -> 0 | FB6: 0 | FC6: 0 | FE6: 0 | FF6: 0 | FG6: 0 | FH6: =IF(ISNUMBER(SEARCH("/m2", Table1[[#This Row],[Drug units_11]])), Table1[[#This Row],[Drug dose_11]]*1.7, IF(ISNUMBER(SEARCH("/kg", Table1[[#This Row],[Drug units_11]])), Table1[[#This Row],[Drug dose_11]]*70, Table1[[#This Row],[Drug dose_11]])) -> 0 | FI6: =IFERROR(INDEX(Table2[ASP Price per Unit], MATCH(Table1[[#This Row],[Drug ROA_11]], Table2[Unique Drugs All ROA], 0)), "") ->  | FJ6: =IFERROR(INDEX(Table2[Price per unit], MATCH(Table1[[#This Row],[Drug ROA_11]], Table2[Unique Drugs All ROA], 0)), "") ->  | FK6: =IFERROR(INDEX(Table2[Unit], MATCH(Table1[[#This Row],[Drug ROA_11]], Table2[Unique Drugs All ROA], 0)), "") ->  | FL6: =IFERROR(IF(Table1[[#This Row],[Unit_11]]="post-SC admin price", Table1[[#This Row],[Price per unit_11]], IF(Table1[[#This Row],[Unit_11]]="pre-SC admin price", Table1[[#This Row],[Price per unit_11]], Table1[[#This Row],[Dose with Mass Multiplier_11]]*Table1[[#This Row],[Drug '# of doses_11 (for unlimited regimens, '# per year)]]*Table1[[#This Row],[Price per unit_11]])), 0) -> 0 | FM6: =IFERROR(IF(Table1[[#This Row],[Regimen type (0=unlimited, 1=time-limited)]]=1, Table1[[#This Row],[Drug Price per year_11]], IF(Table1[[#This Row],[Regimen type (0=unlimited, 1=time-limited)]]="1", Table1[[#This Row],[Drug Price per year_11]], IF(Table1[[#This Row],[Regimen type (0=unlimited, 1=time-limited)]]=0, Table1[[#This Row],[Drug Price per year_11]]/12, IF(Table1[[#This Row],[Regimen type (0=unlimited, 1=time-limited)]]="0", Table1[[#This Row],[Drug Price per year_11]]/12, "CHECK")))), 0) -> 0 | FN6: =IF(Table1[[#This Row],[ASP price per unit_11]]<>0, Table1[[#This Row],[Drug Price_11]]/1.06*0.06, 0) -> 0 | FO6: =Table1[[#This Row],[Drug Price_1]] + Table1[[#This Row],[Drug Price_2]] + Table1[[#This Row],[Drug Price_3]]+ Table1[[#This Row],[Drug Price_4]]+ Table1[[#This Row],[Drug Price_5]]+ Table1[[#This Row],[Drug Price_6]]+ Table1[[#This Row],[Drug Price_7]]+ Table1[[#This Row],[Drug Price_8]]+ Table1[[#This Row],[Drug Price_9]]+ Table1[[#This Row],[Drug Price_10]]+ Table1[[#This Row],[Drug Price_11]] -> 2121.804 | FP6: 3 | FQ6: 4 | FR6: 2 | FS6: 4 | FT6: =IF(Table1[[#This Row],[Emetic Risk (0=min, 1=low, 2=inter, 3=high)]]=0, SC_Admin_SpecialCases!$F$12*Table1[[#This Row],['# of supportive doses]], IF(Table1[[#This Row],[Emetic Risk (0=min, 1=low, 2=inter, 3=high)]]=1, SC_Admin_SpecialCases!$F$14*Table1[[#This Row],['# of supportive doses]], IF(Table1[[#This Row],[Emetic Risk (0=min, 1=low, 2=inter, 3=high)]]=2, SC_Admin_SpecialCases!$F$16*Table1[[#This Row],['# of supportive doses]], IF(Table1[[#This Row],[Emetic Risk (0=min, 1=low, 2=inter, 3=high)]]=3, SC_Admin_SpecialCases!$F$18*Table1[[#This Row],['# of supportive doses]], "CHECK")))) -> 2808.632 | FU6: =IF(Table1[[#This Row],[Emetic Risk (0=min, 1=low, 2=inter, 3=high)]]=0, SC_Admin_SpecialCases!$F$13*Table1[[#This Row],['# of supportive doses]], IF(Table1[[#This Row],[Emetic Risk (0=min, 1=low, 2=inter, 3=high)]]=1, SC_Admin_SpecialCases!$F$15*Table1[[#This Row],['# of supportive doses]], IF(Table1[[#This Row],[Emetic Risk (0=min, 1=low, 2=inter, 3=high)]]=2, SC_Admin_SpecialCases!$F$17*Table1[[#This Row],['# of supportive doses]], IF(Table1[[#This Row],[Emetic Risk (0=min, 1=low, 2=inter, 3=high)]]=3, SC_Admin_SpecialCases!$F$19*Table1[[#This Row],['# of supportive doses]], "CHECK")))) -> 3036.54 | FV6: =IF(Table1[[#This Row],[Growth Factor (0=low, 1=inter, 2=high)]]=0, SC_Admin_SpecialCases!$F$4*Table1[[#This Row],['# of GCSF doses]], IF(Table1[[#This Row],[Growth Factor (0=low, 1=inter, 2=high)]]=1, SC_Admin_SpecialCases!$F$6*Table1[[#This Row],['# of GCSF doses]], IF(Table1[[#This Row],[Growth Factor (0=low, 1=inter, 2=high)]]=2, SC_Admin_SpecialCases!$F$8*Table1[[#This Row],['# of GCSF doses]], "CHECK"))) -> 16468.932 | FW6: =IF(Table1[[#This Row],[Growth Factor (0=low, 1=inter, 2=high)]]=0, SC_Admin_SpecialCases!$F$5*Table1[[#This Row],['# of GCSF doses]], IF(Table1[[#This Row],[Growth Factor (0=low, 1=inter, 2=high)]]=1, SC_Admin_SpecialCases!$F$7*Table1[[#This Row],['# of GCSF doses]], IF(Table1[[#This Row],[Growth Factor (0=low, 1=inter, 2=high)]]=2, SC_Admin_SpecialCases!$F$9*Table1[[#This Row],['# of GCSF doses]], "CHECK"))) -> 16468.932 | FX6: =IF(Table1[[#This Row],[Regimen type (0=unlimited, 1=time-limited)]]=0, Table1[[#This Row],[Supportive Care, low margin]]/12, IF(Table1[[#This Row],[Regimen type (0=unlimited, 1=time-limited)]]="0", Table1[[#This Row],[Supportive Care, low margin]]/12, IF(Table1[[#This Row],[Regimen type (0=unlimited, 1=time-limited)]]=1, Table1[[#This Row],[Supportive Care, low margin]], IF(Table1[[#This Row],[Regimen type (0=unlimited, 1=time-limited)]]="1", Table1[[#This Row],[Supportive Care, low margin]], "CHECK")))) -> 2808.632 | FY6: =IF(Table1[[#This Row],[Regimen type (0=unlimited, 1=time-limited)]]=0, Table1[[#This Row],[Supportive Care, high margin]]/12, IF(Table1[[#This Row],[Regimen type (0=unlimited, 1=time-limited)]]="0", Table1[[#This Row],[Supportive Care, high margin]]/12, IF(Table1[[#This Row],[Regimen type (0=unlimited, 1=time-limited)]]=1, Table1[[#This Row],[Supportive Care, high margin]], IF(Table1[[#This Row],[Regimen type (0=unlimited, 1=time-limited)]]="1", Table1[[#This Row],[Supportive Care, high margin]], "CHECK")))) -> 3036.54 | FZ6: =IF(Table1[[#This Row],[Regimen type (0=unlimited, 1=time-limited)]]=0, Table1[[#This Row],[GF, low margin]]/12, IF(Table1[[#This Row],[Regimen type (0=unlimited, 1=time-limited)]]="0", Table1[[#This Row],[GF, low margin]]/12, IF(Table1[[#This Row],[Regimen type (0=unlimited, 1=time-limited)]]=1, Table1[[#This Row],[GF, low margin]], IF(Table1[[#This Row],[Regimen type (0=unlimited, 1=time-limited)]]="1", Table1[[#This Row],[GF, low margin]], "CHECK")))) -> 16468.932 | GA6: =IF(Table1[[#This Row],[Regimen type (0=unlimited, 1=time-limited)]]=0, Table1[[#This Row],[GF, high margin]]/12, IF(Table1[[#This Row],[Regimen type (0=unlimited, 1=time-limited)]]="0", Table1[[#This Row],[GF, high margin]]/12, IF(Table1[[#This Row],[Regimen type (0=unlimited, 1=time-limited)]]=1, Table1[[#This Row],[GF, high margin]], IF(Table1[[#This Row],[Regimen type (0=unlimited, 1=time-limited)]]="1", Table1[[#This Row],[GF, high margin]], "CHECK")))) -> 16468.932 | GB6: =Table1[[#This Row],[Supportive Care, low margin_adj]]/1.06*0.06 -> 158.9791698 | GC6: =Table1[[#This Row],[Supportive Care, high margin_adj]]/1.06*0.06 -> 171.8796226 | GD6: =Table1[[#This Row],[GF, low margin_adj]]/1.06*0.06 -> 932.2036981 | GE6: =Table1[[#This Row],[GF, high margin_adj]]/1.06*0.06 -> 932.2036981 | GF6: =IFERROR(IF(Table1[[#This Row],[Regimen type (0=unlimited, 1=time-limited)]]=0, Table1[[#This Row],[Drug '# of doses_1 (for unlimited regimens, '# per year)]]/12, IF(Table1[[#This Row],[Regimen type (0=unlimited, 1=time-limited)]]="0", Table1[[#This Row],[Drug '# of doses_1 (for unlimited regimens, '# per year)]]/12, IF(Table1[[#This Row],[Regimen type (0=unlimited, 1=time-limited)]]=1, Table1[[#This Row],[Drug '# of doses_1 (for unlimited regimens, '# per year)]], IF(Table1[[#This Row],[Regimen type (0=unlimited, 1=time-limited)]]="1", Table1[[#This Row],[Drug '# of doses_1 (for unlimited regimens, '# per year)]], "CHECK"))))*INDEX(Table3[Total Admin Cost], MATCH(Table1[[#This Row],[Drug ROA_1]], Table3[Drug ROA Admin], 0)), 0) -> 558.44 | GG6: =IFERROR(IF(Table1[[#This Row],[Regimen type (0=unlimited, 1=time-limited)]]=0, Table1[[#This Row],[Drug '# of doses_2 (for unlimited regimens, '# per year)]]/12, IF(Table1[[#This Row],[Regimen type (0=unlimited, 1=time-limited)]]="0", Table1[[#This Row],[Drug '# of doses_2 (for unlimited regimens, '# per year)]]/12, IF(Table1[[#This Row],[Regimen type (0=unlimited, 1=time-limited)]]=1, Table1[[#This Row],[Drug '# of doses_2 (for unlimited regimens, '# per year)]], IF(Table1[[#This Row],[Regimen type (0=unlimited, 1=time-limited)]]="1", Table1[[#This Row],[Drug '# of doses_2 (for unlimited regimens, '# per year)]], "CHECK"))))*INDEX(Table3[Total Admin Cost], MATCH(Table1[[#This Row],[Drug ROA_2]], Table3[Drug ROA Admin], 0)), 0) -> 558.44 | GH6: =IFERROR(IF(Table1[[#This Row],[Regimen type (0=unlimited, 1=time-limited)]]=0, Table1[[#This Row],[Drug '# of doses_3 (for unlimited regimens, '# per year)]]/12, IF(Table1[[#This Row],[Regimen type (0=unlimited, 1=time-limited)]]="0", Table1[[#This Row],[Drug '# of doses_3 (for unlimited regimens, '# per year)]]/12, IF(Table1[[#This Row],[Regimen type (0=unlimited, 1=time-limited)]]=1, Table1[[#This Row],[Drug '# of doses_3 (for unlimited regimens, '# per year)]], IF(Table1[[#This Row],[Regimen type (0=unlimited, 1=time-limited)]]="1", Table1[[#This Row],[Drug '# of doses_3 (for unlimited regimens, '# per year)]], "CHECK"))))*INDEX(Table3[Total Admin Cost], MATCH(Table1[[#This Row],[Drug ROA_3]], Table3[Drug ROA Admin], 0)), 0) -> 2364.36 | GI6: =IFERROR(IF(Table1[[#This Row],[Regimen type (0=unlimited, 1=time-limited)]]=0, Table1[[#This Row],[Drug '# of doses_4 (for unlimited regimens, '# per year)]]/12, IF(Table1[[#This Row],[Regimen type (0=unlimited, 1=time-limited)]]="0", Table1[[#This Row],[Drug '# of doses_4 (for unlimited regimens, '# per year)]]/12, IF(Table1[[#This Row],[Regimen type (0=unlimited, 1=time-limited)]]=1, Table1[[#This Row],[Drug '# of doses_4 (for unlimited regimens, '# per year)]], IF(Table1[[#This Row],[Regimen type (0=unlimited, 1=time-limited)]]="1", Table1[[#This Row],[Drug '# of doses_4 (for unlimited regimens, '# per year)]], "CHECK"))))*INDEX(Table3[Total Admin Cost], MATCH(Table1[[#This Row],[Drug ROA_4]], Table3[Drug ROA Admin], 0)), 0) -> 0 | GJ6: =IFERROR(IF(Table1[[#This Row],[Regimen type (0=unlimited, 1=time-limited)]]=0, Table1[[#This Row],[Drug '# of doses_5 (for unlimited regimens, '# per year)]]/12, IF(Table1[[#This Row],[Regimen type (0=unlimited, 1=time-limited)]]="0", Table1[[#This Row],[Drug '# of doses_5 (for unlimited regimens, '# per year)]]/12, IF(Table1[[#This Row],[Regimen type (0=unlimited, 1=time-limited)]]=1, Table1[[#This Row],[Drug '# of doses_5 (for unlimited regimens, '# per year)]], IF(Table1[[#This Row],[Regimen type (0=unlimited, 1=time-limited)]]="1", Table1[[#This Row],[Drug '# of doses_5 (for unlimited regimens, '# per year)]], "CHECK"))))*INDEX(Table3[Total Admin Cost], MATCH(Table1[[#This Row],[Drug ROA_5]], Table3[Drug ROA Admin], 0)), 0) -> 0 | GK6: =IFERROR(IF(Table1[[#This Row],[Regimen type (0=unlimited, 1=time-limited)]]=0, Table1[[#This Row],[Drug '# of doses_6 (for unlimited regimens, '# per year)]]/12, IF(Table1[[#This Row],[Regimen type (0=unlimited, 1=time-limited)]]="0", Table1[[#This Row],[Drug '# of doses_6 (for unlimited regimens, '# per year)]]/12, IF(Table1[[#This Row],[Regimen type (0=unlimited, 1=time-limited)]]=1, Table1[[#This Row],[Drug '# of doses_6 (for unlimited regimens, '# per year)]], IF(Table1[[#This Row],[Regimen type (0=unlimited, 1=time-limited)]]="1", Table1[[#This Row],[Drug '# of doses_6 (for unlimited regimens, '# per year)]], "CHECK"))))*INDEX(Table3[Total Admin Cost], MATCH(Table1[[#This Row],[Drug ROA_6]], Table3[Drug ROA Admin], 0)), 0) -> 0 | GL6: =IFERROR(IF(Table1[[#This Row],[Regimen type (0=unlimited, 1=time-limited)]]=0, Table1[[#This Row],[Drug '# of doses_7 (for unlimited regimens, '# per year)]]/12, IF(Table1[[#This Row],[Regimen type (0=unlimited, 1=time-limited)]]="0", Table1[[#This Row],[Drug '# of doses_7 (for unlimited regimens, '# per year)]]/12, IF(Table1[[#This Row],[Regimen type (0=unlimited, 1=time-limited)]]=1, Table1[[#This Row],[Drug '# of doses_7 (for unlimited regimens, '# per year)]], IF(Table1[[#This Row],[Regimen type (0=unlimited, 1=time-limited)]]="1", Table1[[#This Row],[Drug '# of doses_7 (for unlimited regimens, '# per year)]], "CHECK"))))*INDEX(Table3[Total Admin Cost], MATCH(Table1[[#This Row],[Drug ROA_7]], Table3[Drug ROA Admin], 0)), 0) -> 0 | GM6: =IFERROR(IF(Table1[[#This Row],[Regimen type (0=unlimited, 1=time-limited)]]=0, Table1[[#This Row],[Drug '# of doses_8 (for unlimited regimens, '# per year)]]/12, IF(Table1[[#This Row],[Regimen type (0=unlimited, 1=time-limited)]]="0", Table1[[#This Row],[Drug '# of doses_8 (for unlimited regimens, '# per year)]]/12, IF(Table1[[#This Row],[Regimen type (0=unlimited, 1=time-limited)]]=1, Table1[[#This Row],[Drug '# of doses_8 (for unlimited regimens, '# per year)]], IF(Table1[[#This Row],[Regimen type (0=unlimited, 1=time-limited)]]="1", Table1[[#This Row],[Drug '# of doses_8 (for unlimited regimens, '# per year)]], "CHECK"))))*INDEX(Table3[Total Admin Cost], MATCH(Table1[[#This Row],[Drug ROA_8]], Table3[Drug ROA Admin], 0)), 0) -> 0 | GN6: =IFERROR(IF(Table1[[#This Row],[Regimen type (0=unlimited, 1=time-limited)]]=0, Table1[[#This Row],[Drug '# of doses_9 (for unlimited regimens, '# per year)]]/12, IF(Table1[[#This Row],[Regimen type (0=unlimited, 1=time-limited)]]="0", Table1[[#This Row],[Drug '# of doses_9 (for unlimited regimens, '# per year)]]/12, IF(Table1[[#This Row],[Regimen type (0=unlimited, 1=time-limited)]]=1, Table1[[#This Row],[Drug '# of doses_9 (for unlimited regimens, '# per year)]], IF(Table1[[#This Row],[Regimen type (0=unlimited, 1=time-limited)]]="1", Table1[[#This Row],[Drug '# of doses_9 (for unlimited regimens, '# per year)]], "CHECK"))))*INDEX(Table3[Total Admin Cost], MATCH(Table1[[#This Row],[Drug ROA_9]], Table3[Drug ROA Admin], 0)), 0) -> 0 | GO6: =IFERROR(IF(Table1[[#This Row],[Regimen type (0=unlimited, 1=time-limited)]]=0, Table1[[#This Row],[Drug '# of doses_10 (for unlimited regimens, '# per year)]]/12, IF(Table1[[#This Row],[Regimen type (0=unlimited, 1=time-limited)]]="0", Table1[[#This Row],[Drug '# of doses_10 (for unlimited regimens, '# per year)]]/12, IF(Table1[[#This Row],[Regimen type (0=unlimited, 1=time-limited)]]=1, Table1[[#This Row],[Drug '# of doses_10 (for unlimited regimens, '# per year)]], IF(Table1[[#This Row],[Regimen type (0=unlimited, 1=time-limited)]]="1", Table1[[#This Row],[Drug '# of doses_10 (for unlimited regimens, '# per year)]], "CHECK"))))*INDEX(Table3[Total Admin Cost], MATCH(Table1[[#This Row],[Drug ROA_10]], Table3[Drug ROA Admin], 0)), 0) -> 0 | GP6: =IFERROR(IF(Table1[[#This Row],[Regimen type (0=unlimited, 1=time-limited)]]=0, Table1[[#This Row],[Drug '# of doses_11 (for unlimited regimens, '# per year)]]/12, IF(Table1[[#This Row],[Regimen type (0=unlimited, 1=time-limited)]]="0", Table1[[#This Row],[Drug '# of doses_11 (for unlimited regimens, '# per year)]]/12, IF(Table1[[#This Row],[Regimen type (0=unlimited, 1=time-limited)]]=1, Table1[[#This Row],[Drug '# of doses_11 (for unlimited regimens, '# per year)]], IF(Table1[[#This Row],[Regimen type (0=unlimited, 1=time-limited)]]="1", Table1[[#This Row],[Drug '# of doses_11 (for unlimited regimens, '# per year)]], "CHECK"))))*INDEX(Table3[Total Admin Cost], MATCH(Table1[[#This Row],[Drug ROA_11]], Table3[Drug ROA Admin], 0)), 0) -> 0 | GQ6: =SUM(Table1[[#This Row],[Admin Drug 1]:[Admin Drug 11]]) -> 3481.24
A7: Breast | B7: Breast | C7: 2.2016 | D7: Preoperative/adjuvant therapy regimens for HER2-negative disease | E7: Neoadjuvant | F7: 14003 | G7: TC (docetaxel and cyclophosphamide) | H7: 4 | I7: 3 | J7: 3 | K7: 4 | L7: 4 | M7: =SUM(Table1[[#This Row],[Efficacy]:[Safety]]) -> 7 | N7: =SUM(Table1[[#This Row],[Efficacy]:[Consistency]]) -> 14 | O7: 1 | P7: 0 | Q7: 0 | R7: 2A | S7: First-line | T7: =IF(Table1[[#This Row],[Line of therapy]]="first-line", "0", IF(Table1[[#This Row],[Line of therapy]]="second-line or subsequent", "1", IF(Table1[[#This Row],[Line of therapy]]="second-line", "1", IF(Table1[[#This Row],[Line of therapy]]="third-line", "1", IF(Table1[[#This Row],[Line of therapy]]="fourth-line", "1", IF(Table1[[#This Row],[Line of therapy]]="fifth-line", "1", IF(Table1[[#This Row],[Line of therapy]]="sixth-line", "1", IF(Table1[[#This Row],[Line of therapy]]="persistent disease or progression", "1", IF(Table1[[#This Row],[Line of therapy]]="relapsed/refractory", "1", IF(Table1[[#This Row],[Line of therapy]]="subsequent", "1", IF(Table1[[#This Row],[Line of therapy]]="maintenance", "2", ""))))))))))) -> 0 | U7: 1 | V7: 0 | W7: =Table1[[#This Row],[Total regimen price]]+Table1[[#This Row],[Admin Total]] -> 4147.198 | X7: =Table1[[#This Row],[Total regimen price]]+Table1[[#This Row],[Supportive Care, high margin_adj]]+Table1[[#This Row],[GF, high margin_adj]]+Table1[[#This Row],[Admin Total]] -> 21525.778 | Y7: =Table1[[#This Row],[Total regimen price]]+Table1[[#This Row],[Supportive Care, low margin_adj]]+Table1[[#This Row],[GF, low margin_adj]]+Table1[[#This Row],[Admin Total]] -> 20625.282 | Z7: =Table1[[#This Row],[Physician margin_1]]+Table1[[#This Row],[Physician margin_2]]+Table1[[#This Row],[Physician margin_3]]+Table1[[#This Row],[Physician margin_4]]+Table1[[#This Row],[Physician margin_5]]+Table1[[#This Row],[Physician margin_6]]+Table1[[#This Row],[Physician margin_7]]+Table1[[#This Row],[Physician margin_8]]+Table1[[#This Row],[Physician margin_9]]+Table1[[#This Row],[Physician margin_10]]+Table1[[#This Row],[Physician margin_11]]+Table1[[#This Row],[Physician margin supportive Care, high margin_adj]]+Table1[[#This Row],[Physician margin GF, high margin_adj]] -> 1155.220642 | AA7: =Table1[[#This Row],[Physician margin_1]]+Table1[[#This Row],[Physician margin_2]]+Table1[[#This Row],[Physician margin_3]]+Table1[[#This Row],[Physician margin_4]]+Table1[[#This Row],[Physician margin_5]]+Table1[[#This Row],[Physician margin_6]]+Table1[[#This Row],[Physician margin_7]]+Table1[[#This Row],[Physician margin_8]]+Table1[[#This Row],[Physician margin_9]]+Table1[[#This Row],[Physician margin_10]]+Table1[[#This Row],[Physician margin_11]]+Table1[[#This Row],[Physician margin supportive Care, low margin_adj]]+Table1[[#This Row],[Physician margin GF, low margin_adj]] -> 1104.24917 | AB7: Docetaxel | AC7: IV | AD7: Docetaxel IV | AE7: 75 | AF7: mg/m2 | AG7: 4 | AH7: =IF(ISNUMBER(SEARCH("/m2", Table1[[#This Row],[Drug units_1]])), Table1[[#This Row],[Drug dose_1]]*1.7, IF(ISNUMBER(SEARCH("/kg", Table1[[#This Row],[Drug units_1]])), Table1[[#This Row],[Drug dose_1]]*70, Table1[[#This Row],[Drug dose_1]])) -> 127.5 | AI7: =IFERROR(INDEX(Table2[ASP Price per Unit], MATCH(Table1[[#This Row],[Drug ROA_1]], Table2[Unique Drugs All ROA], 0)), "") -> 2.557 | AJ7: =IFERROR(INDEX(Table2[Price per unit], MATCH(Table1[[#This Row],[Drug ROA_1]], Table2[Unique Drugs All ROA], 0)), "") -> 2.557 | AK7: =IFERROR(INDEX(Table2[Unit], MATCH(Table1[[#This Row],[Drug ROA_1]], Table2[Unique Drugs All ROA], 0)), "") -> MG | AL7: =IFERROR(IF(Table1[[#This Row],[Unit_1]]="post-SC admin price", Table1[[#This Row],[Price per unit_1]], IF(Table1[[#This Row],[Unit_1]]="pre-SC admin price", Table1[[#This Row],[Price per unit_1]], Table1[[#This Row],[Dose with Mass Multiplier_1]]*Table1[[#This Row],[Drug '# of doses_1 (for unlimited regimens, '# per year)]]*Table1[[#This Row],[Price per unit_1]])), 0) -> 1304.07 | AM7: =IFERROR(IF(Table1[[#This Row],[Regimen type (0=unlimited, 1=time-limited)]]=1, Table1[[#This Row],[Drug Price per year_1]], IF(Table1[[#This Row],[Regimen type (0=unlimited, 1=time-limited)]]="1", Table1[[#This Row],[Drug Price per year_1]], IF(Table1[[#This Row],[Regimen type (0=unlimited, 1=time-limited)]]=0, Table1[[#This Row],[Drug Price per year_1]]/12, IF(Table1[[#This Row],[Regimen type (0=unlimited, 1=time-limited)]]="0", Table1[[#This Row],[Drug Price per year_1]]/12, "CHECK")))), 0) -> 1304.07 | AN7: =IF(Table1[[#This Row],[ASP price per unit_1]]<>0, Table1[[#This Row],[Drug Price_1]]/1.06*0.06, 0) -> 73.81528302 | AO7: Cyclophosphamide | AP7: IV | AQ7: Cyclophosphamide IV | AR7: 600 | AS7: mg/m2 | AT7: 4 | AU7: =IF(ISNUMBER(SEARCH("/m2", Table1[[#This Row],[Drug units_2]])), Table1[[#This Row],[Drug dose_2]]*1.7, IF(ISNUMBER(SEARCH("/kg", Table1[[#This Row],[Drug units_2]])), Table1[[#This Row],[Drug dose_2]]*70, Table1[[#This Row],[Drug dose_2]])) -> 1020 | AV7: =IFERROR(INDEX(Table2[ASP Price per Unit], MATCH(Table1[[#This Row],[Drug ROA_2]], Table2[Unique Drugs All ROA], 0)), "") -> 0.4231 | AW7: =IFERROR(INDEX(Table2[Price per unit], MATCH(Table1[[#This Row],[Drug ROA_2]], Table2[Unique Drugs All ROA], 0)), "") -> 0.4231 | AX7: =IFERROR(INDEX(Table2[Unit], MATCH(Table1[[#This Row],[Drug ROA_2]], Table2[Unique Drugs All ROA], 0)), "") -> MG | AY7: =IFERROR(IF(Table1[[#This Row],[Unit_2]]="post-SC admin price", Table1[[#This Row],[Price per unit_2]], IF(Table1[[#This Row],[Unit_2]]="pre-SC admin price", Table1[[#This Row],[Price per unit_2]], Table1[[#This Row],[Dose with Mass Multiplier_2]]*Table1[[#This Row],[Drug '# of doses_2 (for unlimited regimens, '# per year)]]*Table1[[#This Row],[Price per unit_2]])), 0) -> 1726.248 | AZ7: =IFERROR(IF(Table1[[#This Row],[Regimen type (0=unlimited, 1=time-limited)]]=1, Table1[[#This Row],[Drug Price per year_2]], IF(Table1[[#This Row],[Regimen type (0=unlimited, 1=time-limited)]]="1", Table1[[#This Row],[Drug Price per year_2]], IF(Table1[[#This Row],[Regimen type (0=unlimited, 1=time-limited)]]=0, Table1[[#This Row],[Drug Price per year_2]]/12, IF(Table1[[#This Row],[Regimen type (0=unlimited, 1=time-limited)]]="0", Table1[[#This Row],[Drug Price per year_2]]/12, "CHECK")))), 0) -> 1726.248 | BA7: =IF(Table1[[#This Row],[ASP price per unit_2]]<>0, Table1[[#This Row],[Drug Price_2]]/1.06*0.06, 0) -> 97.71215094 | BB7: 0 | BC7: 0 | BE7: 0 | BF7: 0 | BG7: 0 | BH7: =IF(ISNUMBER(SEARCH("/m2", Table1[[#This Row],[Drug units_3]])), Table1[[#This Row],[Drug dose_3]]*1.7, IF(ISNUMBER(SEARCH("/kg", Table1[[#This Row],[Drug units_3]])), Table1[[#This Row],[Drug dose_3]]*70, Table1[[#This Row],[Drug dose_3]])) -> 0 | BI7: =IFERROR(INDEX(Table2[ASP Price per Unit], MATCH(Table1[[#This Row],[Drug ROA_3]], Table2[Unique Drugs All ROA], 0)), "") ->  | BJ7: =IFERROR(INDEX(Table2[Price per unit], MATCH(Table1[[#This Row],[Drug ROA_3]], Table2[Unique Drugs All ROA], 0)), "") ->  | BK7: =IFERROR(INDEX(Table2[Unit], MATCH(Table1[[#This Row],[Drug ROA_3]], Table2[Unique Drugs All ROA], 0)), "") ->  | BL7: =IFERROR(IF(Table1[[#This Row],[Unit_3]]="post-SC admin price", Table1[[#This Row],[Price per unit_3]], IF(Table1[[#This Row],[Unit_3]]="pre-SC admin price", Table1[[#This Row],[Price per unit_3]], Table1[[#This Row],[Dose with Mass Multiplier_3]]*Table1[[#This Row],[Drug '# of doses_3 (for unlimited regimens, '# per year)]]*Table1[[#This Row],[Price per unit_3]])), 0) -> 0 | BM7: =IFERROR(IF(Table1[[#This Row],[Regimen type (0=unlimited, 1=time-limited)]]=1, Table1[[#This Row],[Drug Price per year_3]], IF(Table1[[#This Row],[Regimen type (0=unlimited, 1=time-limited)]]="1", Table1[[#This Row],[Drug Price per year_3]], IF(Table1[[#This Row],[Regimen type (0=unlimited, 1=time-limited)]]=0, Table1[[#This Row],[Drug Price per year_3]]/12, IF(Table1[[#This Row],[Regimen type (0=unlimited, 1=time-limited)]]="0", Table1[[#This Row],[Drug Price per year_3]]/12, "CHECK")))), 0) -> 0 | BN7: =IF(Table1[[#This Row],[ASP price per unit_3]]<>0, Table1[[#This Row],[Drug Price_3]]/1.06*0.06, 0) -> 0 | BO7: 0 | BP7: 0 | BR7: 0 | BS7: 0 | BT7: 0 | BU7: =IF(ISNUMBER(SEARCH("/m2", Table1[[#This Row],[Drug units_4]])), Table1[[#This Row],[Drug dose_4]]*1.7, IF(ISNUMBER(SEARCH("/kg", Table1[[#This Row],[Drug units_4]])), Table1[[#This Row],[Drug dose_4]]*70, Table1[[#This Row],[Drug dose_4]])) -> 0 | BV7: =IFERROR(INDEX(Table2[ASP Price per Unit], MATCH(Table1[[#This Row],[Drug ROA_4]], Table2[Unique Drugs All ROA], 0)), "") ->  | BW7: =IFERROR(INDEX(Table2[Price per unit], MATCH(Table1[[#This Row],[Drug ROA_4]], Table2[Unique Drugs All ROA], 0)), "") ->  | BX7: =IFERROR(INDEX(Table2[Unit], MATCH(Table1[[#This Row],[Drug ROA_4]], Table2[Unique Drugs All ROA], 0)), "") ->  | BY7: =IFERROR(IF(Table1[[#This Row],[Unit_4]]="post-SC admin price", Table1[[#This Row],[Price per unit_4]], IF(Table1[[#This Row],[Unit_4]]="pre-SC admin price", Table1[[#This Row],[Price per unit_4]], Table1[[#This Row],[Dose with Mass Multiplier_4]]*Table1[[#This Row],[Drug '# of doses_4 (for unlimited regimens, '# per year)]]*Table1[[#This Row],[Price per unit_4]])), 0) -> 0 | BZ7: =IFERROR(IF(Table1[[#This Row],[Regimen type (0=unlimited, 1=time-limited)]]=1, Table1[[#This Row],[Drug Price per year_4]], IF(Table1[[#This Row],[Regimen type (0=unlimited, 1=time-limited)]]="1", Table1[[#This Row],[Drug Price per year_4]], IF(Table1[[#This Row],[Regimen type (0=unlimited, 1=time-limited)]]=0, Table1[[#This Row],[Drug Price per year_4]]/12, IF(Table1[[#This Row],[Regimen type (0=unlimited, 1=time-limited)]]="0", Table1[[#This Row],[Drug Price per year_4]]/12, "CHECK")))), 0) -> 0 | CA7: =IF(Table1[[#This Row],[ASP price per unit_4]]<>0, Table1[[#This Row],[Drug Price_4]]/1.06*0.06, 0) -> 0 | CB7: 0 | CC7: 0 | CE7: 0 | CF7: 0 | CG7: 0 | CH7: =IF(ISNUMBER(SEARCH("/m2", Table1[[#This Row],[Drug units_5]])), Table1[[#This Row],[Drug dose_5]]*1.7, IF(ISNUMBER(SEARCH("/kg", Table1[[#This Row],[Drug units_5]])), Table1[[#This Row],[Drug dose_5]]*70, Table1[[#This Row],[Drug dose_5]])) -> 0 | CI7: =IFERROR(INDEX(Table2[ASP Price per Unit], MATCH(Table1[[#This Row],[Drug ROA_5]], Table2[Unique Drugs All ROA], 0)), "") ->  | CJ7: =IFERROR(INDEX(Table2[Price per unit], MATCH(Table1[[#This Row],[Drug ROA_5]], Table2[Unique Drugs All ROA], 0)), "") ->  | CK7: =IFERROR(INDEX(Table2[Unit], MATCH(Table1[[#This Row],[Drug ROA_5]], Table2[Unique Drugs All ROA], 0)), "") ->  | CL7: =IFERROR(IF(Table1[[#This Row],[Unit_5]]="post-SC admin price", Table1[[#This Row],[Price per unit_5]], IF(Table1[[#This Row],[Unit_5]]="pre-SC admin price", Table1[[#This Row],[Price per unit_5]], Table1[[#This Row],[Dose with Mass Multiplier_5]]*Table1[[#This Row],[Drug '# of doses_5 (for unlimited regimens, '# per year)]]*Table1[[#This Row],[Price per unit_5]])), 0) -> 0 | CM7: =IFERROR(IF(Table1[[#This Row],[Regimen type (0=unlimited, 1=time-limited)]]=1, Table1[[#This Row],[Drug Price per year_5]], IF(Table1[[#This Row],[Regimen type (0=unlimited, 1=time-limited)]]="1", Table1[[#This Row],[Drug Price per year_5]], IF(Table1[[#This Row],[Regimen type (0=unlimited, 1=time-limited)]]=0, Table1[[#This Row],[Drug Price per year_5]]/12, IF(Table1[[#This Row],[Regimen type (0=unlimited, 1=time-limited)]]="0", Table1[[#This Row],[Drug Price per year_5]]/12, "CHECK")))), 0) -> 0 | CN7: =IF(Table1[[#This Row],[ASP price per unit_5]]<>0, Table1[[#This Row],[Drug Price_5]]/1.06*0.06, 0) -> 0 | CO7: 0 | CP7: 0 | CR7: 0 | CS7: 0 | CT7: 0 | CU7: =IF(ISNUMBER(SEARCH("/m2", Table1[[#This Row],[Drug units_6]])), Table1[[#This Row],[Drug dose_6]]*1.7, IF(ISNUMBER(SEARCH("/kg", Table1[[#This Row],[Drug units_6]])), Table1[[#This Row],[Drug dose_6]]*70, Table1[[#This Row],[Drug dose_6]])) -> 0 | CV7: =IFERROR(INDEX(Table2[ASP Price per Unit], MATCH(Table1[[#This Row],[Drug ROA_6]], Table2[Unique Drugs All ROA], 0)), "") ->  | CW7: =IFERROR(INDEX(Table2[Price per unit], MATCH(Table1[[#This Row],[Drug ROA_6]], Table2[Unique Drugs All ROA], 0)), "") ->  | CX7: =IFERROR(INDEX(Table2[Unit], MATCH(Table1[[#This Row],[Drug ROA_6]], Table2[Unique Drugs All ROA], 0)), "") ->  | CY7: =IFERROR(IF(Table1[[#This Row],[Unit_6]]="post-SC admin price", Table1[[#This Row],[Price per unit_6]], IF(Table1[[#This Row],[Unit_6]]="pre-SC admin price", Table1[[#This Row],[Price per unit_6]], Table1[[#This Row],[Dose with Mass Multiplier_6]]*Table1[[#This Row],[Drug '# of doses_6 (for unlimited regimens, '# per year)]]*Table1[[#This Row],[Price per unit_6]])), 0) -> 0 | CZ7: =IFERROR(IF(Table1[[#This Row],[Regimen type (0=unlimited, 1=time-limited)]]=1, Table1[[#This Row],[Drug Price per year_6]], IF(Table1[[#This Row],[Regimen type (0=unlimited, 1=time-limited)]]="1", Table1[[#This Row],[Drug Price per year_6]], IF(Table1[[#This Row],[Regimen type (0=unlimited, 1=time-limited)]]=0, Table1[[#This Row],[Drug Price per year_6]]/12, IF(Table1[[#This Row],[Regimen type (0=unlimited, 1=time-limited)]]="0", Table1[[#This Row],[Drug Price per year_6]]/12, "CHECK")))), 0) -> 0 | DA7: =IF(Table1[[#This Row],[ASP price per unit_6]]<>0, Table1[[#This Row],[Drug Price_6]]/1.06*0.06, 0) -> 0 | DB7: 0 | DC7: 0 | DE7: 0 | DF7: 0 | DG7: 0 | DH7: =IF(ISNUMBER(SEARCH("/m2", Table1[[#This Row],[Drug units_7]])), Table1[[#This Row],[Drug dose_7]]*1.7, IF(ISNUMBER(SEARCH("/kg", Table1[[#This Row],[Drug units_7]])), Table1[[#This Row],[Drug dose_7]]*70, Table1[[#This Row],[Drug dose_7]])) -> 0 | DI7: =IFERROR(INDEX(Table2[ASP Price per Unit], MATCH(Table1[[#This Row],[Drug ROA_7]], Table2[Unique Drugs All ROA], 0)), "") ->  | DJ7: =IFERROR(INDEX(Table2[Price per unit], MATCH(Table1[[#This Row],[Drug ROA_7]], Table2[Unique Drugs All ROA], 0)), "") ->  | DK7: =IFERROR(INDEX(Table2[Unit], MATCH(Table1[[#This Row],[Drug ROA_7]], Table2[Unique Drugs All ROA], 0)), "") ->  | DL7: =IFERROR(IF(Table1[[#This Row],[Unit_7]]="post-SC admin price", Table1[[#This Row],[Price per unit_7]], IF(Table1[[#This Row],[Unit_7]]="pre-SC admin price", Table1[[#This Row],[Price per unit_7]], Table1[[#This Row],[Dose with Mass Multiplier_7]]*Table1[[#This Row],[Drug '# of doses_7 (for unlimited regimens, '# per year)]]*Table1[[#This Row],[Price per unit_7]])), 0) -> 0 | DM7: =IFERROR(IF(Table1[[#This Row],[Regimen type (0=unlimited, 1=time-limited)]]=1, Table1[[#This Row],[Drug Price per year_7]], IF(Table1[[#This Row],[Regimen type (0=unlimited, 1=time-limited)]]="1", Table1[[#This Row],[Drug Price per year_7]], IF(Table1[[#This Row],[Regimen type (0=unlimited, 1=time-limited)]]=0, Table1[[#This Row],[Drug Price per year_7]]/12, IF(Table1[[#This Row],[Regimen type (0=unlimited, 1=time-limited)]]="0", Table1[[#This Row],[Drug Price per year_7]]/12, "CHECK")))), 0) -> 0 | DN7: =IF(Table1[[#This Row],[ASP price per unit_7]]<>0, Table1[[#This Row],[Drug Price_7]]/1.06*0.06, 0) -> 0 | DO7: 0 | DP7: 0 | DR7: 0 | DS7: 0 | DT7: 0 | DU7: =IF(ISNUMBER(SEARCH("/m2", Table1[[#This Row],[Drug units_8]])), Table1[[#This Row],[Drug dose_8]]*1.7, IF(ISNUMBER(SEARCH("/kg", Table1[[#This Row],[Drug units_8]])), Table1[[#This Row],[Drug dose_8]]*70, Table1[[#This Row],[Drug dose_8]])) -> 0 | DV7: =IFERROR(INDEX(Table2[ASP Price per Unit], MATCH(Table1[[#This Row],[Drug ROA_8]], Table2[Unique Drugs All ROA], 0)), "") ->  | DW7: =IFERROR(INDEX(Table2[Price per unit], MATCH(Table1[[#This Row],[Drug ROA_8]], Table2[Unique Drugs All ROA], 0)), "") ->  | DX7: =IFERROR(INDEX(Table2[Unit], MATCH(Table1[[#This Row],[Drug ROA_8]], Table2[Unique Drugs All ROA], 0)), "") ->  | DY7: =IFERROR(IF(Table1[[#This Row],[Unit_8]]="post-SC admin price", Table1[[#This Row],[Price per unit_8]], IF(Table1[[#This Row],[Unit_8]]="pre-SC admin price", Table1[[#This Row],[Price per unit_8]], Table1[[#This Row],[Dose with Mass Multiplier_8]]*Table1[[#This Row],[Drug '# of doses_8 (for unlimited regimens, '# per year)]]*Table1[[#This Row],[Price per unit_8]])), 0) -> 0 | DZ7: =IFERROR(IF(Table1[[#This Row],[Regimen type (0=unlimited, 1=time-limited)]]=1, Table1[[#This Row],[Drug Price per year_8]], IF(Table1[[#This Row],[Regimen type (0=unlimited, 1=time-limited)]]="1", Table1[[#This Row],[Drug Price per year_8]], IF(Table1[[#This Row],[Regimen type (0=unlimited, 1=time-limited)]]=0, Table1[[#This Row],[Drug Price per year_8]]/12, IF(Table1[[#This Row],[Regimen type (0=unlimited, 1=time-limited)]]="0", Table1[[#This Row],[Drug Price per year_8]]/12, "CHECK")))), 0) -> 0 | EA7: =IF(Table1[[#This Row],[ASP price per unit_8]]<>0, Table1[[#This Row],[Drug Price_8]]/1.06*0.06, 0) -> 0 | EE7: 0 | EH7: =IF(ISNUMBER(SEARCH("/m2", Table1[[#This Row],[Drug units_9]])), Table1[[#This Row],[Drug dose_9]]*1.7, IF(ISNUMBER(SEARCH("/kg", Table1[[#This Row],[Drug units_9]])), Table1[[#This Row],[Drug dose_9]]*70, Table1[[#This Row],[Drug dose_9]])) -> 0 | EI7: =IFERROR(INDEX(Table2[ASP Price per Unit], MATCH(Table1[[#This Row],[Drug ROA_9]], Table2[Unique Drugs All ROA], 0)), "") ->  | EJ7: =IFERROR(INDEX(Table2[Price per unit], MATCH(Table1[[#This Row],[Drug ROA_9]], Table2[Unique Drugs All ROA], 0)), "") ->  | EK7: =IFERROR(INDEX(Table2[Unit], MATCH(Table1[[#This Row],[Drug ROA_9]], Table2[Unique Drugs All ROA], 0)), "") ->  | EL7: =IFERROR(IF(Table1[[#This Row],[Unit_9]]="post-SC admin price", Table1[[#This Row],[Price per unit_9]], IF(Table1[[#This Row],[Unit_9]]="pre-SC admin price", Table1[[#This Row],[Price per unit_9]], Table1[[#This Row],[Dose with Mass Multiplier_9]]*Table1[[#This Row],[Drug '# of doses_9 (for unlimited regimens, '# per year)]]*Table1[[#This Row],[Price per unit_9]])), 0) -> 0 | EM7: =IFERROR(IF(Table1[[#This Row],[Regimen type (0=unlimited, 1=time-limited)]]=1, Table1[[#This Row],[Drug Price per year_9]], IF(Table1[[#This Row],[Regimen type (0=unlimited, 1=time-limited)]]="1", Table1[[#This Row],[Drug Price per year_9]], IF(Table1[[#This Row],[Regimen type (0=unlimited, 1=time-limited)]]=0, Table1[[#This Row],[Drug Price per year_9]]/12, IF(Table1[[#This Row],[Regimen type (0=unlimited, 1=time-limited)]]="0", Table1[[#This Row],[Drug Price per year_9]]/12, "CHECK")))), 0) -> 0 | EN7: =IF(Table1[[#This Row],[ASP price per unit_9]]<>0, Table1[[#This Row],[Drug Price_9]]/1.06*0.06, 0) -> 0 | EO7: 0 | EP7: 0 | ER7: 0 | ES7: 0 | ET7: 0 | EU7: =IF(ISNUMBER(SEARCH("/m2", Table1[[#This Row],[Drug units_10]])), Table1[[#This Row],[Drug dose_10]]*1.7, IF(ISNUMBER(SEARCH("/kg", Table1[[#This Row],[Drug units_10]])), Table1[[#This Row],[Drug dose_10]]*70, Table1[[#This Row],[Drug dose_10]])) -> 0 | EV7: =IFERROR(INDEX(Table2[ASP Price per Unit], MATCH(Table1[[#This Row],[Drug ROA_10]], Table2[Unique Drugs All ROA], 0)), "") ->  | EW7: =IFERROR(INDEX(Table2[Price per unit], MATCH(Table1[[#This Row],[Drug ROA_10]], Table2[Unique Drugs All ROA], 0)), "") ->  | EX7: =IFERROR(INDEX(Table2[Unit], MATCH(Table1[[#This Row],[Drug ROA_10]], Table2[Unique Drugs All ROA], 0)), "") ->  | EY7: =IFERROR(IF(Table1[[#This Row],[Unit_10]]="post-SC admin price", Table1[[#This Row],[Price per unit_10]], IF(Table1[[#This Row],[Unit_10]]="pre-SC admin price", Table1[[#This Row],[Price per unit_10]], Table1[[#This Row],[Dose with Mass Multiplier_10]]*Table1[[#This Row],[Drug '# of doses_10 (for unlimited regimens, '# per year)]]*Table1[[#This Row],[Price per unit_10]])), 0) -> 0 | EZ7: =IFERROR(IF(Table1[[#This Row],[Regimen type (0=unlimited, 1=time-limited)]]=1, Table1[[#This Row],[Drug Price per year_10]], IF(Table1[[#This Row],[Regimen type (0=unlimited, 1=time-limited)]]="1", Table1[[#This Row],[Drug Price per year_10]], IF(Table1[[#This Row],[Regimen type (0=unlimited, 1=time-limited)]]=0, Table1[[#This Row],[Drug Price per year_10]]/12, IF(Table1[[#This Row],[Regimen type (0=unlimited, 1=time-limited)]]="0", Table1[[#This Row],[Drug Price per year_10]]/12, "CHECK")))), 0) -> 0 | FA7: =IF(Table1[[#This Row],[ASP price per unit_10]]<>0, Table1[[#This Row],[Drug Price_10]]/1.06*0.06, 0) -> 0 | FB7: 0 | FC7: 0 | FE7: 0 | FF7: 0 | FG7: 0 | FH7: =IF(ISNUMBER(SEARCH("/m2", Table1[[#This Row],[Drug units_11]])), Table1[[#This Row],[Drug dose_11]]*1.7, IF(ISNUMBER(SEARCH("/kg", Table1[[#This Row],[Drug units_11]])), Table1[[#This Row],[Drug dose_11]]*70, Table1[[#This Row],[Drug dose_11]])) -> 0 | FI7: =IFERROR(INDEX(Table2[ASP Price per Unit], MATCH(Table1[[#This Row],[Drug ROA_11]], Table2[Unique Drugs All ROA], 0)), "") ->  | FJ7: =IFERROR(INDEX(Table2[Price per unit], MATCH(Table1[[#This Row],[Drug ROA_11]], Table2[Unique Drugs All ROA], 0)), "") ->  | FK7: =IFERROR(INDEX(Table2[Unit], MATCH(Table1[[#This Row],[Drug ROA_11]], Table2[Unique Drugs All ROA], 0)), "") ->  | FL7: =IFERROR(IF(Table1[[#This Row],[Unit_11]]="post-SC admin price", Table1[[#This Row],[Price per unit_11]], IF(Table1[[#This Row],[Unit_11]]="pre-SC admin price", Table1[[#This Row],[Price per unit_11]], Table1[[#This Row],[Dose with Mass Multiplier_11]]*Table1[[#This Row],[Drug '# of doses_11 (for unlimited regimens, '# per year)]]*Table1[[#This Row],[Price per unit_11]])), 0) -> 0 | FM7: =IFERROR(IF(Table1[[#This Row],[Regimen type (0=unlimited, 1=time-limited)]]=1, Table1[[#This Row],[Drug Price per year_11]], IF(Table1[[#This Row],[Regimen type (0=unlimited, 1=time-limited)]]="1", Table1[[#This Row],[Drug Price per year_11]], IF(Table1[[#This Row],[Regimen type (0=unlimited, 1=time-limited)]]=0, Table1[[#This Row],[Drug Price per year_11]]/12, IF(Table1[[#This Row],[Regimen type (0=unlimited, 1=time-limited)]]="0", Table1[[#This Row],[Drug Price per year_11]]/12, "CHECK")))), 0) -> 0 | FN7: =IF(Table1[[#This Row],[ASP price per unit_11]]<>0, Table1[[#This Row],[Drug Price_11]]/1.06*0.06, 0) -> 0 | FO7: =Table1[[#This Row],[Drug Price_1]] + Table1[[#This Row],[Drug Price_2]] + Table1[[#This Row],[Drug Price_3]]+ Table1[[#This Row],[Drug Price_4]]+ Table1[[#This Row],[Drug Price_5]]+ Table1[[#This Row],[Drug Price_6]]+ Table1[[#This Row],[Drug Price_7]]+ Table1[[#This Row],[Drug Price_8]]+ Table1[[#This Row],[Drug Price_9]]+ Table1[[#This Row],[Drug Price_10]]+ Table1[[#This Row],[Drug Price_11]] -> 3030.318 | FP7: 2 | FQ7: 4 | FR7: 2 | FS7: 4 | FT7: =IF(Table1[[#This Row],[Emetic Risk (0=min, 1=low, 2=inter, 3=high)]]=0, SC_Admin_SpecialCases!$F$12*Table1[[#This Row],['# of supportive doses]], IF(Table1[[#This Row],[Emetic Risk (0=min, 1=low, 2=inter, 3=high)]]=1, SC_Admin_SpecialCases!$F$14*Table1[[#This Row],['# of supportive doses]], IF(Table1[[#This Row],[Emetic Risk (0=min, 1=low, 2=inter, 3=high)]]=2, SC_Admin_SpecialCases!$F$16*Table1[[#This Row],['# of supportive doses]], IF(Table1[[#This Row],[Emetic Risk (0=min, 1=low, 2=inter, 3=high)]]=3, SC_Admin_SpecialCases!$F$18*Table1[[#This Row],['# of supportive doses]], "CHECK")))) -> 9.152 | FU7: =IF(Table1[[#This Row],[Emetic Risk (0=min, 1=low, 2=inter, 3=high)]]=0, SC_Admin_SpecialCases!$F$13*Table1[[#This Row],['# of supportive doses]], IF(Table1[[#This Row],[Emetic Risk (0=min, 1=low, 2=inter, 3=high)]]=1, SC_Admin_SpecialCases!$F$15*Table1[[#This Row],['# of supportive doses]], IF(Table1[[#This Row],[Emetic Risk (0=min, 1=low, 2=inter, 3=high)]]=2, SC_Admin_SpecialCases!$F$17*Table1[[#This Row],['# of supportive doses]], IF(Table1[[#This Row],[Emetic Risk (0=min, 1=low, 2=inter, 3=high)]]=3, SC_Admin_SpecialCases!$F$19*Table1[[#This Row],['# of supportive doses]], "CHECK")))) -> 909.648 | FV7: =IF(Table1[[#This Row],[Growth Factor (0=low, 1=inter, 2=high)]]=0, SC_Admin_SpecialCases!$F$4*Table1[[#This Row],['# of GCSF doses]], IF(Table1[[#This Row],[Growth Factor (0=low, 1=inter, 2=high)]]=1, SC_Admin_SpecialCases!$F$6*Table1[[#This Row],['# of GCSF doses]], IF(Table1[[#This Row],[Growth Factor (0=low, 1=inter, 2=high)]]=2, SC_Admin_SpecialCases!$F$8*Table1[[#This Row],['# of GCSF doses]], "CHECK"))) -> 16468.932 | FW7: =IF(Table1[[#This Row],[Growth Factor (0=low, 1=inter, 2=high)]]=0, SC_Admin_SpecialCases!$F$5*Table1[[#This Row],['# of GCSF doses]], IF(Table1[[#This Row],[Growth Factor (0=low, 1=inter, 2=high)]]=1, SC_Admin_SpecialCases!$F$7*Table1[[#This Row],['# of GCSF doses]], IF(Table1[[#This Row],[Growth Factor (0=low, 1=inter, 2=high)]]=2, SC_Admin_SpecialCases!$F$9*Table1[[#This Row],['# of GCSF doses]], "CHECK"))) -> 16468.932 | FX7: =IF(Table1[[#This Row],[Regimen type (0=unlimited, 1=time-limited)]]=0, Table1[[#This Row],[Supportive Care, low margin]]/12, IF(Table1[[#This Row],[Regimen type (0=unlimited, 1=time-limited)]]="0", Table1[[#This Row],[Supportive Care, low margin]]/12, IF(Table1[[#This Row],[Regimen type (0=unlimited, 1=time-limited)]]=1, Table1[[#This Row],[Supportive Care, low margin]], IF(Table1[[#This Row],[Regimen type (0=unlimited, 1=time-limited)]]="1", Table1[[#This Row],[Supportive Care, low margin]], "CHECK")))) -> 9.152 | FY7: =IF(Table1[[#This Row],[Regimen type (0=unlimited, 1=time-limited)]]=0, Table1[[#This Row],[Supportive Care, high margin]]/12, IF(Table1[[#This Row],[Regimen type (0=unlimited, 1=time-limited)]]="0", Table1[[#This Row],[Supportive Care, high margin]]/12, IF(Table1[[#This Row],[Regimen type (0=unlimited, 1=time-limited)]]=1, Table1[[#This Row],[Supportive Care, high margin]], IF(Table1[[#This Row],[Regimen type (0=unlimited, 1=time-limited)]]="1", Table1[[#This Row],[Supportive Care, high margin]], "CHECK")))) -> 909.648 | FZ7: =IF(Table1[[#This Row],[Regimen type (0=unlimited, 1=time-limited)]]=0, Table1[[#This Row],[GF, low margin]]/12, IF(Table1[[#This Row],[Regimen type (0=unlimited, 1=time-limited)]]="0", Table1[[#This Row],[GF, low margin]]/12, IF(Table1[[#This Row],[Regimen type (0=unlimited, 1=time-limited)]]=1, Table1[[#This Row],[GF, low margin]], IF(Table1[[#This Row],[Regimen type (0=unlimited, 1=time-limited)]]="1", Table1[[#This Row],[GF, low margin]], "CHECK")))) -> 16468.932 | GA7: =IF(Table1[[#This Row],[Regimen type (0=unlimited, 1=time-limited)]]=0, Table1[[#This Row],[GF, high margin]]/12, IF(Table1[[#This Row],[Regimen type (0=unlimited, 1=time-limited)]]="0", Table1[[#This Row],[GF, high margin]]/12, IF(Table1[[#This Row],[Regimen type (0=unlimited, 1=time-limited)]]=1, Table1[[#This Row],[GF, high margin]], IF(Table1[[#This Row],[Regimen type (0=unlimited, 1=time-limited)]]="1", Table1[[#This Row],[GF, high margin]], "CHECK")))) -> 16468.932 | GB7: =Table1[[#This Row],[Supportive Care, low margin_adj]]/1.06*0.06 -> 0.5180377358 | GC7: =Table1[[#This Row],[Supportive Care, high margin_adj]]/1.06*0.06 -> 51.48950943 | GD7: =Table1[[#This Row],[GF, low margin_adj]]/1.06*0.06 -> 932.2036981 | GE7: =Table1[[#This Row],[GF, high margin_adj]]/1.06*0.06 -> 932.2036981 | GF7: =IFERROR(IF(Table1[[#This Row],[Regimen type (0=unlimited, 1=time-limited)]]=0, Table1[[#This Row],[Drug '# of doses_1 (for unlimited regimens, '# per year)]]/12, IF(Table1[[#This Row],[Regimen type (0=unlimited, 1=time-limited)]]="0", Table1[[#This Row],[Drug '# of doses_1 (for unlimited regimens, '# per year)]]/12, IF(Table1[[#This Row],[Regimen type (0=unlimited, 1=time-limited)]]=1, Table1[[#This Row],[Drug '# of doses_1 (for unlimited regimens, '# per year)]], IF(Table1[[#This Row],[Regimen type (0=unlimited, 1=time-limited)]]="1", Table1[[#This Row],[Drug '# of doses_1 (for unlimited regimens, '# per year)]], "CHECK"))))*INDEX(Table3[Total Admin Cost], MATCH(Table1[[#This Row],[Drug ROA_1]], Table3[Drug ROA Admin], 0)), 0) -> 558.44 | GG7: =IFERROR(IF(Table1[[#This Row],[Regimen type (0=unlimited, 1=time-limited)]]=0, Table1[[#This Row],[Drug '# of doses_2 (for unlimited regimens, '# per year)]]/12, IF(Table1[[#This Row],[Regimen type (0=unlimited, 1=time-limited)]]="0", Table1[[#This Row],[Drug '# of doses_2 (for unlimited regimens, '# per year)]]/12, IF(Table1[[#This Row],[Regimen type (0=unlimited, 1=time-limited)]]=1, Table1[[#This Row],[Drug '# of doses_2 (for unlimited regimens, '# per year)]], IF(Table1[[#This Row],[Regimen type (0=unlimited, 1=time-limited)]]="1", Table1[[#This Row],[Drug '# of doses_2 (for unlimited regimens, '# per year)]], "CHECK"))))*INDEX(Table3[Total Admin Cost], MATCH(Table1[[#This Row],[Drug ROA_2]], Table3[Drug ROA Admin], 0)), 0) -> 558.44 | GH7: =IFERROR(IF(Table1[[#This Row],[Regimen type (0=unlimited, 1=time-limited)]]=0, Table1[[#This Row],[Drug '# of doses_3 (for unlimited regimens, '# per year)]]/12, IF(Table1[[#This Row],[Regimen type (0=unlimited, 1=time-limited)]]="0", Table1[[#This Row],[Drug '# of doses_3 (for unlimited regimens, '# per year)]]/12, IF(Table1[[#This Row],[Regimen type (0=unlimited, 1=time-limited)]]=1, Table1[[#This Row],[Drug '# of doses_3 (for unlimited regimens, '# per year)]], IF(Table1[[#This Row],[Regimen type (0=unlimited, 1=time-limited)]]="1", Table1[[#This Row],[Drug '# of doses_3 (for unlimited regimens, '# per year)]], "CHECK"))))*INDEX(Table3[Total Admin Cost], MATCH(Table1[[#This Row],[Drug ROA_3]], Table3[Drug ROA Admin], 0)), 0) -> 0 | GI7: =IFERROR(IF(Table1[[#This Row],[Regimen type (0=unlimited, 1=time-limited)]]=0, Table1[[#This Row],[Drug '# of doses_4 (for unlimited regimens, '# per year)]]/12, IF(Table1[[#This Row],[Regimen type (0=unlimited, 1=time-limited)]]="0", Table1[[#This Row],[Drug '# of doses_4 (for unlimited regimens, '# per year)]]/12, IF(Table1[[#This Row],[Regimen type (0=unlimited, 1=time-limited)]]=1, Table1[[#This Row],[Drug '# of doses_4 (for unlimited regimens, '# per year)]], IF(Table1[[#This Row],[Regimen type (0=unlimited, 1=time-limited)]]="1", Table1[[#This Row],[Drug '# of doses_4 (for unlimited regimens, '# per year)]], "CHECK"))))*INDEX(Table3[Total Admin Cost], MATCH(Table1[[#This Row],[Drug ROA_4]], Table3[Drug ROA Admin], 0)), 0) -> 0 | GJ7: =IFERROR(IF(Table1[[#This Row],[Regimen type (0=unlimited, 1=time-limited)]]=0, Table1[[#This Row],[Drug '# of doses_5 (for unlimited regimens, '# per year)]]/12, IF(Table1[[#This Row],[Regimen type (0=unlimited, 1=time-limited)]]="0", Table1[[#This Row],[Drug '# of doses_5 (for unlimited regimens, '# per year)]]/12, IF(Table1[[#This Row],[Regimen type (0=unlimited, 1=time-limited)]]=1, Table1[[#This Row],[Drug '# of doses_5 (for unlimited regimens, '# per year)]], IF(Table1[[#This Row],[Regimen type (0=unlimited, 1=time-limited)]]="1", Table1[[#This Row],[Drug '# of doses_5 (for unlimited regimens, '# per year)]], "CHECK"))))*INDEX(Table3[Total Admin Cost], MATCH(Table1[[#This Row],[Drug ROA_5]], Table3[Drug ROA Admin], 0)), 0) -> 0 | GK7: =IFERROR(IF(Table1[[#This Row],[Regimen type (0=unlimited, 1=time-limited)]]=0, Table1[[#This Row],[Drug '# of doses_6 (for unlimited regimens, '# per year)]]/12, IF(Table1[[#This Row],[Regimen type (0=unlimited, 1=time-limited)]]="0", Table1[[#This Row],[Drug '# of doses_6 (for unlimited regimens, '# per year)]]/12, IF(Table1[[#This Row],[Regimen type (0=unlimited, 1=time-limited)]]=1, Table1[[#This Row],[Drug '# of doses_6 (for unlimited regimens, '# per year)]], IF(Table1[[#This Row],[Regimen type (0=unlimited, 1=time-limited)]]="1", Table1[[#This Row],[Drug '# of doses_6 (for unlimited regimens, '# per year)]], "CHECK"))))*INDEX(Table3[Total Admin Cost], MATCH(Table1[[#This Row],[Drug ROA_6]], Table3[Drug ROA Admin], 0)), 0) -> 0 | GL7: =IFERROR(IF(Table1[[#This Row],[Regimen type (0=unlimited, 1=time-limited)]]=0, Table1[[#This Row],[Drug '# of doses_7 (for unlimited regimens, '# per year)]]/12, IF(Table1[[#This Row],[Regimen type (0=unlimited, 1=time-limited)]]="0", Table1[[#This Row],[Drug '# of doses_7 (for unlimited regimens, '# per year)]]/12, IF(Table1[[#This Row],[Regimen type (0=unlimited, 1=time-limited)]]=1, Table1[[#This Row],[Drug '# of doses_7 (for unlimited regimens, '# per year)]], IF(Table1[[#This Row],[Regimen type (0=unlimited, 1=time-limited)]]="1", Table1[[#This Row],[Drug '# of doses_7 (for unlimited regimens, '# per year)]], "CHECK"))))*INDEX(Table3[Total Admin Cost], MATCH(Table1[[#This Row],[Drug ROA_7]], Table3[Drug ROA Admin], 0)), 0) -> 0 | GM7: =IFERROR(IF(Table1[[#This Row],[Regimen type (0=unlimited, 1=time-limited)]]=0, Table1[[#This Row],[Drug '# of doses_8 (for unlimited regimens, '# per year)]]/12, IF(Table1[[#This Row],[Regimen type (0=unlimited, 1=time-limited)]]="0", Table1[[#This Row],[Drug '# of doses_8 (for unlimited regimens, '# per year)]]/12, IF(Table1[[#This Row],[Regimen type (0=unlimited, 1=time-limited)]]=1, Table1[[#This Row],[Drug '# of doses_8 (for unlimited regimens, '# per year)]], IF(Table1[[#This Row],[Regimen type (0=unlimited, 1=time-limited)]]="1", Table1[[#This Row],[Drug '# of doses_8 (for unlimited regimens, '# per year)]], "CHECK"))))*INDEX(Table3[Total Admin Cost], MATCH(Table1[[#This Row],[Drug ROA_8]], Table3[Drug ROA Admin], 0)), 0) -> 0 | GN7: =IFERROR(IF(Table1[[#This Row],[Regimen type (0=unlimited, 1=time-limited)]]=0, Table1[[#This Row],[Drug '# of doses_9 (for unlimited regimens, '# per year)]]/12, IF(Table1[[#This Row],[Regimen type (0=unlimited, 1=time-limited)]]="0", Table1[[#This Row],[Drug '# of doses_9 (for unlimited regimens, '# per year)]]/12, IF(Table1[[#This Row],[Regimen type (0=unlimited, 1=time-limited)]]=1, Table1[[#This Row],[Drug '# of doses_9 (for unlimited regimens, '# per year)]], IF(Table1[[#This Row],[Regimen type (0=unlimited, 1=time-limited)]]="1", Table1[[#This Row],[Drug '# of doses_9 (for unlimited regimens, '# per year)]], "CHECK"))))*INDEX(Table3[Total Admin Cost], MATCH(Table1[[#This Row],[Drug ROA_9]], Table3[Drug ROA Admin], 0)), 0) -> 0 | GO7: =IFERROR(IF(Table1[[#This Row],[Regimen type (0=unlimited, 1=time-limited)]]=0, Table1[[#This Row],[Drug '# of doses_10 (for unlimited regimens, '# per year)]]/12, IF(Table1[[#This Row],[Regimen type (0=unlimited, 1=time-limited)]]="0", Table1[[#This Row],[Drug '# of doses_10 (for unlimited regimens, '# per year)]]/12, IF(Table1[[#This Row],[Regimen type (0=unlimited, 1=time-limited)]]=1, Table1[[#This Row],[Drug '# of doses_10 (for unlimited regimens, '# per year)]], IF(Table1[[#This Row],[Regimen type (0=unlimited, 1=time-limited)]]="1", Table1[[#This Row],[Drug '# of doses_10 (for unlimited regimens, '# per year)]], "CHECK"))))*INDEX(Table3[Total Admin Cost], MATCH(Table1[[#This Row],[Drug ROA_10]], Table3[Drug ROA Admin], 0)), 0) -> 0 | GP7: =IFERROR(IF(Table1[[#This Row],[Regimen type (0=unlimited, 1=time-limited)]]=0, Table1[[#This Row],[Drug '# of doses_11 (for unlimited regimens, '# per year)]]/12, IF(Table1[[#This Row],[Regimen type (0=unlimited, 1=time-limited)]]="0", Table1[[#This Row],[Drug '# of doses_11 (for unlimited regimens, '# per year)]]/12, IF(Table1[[#This Row],[Regimen type (0=unlimited, 1=time-limited)]]=1, Table1[[#This Row],[Drug '# of doses_11 (for unlimited regimens, '# per year)]], IF(Table1[[#This Row],[Regimen type (0=unlimited, 1=time-limited)]]="1", Table1[[#This Row],[Drug '# of doses_11 (for unlimited regimens, '# per year)]], "CHECK"))))*INDEX(Table3[Total Admin Cost], MATCH(Table1[[#This Row],[Drug ROA_11]], Table3[Drug ROA Admin], 0)), 0) -> 0 | GQ7: =SUM(Table1[[#This Row],[Admin Drug 1]:[Admin Drug 11]]) -> 1116.88
A8: Breast | B8: Breast | C8: 2.2016 | D8: Preoperative/adjuvant therapy regimens for HER2-negative disease | E8: Neoadjuvant | F8: 14004 | G8: Dose-dense AC (doxorubicin + cyclophosphamide) | H8: 3 | I8: 3 | J8: 3 | K8: 4 | L8: 3 | M8: =SUM(Table1[[#This Row],[Efficacy]:[Safety]]) -> 6 | N8: =SUM(Table1[[#This Row],[Efficacy]:[Consistency]]) -> 13 | O8: 0 | P8: 0 | Q8: 0 | R8: 2A | S8: First-line | T8: =IF(Table1[[#This Row],[Line of therapy]]="first-line", "0", IF(Table1[[#This Row],[Line of therapy]]="second-line or subsequent", "1", IF(Table1[[#This Row],[Line of therapy]]="second-line", "1", IF(Table1[[#This Row],[Line of therapy]]="third-line", "1", IF(Table1[[#This Row],[Line of therapy]]="fourth-line", "1", IF(Table1[[#This Row],[Line of therapy]]="fifth-line", "1", IF(Table1[[#This Row],[Line of therapy]]="sixth-line", "1", IF(Table1[[#This Row],[Line of therapy]]="persistent disease or progression", "1", IF(Table1[[#This Row],[Line of therapy]]="relapsed/refractory", "1", IF(Table1[[#This Row],[Line of therapy]]="subsequent", "1", IF(Table1[[#This Row],[Line of therapy]]="maintenance", "2", ""))))))))))) -> 0 | U8: 1 | V8: 0 | W8: =Table1[[#This Row],[Total regimen price]]+Table1[[#This Row],[Admin Total]] -> 2941.66 | X8: =Table1[[#This Row],[Total regimen price]]+Table1[[#This Row],[Supportive Care, high margin_adj]]+Table1[[#This Row],[GF, high margin_adj]]+Table1[[#This Row],[Admin Total]] -> 22447.132 | Y8: =Table1[[#This Row],[Total regimen price]]+Table1[[#This Row],[Supportive Care, low margin_adj]]+Table1[[#This Row],[GF, low margin_adj]]+Table1[[#This Row],[Admin Total]] -> 22219.224 | Z8: =Table1[[#This Row],[Physician margin_1]]+Table1[[#This Row],[Physician margin_2]]+Table1[[#This Row],[Physician margin_3]]+Table1[[#This Row],[Physician margin_4]]+Table1[[#This Row],[Physician margin_5]]+Table1[[#This Row],[Physician margin_6]]+Table1[[#This Row],[Physician margin_7]]+Table1[[#This Row],[Physician margin_8]]+Table1[[#This Row],[Physician margin_9]]+Table1[[#This Row],[Physician margin_10]]+Table1[[#This Row],[Physician margin_11]]+Table1[[#This Row],[Physician margin supportive Care, high margin_adj]]+Table1[[#This Row],[Physician margin GF, high margin_adj]] -> 1207.372755 | AA8: =Table1[[#This Row],[Physician margin_1]]+Table1[[#This Row],[Physician margin_2]]+Table1[[#This Row],[Physician margin_3]]+Table1[[#This Row],[Physician margin_4]]+Table1[[#This Row],[Physician margin_5]]+Table1[[#This Row],[Physician margin_6]]+Table1[[#This Row],[Physician margin_7]]+Table1[[#This Row],[Physician margin_8]]+Table1[[#This Row],[Physician margin_9]]+Table1[[#This Row],[Physician margin_10]]+Table1[[#This Row],[Physician margin_11]]+Table1[[#This Row],[Physician margin supportive Care, low margin_adj]]+Table1[[#This Row],[Physician margin GF, low margin_adj]] -> 1194.472302 | AB8: Doxorubicin | AC8: IV | AD8: Doxorubicin IV | AE8: 60 | AF8: mg/m2 | AG8: 4 | AH8: =IF(ISNUMBER(SEARCH("/m2", Table1[[#This Row],[Drug units_1]])), Table1[[#This Row],[Drug dose_1]]*1.7, IF(ISNUMBER(SEARCH("/kg", Table1[[#This Row],[Drug units_1]])), Table1[[#This Row],[Drug dose_1]]*70, Table1[[#This Row],[Drug dose_1]])) -> 102 | AI8: =IFERROR(INDEX(Table2[ASP Price per Unit], MATCH(Table1[[#This Row],[Drug ROA_1]], Table2[Unique Drugs All ROA], 0)), "") -> 0.2415 | AJ8: =IFERROR(INDEX(Table2[Price per unit], MATCH(Table1[[#This Row],[Drug ROA_1]], Table2[Unique Drugs All ROA], 0)), "") -> 0.2415 | AK8: =IFERROR(INDEX(Table2[Unit], MATCH(Table1[[#This Row],[Drug ROA_1]], Table2[Unique Drugs All ROA], 0)), "") -> MG | AL8: =IFERROR(IF(Table1[[#This Row],[Unit_1]]="post-SC admin price", Table1[[#This Row],[Price per unit_1]], IF(Table1[[#This Row],[Unit_1]]="pre-SC admin price", Table1[[#This Row],[Price per unit_1]], Table1[[#This Row],[Dose with Mass Multiplier_1]]*Table1[[#This Row],[Drug '# of doses_1 (for unlimited regimens, '# per year)]]*Table1[[#This Row],[Price per unit_1]])), 0) -> 98.532 | AM8: =IFERROR(IF(Table1[[#This Row],[Regimen type (0=unlimited, 1=time-limited)]]=1, Table1[[#This Row],[Drug Price per year_1]], IF(Table1[[#This Row],[Regimen type (0=unlimited, 1=time-limited)]]="1", Table1[[#This Row],[Drug Price per year_1]], IF(Table1[[#This Row],[Regimen type (0=unlimited, 1=time-limited)]]=0, Table1[[#This Row],[Drug Price per year_1]]/12, IF(Table1[[#This Row],[Regimen type (0=unlimited, 1=time-limited)]]="0", Table1[[#This Row],[Drug Price per year_1]]/12, "CHECK")))), 0) -> 98.532 | AN8: =IF(Table1[[#This Row],[ASP price per unit_1]]<>0, Table1[[#This Row],[Drug Price_1]]/1.06*0.06, 0) -> 5.577283019 | AO8: Cyclophosphamide | AP8: IV | AQ8: Cyclophosphamide IV | AR8: 600 | AS8: mg/m2 | AT8: 4 | AU8: =IF(ISNUMBER(SEARCH("/m2", Table1[[#This Row],[Drug units_2]])), Table1[[#This Row],[Drug dose_2]]*1.7, IF(ISNUMBER(SEARCH("/kg", Table1[[#This Row],[Drug units_2]])), Table1[[#This Row],[Drug dose_2]]*70, Table1[[#This Row],[Drug dose_2]])) -> 1020 | AV8: =IFERROR(INDEX(Table2[ASP Price per Unit], MATCH(Table1[[#This Row],[Drug ROA_2]], Table2[Unique Drugs All ROA], 0)), "") -> 0.4231 | AW8: =IFERROR(INDEX(Table2[Price per unit], MATCH(Table1[[#This Row],[Drug ROA_2]], Table2[Unique Drugs All ROA], 0)), "") -> 0.4231 | AX8: =IFERROR(INDEX(Table2[Unit], MATCH(Table1[[#This Row],[Drug ROA_2]], Table2[Unique Drugs All ROA], 0)), "") -> MG | AY8: =IFERROR(IF(Table1[[#This Row],[Unit_2]]="post-SC admin price", Table1[[#This Row],[Price per unit_2]], IF(Table1[[#This Row],[Unit_2]]="pre-SC admin price", Table1[[#This Row],[Price per unit_2]], Table1[[#This Row],[Dose with Mass Multiplier_2]]*Table1[[#This Row],[Drug '# of doses_2 (for unlimited regimens, '# per year)]]*Table1[[#This Row],[Price per unit_2]])), 0) -> 1726.248 | AZ8: =IFERROR(IF(Table1[[#This Row],[Regimen type (0=unlimited, 1=time-limited)]]=1, Table1[[#This Row],[Drug Price per year_2]], IF(Table1[[#This Row],[Regimen type (0=unlimited, 1=time-limited)]]="1", Table1[[#This Row],[Drug Price per year_2]], IF(Table1[[#This Row],[Regimen type (0=unlimited, 1=time-limited)]]=0, Table1[[#This Row],[Drug Price per year_2]]/12, IF(Table1[[#This Row],[Regimen type (0=unlimited, 1=time-limited)]]="0", Table1[[#This Row],[Drug Price per year_2]]/12, "CHECK")))), 0) -> 1726.248 | BA8: =IF(Table1[[#This Row],[ASP price per unit_2]]<>0, Table1[[#This Row],[Drug Price_2]]/1.06*0.06, 0) -> 97.71215094 | BB8: 0 | BC8: 0 | BE8: 0 | BF8: 0 | BG8: 0 | BH8: =IF(ISNUMBER(SEARCH("/m2", Table1[[#This Row],[Drug units_3]])), Table1[[#This Row],[Drug dose_3]]*1.7, IF(ISNUMBER(SEARCH("/kg", Table1[[#This Row],[Drug units_3]])), Table1[[#This Row],[Drug dose_3]]*70, Table1[[#This Row],[Drug dose_3]])) -> 0 | BI8: =IFERROR(INDEX(Table2[ASP Price per Unit], MATCH(Table1[[#This Row],[Drug ROA_3]], Table2[Unique Drugs All ROA], 0)), "") ->  | BJ8: =IFERROR(INDEX(Table2[Price per unit], MATCH(Table1[[#This Row],[Drug ROA_3]], Table2[Unique Drugs All ROA], 0)), "") ->  | BK8: =IFERROR(INDEX(Table2[Unit], MATCH(Table1[[#This Row],[Drug ROA_3]], Table2[Unique Drugs All ROA], 0)), "") ->  | BL8: =IFERROR(IF(Table1[[#This Row],[Unit_3]]="post-SC admin price", Table1[[#This Row],[Price per unit_3]], IF(Table1[[#This Row],[Unit_3]]="pre-SC admin price", Table1[[#This Row],[Price per unit_3]], Table1[[#This Row],[Dose with Mass Multiplier_3]]*Table1[[#This Row],[Drug '# of doses_3 (for unlimited regimens, '# per year)]]*Table1[[#This Row],[Price per unit_3]])), 0) -> 0 | BM8: =IFERROR(IF(Table1[[#This Row],[Regimen type (0=unlimited, 1=time-limited)]]=1, Table1[[#This Row],[Drug Price per year_3]], IF(Table1[[#This Row],[Regimen type (0=unlimited, 1=time-limited)]]="1", Table1[[#This Row],[Drug Price per year_3]], IF(Table1[[#This Row],[Regimen type (0=unlimited, 1=time-limited)]]=0, Table1[[#This Row],[Drug Price per year_3]]/12, IF(Table1[[#This Row],[Regimen type (0=unlimited, 1=time-limited)]]="0", Table1[[#This Row],[Drug Price per year_3]]/12, "CHECK")))), 0) -> 0 | BN8: =IF(Table1[[#This Row],[ASP price per unit_3]]<>0, Table1[[#This Row],[Drug Price_3]]/1.06*0.06, 0) -> 0 | BO8: 0 | BP8: 0 | BR8: 0 | BS8: 0 | BT8: 0 | BU8: =IF(ISNUMBER(SEARCH("/m2", Table1[[#This Row],[Drug units_4]])), Table1[[#This Row],[Drug dose_4]]*1.7, IF(ISNUMBER(SEARCH("/kg", Table1[[#This Row],[Drug units_4]])), Table1[[#This Row],[Drug dose_4]]*70, Table1[[#This Row],[Drug dose_4]])) -> 0 | BV8: =IFERROR(INDEX(Table2[ASP Price per Unit], MATCH(Table1[[#This Row],[Drug ROA_4]], Table2[Unique Drugs All ROA], 0)), "") ->  | BW8: =IFERROR(INDEX(Table2[Price per unit], MATCH(Table1[[#This Row],[Drug ROA_4]], Table2[Unique Drugs All ROA], 0)), "") ->  | BX8: =IFERROR(INDEX(Table2[Unit], MATCH(Table1[[#This Row],[Drug ROA_4]], Table2[Unique Drugs All ROA], 0)), "") ->  | BY8: =IFERROR(IF(Table1[[#This Row],[Unit_4]]="post-SC admin price", Table1[[#This Row],[Price per unit_4]], IF(Table1[[#This Row],[Unit_4]]="pre-SC admin price", Table1[[#This Row],[Price per unit_4]], Table1[[#This Row],[Dose with Mass Multiplier_4]]*Table1[[#This Row],[Drug '# of doses_4 (for unlimited regimens, '# per year)]]*Table1[[#This Row],[Price per unit_4]])), 0) -> 0 | BZ8: =IFERROR(IF(Table1[[#This Row],[Regimen type (0=unlimited, 1=time-limited)]]=1, Table1[[#This Row],[Drug Price per year_4]], IF(Table1[[#This Row],[Regimen type (0=unlimited, 1=time-limited)]]="1", Table1[[#This Row],[Drug Price per year_4]], IF(Table1[[#This Row],[Regimen type (0=unlimited, 1=time-limited)]]=0, Table1[[#This Row],[Drug Price per year_4]]/12, IF(Table1[[#This Row],[Regimen type (0=unlimited, 1=time-limited)]]="0", Table1[[#This Row],[Drug Price per year_4]]/12, "CHECK")))), 0) -> 0 | CA8: =IF(Table1[[#This Row],[ASP price per unit_4]]<>0, Table1[[#This Row],[Drug Price_4]]/1.06*0.06, 0) -> 0 | CB8: 0 | CC8: 0 | CE8: 0 | CF8: 0 | CG8: 0 | CH8: =IF(ISNUMBER(SEARCH("/m2", Table1[[#This Row],[Drug units_5]])), Table1[[#This Row],[Drug dose_5]]*1.7, IF(ISNUMBER(SEARCH("/kg", Table1[[#This Row],[Drug units_5]])), Table1[[#This Row],[Drug dose_5]]*70, Table1[[#This Row],[Drug dose_5]])) -> 0 | CI8: =IFERROR(INDEX(Table2[ASP Price per Unit], MATCH(Table1[[#This Row],[Drug ROA_5]], Table2[Unique Drugs All ROA], 0)), "") ->  | CJ8: =IFERROR(INDEX(Table2[Price per unit], MATCH(Table1[[#This Row],[Drug ROA_5]], Table2[Unique Drugs All ROA], 0)), "") ->  | CK8: =IFERROR(INDEX(Table2[Unit], MATCH(Table1[[#This Row],[Drug ROA_5]], Table2[Unique Drugs All ROA], 0)), "") ->  | CL8: =IFERROR(IF(Table1[[#This Row],[Unit_5]]="post-SC admin price", Table1[[#This Row],[Price per unit_5]], IF(Table1[[#This Row],[Unit_5]]="pre-SC admin price", Table1[[#This Row],[Price per unit_5]], Table1[[#This Row],[Dose with Mass Multiplier_5]]*Table1[[#This Row],[Drug '# of doses_5 (for unlimited regimens, '# per year)]]*Table1[[#This Row],[Price per unit_5]])), 0) -> 0 | CM8: =IFERROR(IF(Table1[[#This Row],[Regimen type (0=unlimited, 1=time-limited)]]=1, Table1[[#This Row],[Drug Price per year_5]], IF(Table1[[#This Row],[Regimen type (0=unlimited, 1=time-limited)]]="1", Table1[[#This Row],[Drug Price per year_5]], IF(Table1[[#This Row],[Regimen type (0=unlimited, 1=time-limited)]]=0, Table1[[#This Row],[Drug Price per year_5]]/12, IF(Table1[[#This Row],[Regimen type (0=unlimited, 1=time-limited)]]="0", Table1[[#This Row],[Drug Price per year_5]]/12, "CHECK")))), 0) -> 0 | CN8: =IF(Table1[[#This Row],[ASP price per unit_5]]<>0, Table1[[#This Row],[Drug Price_5]]/1.06*0.06, 0) -> 0 | CO8: 0 | CP8: 0 | CR8: 0 | CS8: 0 | CT8: 0 | CU8: =IF(ISNUMBER(SEARCH("/m2", Table1[[#This Row],[Drug units_6]])), Table1[[#This Row],[Drug dose_6]]*1.7, IF(ISNUMBER(SEARCH("/kg", Table1[[#This Row],[Drug units_6]])), Table1[[#This Row],[Drug dose_6]]*70, Table1[[#This Row],[Drug dose_6]])) -> 0 | CV8: =IFERROR(INDEX(Table2[ASP Price per Unit], MATCH(Table1[[#This Row],[Drug ROA_6]], Table2[Unique Drugs All ROA], 0)), "") ->  | CW8: =IFERROR(INDEX(Table2[Price per unit], MATCH(Table1[[#This Row],[Drug ROA_6]], Table2[Unique Drugs All ROA], 0)), "") ->  | CX8: =IFERROR(INDEX(Table2[Unit], MATCH(Table1[[#This Row],[Drug ROA_6]], Table2[Unique Drugs All ROA], 0)), "") ->  | CY8: =IFERROR(IF(Table1[[#This Row],[Unit_6]]="post-SC admin price", Table1[[#This Row],[Price per unit_6]], IF(Table1[[#This Row],[Unit_6]]="pre-SC admin price", Table1[[#This Row],[Price per unit_6]], Table1[[#This Row],[Dose with Mass Multiplier_6]]*Table1[[#This Row],[Drug '# of doses_6 (for unlimited regimens, '# per year)]]*Table1[[#This Row],[Price per unit_6]])), 0) -> 0 | CZ8: =IFERROR(IF(Table1[[#This Row],[Regimen type (0=unlimited, 1=time-limited)]]=1, Table1[[#This Row],[Drug Price per year_6]], IF(Table1[[#This Row],[Regimen type (0=unlimited, 1=time-limited)]]="1", Table1[[#This Row],[Drug Price per year_6]], IF(Table1[[#This Row],[Regimen type (0=unlimited, 1=time-limited)]]=0, Table1[[#This Row],[Drug Price per year_6]]/12, IF(Table1[[#This Row],[Regimen type (0=unlimited, 1=time-limited)]]="0", Table1[[#This Row],[Drug Price per year_6]]/12, "CHECK")))), 0) -> 0 | DA8: =IF(Table1[[#This Row],[ASP price per unit_6]]<>0, Table1[[#This Row],[Drug Price_6]]/1.06*0.06, 0) -> 0 | DB8: 0 | DC8: 0 | DE8: 0 | DF8: 0 | DG8: 0 | DH8: =IF(ISNUMBER(SEARCH("/m2", Table1[[#This Row],[Drug units_7]])), Table1[[#This Row],[Drug dose_7]]*1.7, IF(ISNUMBER(SEARCH("/kg", Table1[[#This Row],[Drug units_7]])), Table1[[#This Row],[Drug dose_7]]*70, Table1[[#This Row],[Drug dose_7]])) -> 0 | DI8: =IFERROR(INDEX(Table2[ASP Price per Unit], MATCH(Table1[[#This Row],[Drug ROA_7]], Table2[Unique Drugs All ROA], 0)), "") ->  | DJ8: =IFERROR(INDEX(Table2[Price per unit], MATCH(Table1[[#This Row],[Drug ROA_7]], Table2[Unique Drugs All ROA], 0)), "") ->  | DK8: =IFERROR(INDEX(Table2[Unit], MATCH(Table1[[#This Row],[Drug ROA_7]], Table2[Unique Drugs All ROA], 0)), "") ->  | DL8: =IFERROR(IF(Table1[[#This Row],[Unit_7]]="post-SC admin price", Table1[[#This Row],[Price per unit_7]], IF(Table1[[#This Row],[Unit_7]]="pre-SC admin price", Table1[[#This Row],[Price per unit_7]], Table1[[#This Row],[Dose with Mass Multiplier_7]]*Table1[[#This Row],[Drug '# of doses_7 (for unlimited regimens, '# per year)]]*Table1[[#This Row],[Price per unit_7]])), 0) -> 0 | DM8: =IFERROR(IF(Table1[[#This Row],[Regimen type (0=unlimited, 1=time-limited)]]=1, Table1[[#This Row],[Drug Price per year_7]], IF(Table1[[#This Row],[Regimen type (0=unlimited, 1=time-limited)]]="1", Table1[[#This Row],[Drug Price per year_7]], IF(Table1[[#This Row],[Regimen type (0=unlimited, 1=time-limited)]]=0, Table1[[#This Row],[Drug Price per year_7]]/12, IF(Table1[[#This Row],[Regimen type (0=unlimited, 1=time-limited)]]="0", Table1[[#This Row],[Drug Price per year_7]]/12, "CHECK")))), 0) -> 0 | DN8: =IF(Table1[[#This Row],[ASP price per unit_7]]<>0, Table1[[#This Row],[Drug Price_7]]/1.06*0.06, 0) -> 0 | DO8: 0 | DP8: 0 | DR8: 0 | DS8: 0 | DT8: 0 | DU8: =IF(ISNUMBER(SEARCH("/m2", Table1[[#This Row],[Drug units_8]])), Table1[[#This Row],[Drug dose_8]]*1.7, IF(ISNUMBER(SEARCH("/kg", Table1[[#This Row],[Drug units_8]])), Table1[[#This Row],[Drug dose_8]]*70, Table1[[#This Row],[Drug dose_8]])) -> 0 | DV8: =IFERROR(INDEX(Table2[ASP Price per Unit], MATCH(Table1[[#This Row],[Drug ROA_8]], Table2[Unique Drugs All ROA], 0)), "") ->  | DW8: =IFERROR(INDEX(Table2[Price per unit], MATCH(Table1[[#This Row],[Drug ROA_8]], Table2[Unique Drugs All ROA], 0)), "") ->  | DX8: =IFERROR(INDEX(Table2[Unit], MATCH(Table1[[#This Row],[Drug ROA_8]], Table2[Unique Drugs All ROA], 0)), "") ->  | DY8: =IFERROR(IF(Table1[[#This Row],[Unit_8]]="post-SC admin price", Table1[[#This Row],[Price per unit_8]], IF(Table1[[#This Row],[Unit_8]]="pre-SC admin price", Table1[[#This Row],[Price per unit_8]], Table1[[#This Row],[Dose with Mass Multiplier_8]]*Table1[[#This Row],[Drug '# of doses_8 (for unlimited regimens, '# per year)]]*Table1[[#This Row],[Price per unit_8]])), 0) -> 0 | DZ8: =IFERROR(IF(Table1[[#This Row],[Regimen type (0=unlimited, 1=time-limited)]]=1, Table1[[#This Row],[Drug Price per year_8]], IF(Table1[[#This Row],[Regimen type (0=unlimited, 1=time-limited)]]="1", Table1[[#This Row],[Drug Price per year_8]], IF(Table1[[#This Row],[Regimen type (0=unlimited, 1=time-limited)]]=0, Table1[[#This Row],[Drug Price per year_8]]/12, IF(Table1[[#This Row],[Regimen type (0=unlimited, 1=time-limited)]]="0", Table1[[#This Row],[Drug Price per year_8]]/12, "CHECK")))), 0) -> 0 | EA8: =IF(Table1[[#This Row],[ASP price per unit_8]]<>0, Table1[[#This Row],[Drug Price_8]]/1.06*0.06, 0) -> 0 | EE8: 0 | EH8: =IF(ISNUMBER(SEARCH("/m2", Table1[[#This Row],[Drug units_9]])), Table1[[#This Row],[Drug dose_9]]*1.7, IF(ISNUMBER(SEARCH("/kg", Table1[[#This Row],[Drug units_9]])), Table1[[#This Row],[Drug dose_9]]*70, Table1[[#This Row],[Drug dose_9]])) -> 0 | EI8: =IFERROR(INDEX(Table2[ASP Price per Unit], MATCH(Table1[[#This Row],[Drug ROA_9]], Table2[Unique Drugs All ROA], 0)), "") ->  | EJ8: =IFERROR(INDEX(Table2[Price per unit], MATCH(Table1[[#This Row],[Drug ROA_9]], Table2[Unique Drugs All ROA], 0)), "") ->  | EK8: =IFERROR(INDEX(Table2[Unit], MATCH(Table1[[#This Row],[Drug ROA_9]], Table2[Unique Drugs All ROA], 0)), "") ->  | EL8: =IFERROR(IF(Table1[[#This Row],[Unit_9]]="post-SC admin price", Table1[[#This Row],[Price per unit_9]], IF(Table1[[#This Row],[Unit_9]]="pre-SC admin price", Table1[[#This Row],[Price per unit_9]], Table1[[#This Row],[Dose with Mass Multiplier_9]]*Table1[[#This Row],[Drug '# of doses_9 (for unlimited regimens, '# per year)]]*Table1[[#This Row],[Price per unit_9]])), 0) -> 0 | EM8: =IFERROR(IF(Table1[[#This Row],[Regimen type (0=unlimited, 1=time-limited)]]=1, Table1[[#This Row],[Drug Price per year_9]], IF(Table1[[#This Row],[Regimen type (0=unlimited, 1=time-limited)]]="1", Table1[[#This Row],[Drug Price per year_9]], IF(Table1[[#This Row],[Regimen type (0=unlimited, 1=time-limited)]]=0, Table1[[#This Row],[Drug Price per year_9]]/12, IF(Table1[[#This Row],[Regimen type (0=unlimited, 1=time-limited)]]="0", Table1[[#This Row],[Drug Price per year_9]]/12, "CHECK")))), 0) -> 0 | EN8: =IF(Table1[[#This Row],[ASP price per unit_9]]<>0, Table1[[#This Row],[Drug Price_9]]/1.06*0.06, 0) -> 0 | EO8: 0 | EP8: 0 | ER8: 0 | ES8: 0 | ET8: 0 | EU8: =IF(ISNUMBER(SEARCH("/m2", Table1[[#This Row],[Drug units_10]])), Table1[[#This Row],[Drug dose_10]]*1.7, IF(ISNUMBER(SEARCH("/kg", Table1[[#This Row],[Drug units_10]])), Table1[[#This Row],[Drug dose_10]]*70, Table1[[#This Row],[Drug dose_10]])) -> 0 | EV8: =IFERROR(INDEX(Table2[ASP Price per Unit], MATCH(Table1[[#This Row],[Drug ROA_10]], Table2[Unique Drugs All ROA], 0)), "") ->  | EW8: =IFERROR(INDEX(Table2[Price per unit], MATCH(Table1[[#This Row],[Drug ROA_10]], Table2[Unique Drugs All ROA], 0)), "") ->  | EX8: =IFERROR(INDEX(Table2[Unit], MATCH(Table1[[#This Row],[Drug ROA_10]], Table2[Unique Drugs All ROA], 0)), "") ->  | EY8: =IFERROR(IF(Table1[[#This Row],[Unit_10]]="post-SC admin price", Table1[[#This Row],[Price per unit_10]], IF(Table1[[#This Row],[Unit_10]]="pre-SC admin price", Table1[[#This Row],[Price per unit_10]], Table1[[#This Row],[Dose with Mass Multiplier_10]]*Table1[[#This Row],[Drug '# of doses_10 (for unlimited regimens, '# per year)]]*Table1[[#This Row],[Price per unit_10]])), 0) -> 0 | EZ8: =IFERROR(IF(Table1[[#This Row],[Regimen type (0=unlimited, 1=time-limited)]]=1, Table1[[#This Row],[Drug Price per year_10]], IF(Table1[[#This Row],[Regimen type (0=unlimited, 1=time-limited)]]="1", Table1[[#This Row],[Drug Price per year_10]], IF(Table1[[#This Row],[Regimen type (0=unlimited, 1=time-limited)]]=0, Table1[[#This Row],[Drug Price per year_10]]/12, IF(Table1[[#This Row],[Regimen type (0=unlimited, 1=time-limited)]]="0", Table1[[#This Row],[Drug Price per year_10]]/12, "CHECK")))), 0) -> 0 | FA8: =IF(Table1[[#This Row],[ASP price per unit_10]]<>0, Table1[[#This Row],[Drug Price_10]]/1.06*0.06, 0) -> 0 | FB8: 0 | FC8: 0 | FE8: 0 | FF8: 0 | FG8: 0 | FH8: =IF(ISNUMBER(SEARCH("/m2", Table1[[#This Row],[Drug units_11]])), Table1[[#This Row],[Drug dose_11]]*1.7, IF(ISNUMBER(SEARCH("/kg", Table1[[#This Row],[Drug units_11]])), Table1[[#This Row],[Drug dose_11]]*70, Table1[[#This Row],[Drug dose_11]])) -> 0 | FI8: =IFERROR(INDEX(Table2[ASP Price per Unit], MATCH(Table1[[#This Row],[Drug ROA_11]], Table2[Unique Drugs All ROA], 0)), "") ->  | FJ8: =IFERROR(INDEX(Table2[Price per unit], MATCH(Table1[[#This Row],[Drug ROA_11]], Table2[Unique Drugs All ROA], 0)), "") ->  | FK8: =IFERROR(INDEX(Table2[Unit], MATCH(Table1[[#This Row],[Drug ROA_11]], Table2[Unique Drugs All ROA], 0)), "") ->  | FL8: =IFERROR(IF(Table1[[#This Row],[Unit_11]]="post-SC admin price", Table1[[#This Row],[Price per unit_11]], IF(Table1[[#This Row],[Unit_11]]="pre-SC admin price", Table1[[#This Row],[Price per unit_11]], Table1[[#This Row],[Dose with Mass Multiplier_11]]*Table1[[#This Row],[Drug '# of doses_11 (for unlimited regimens, '# per year)]]*Table1[[#This Row],[Price per unit_11]])), 0) -> 0 | FM8: =IFERROR(IF(Table1[[#This Row],[Regimen type (0=unlimited, 1=time-limited)]]=1, Table1[[#This Row],[Drug Price per year_11]], IF(Table1[[#This Row],[Regimen type (0=unlimited, 1=time-limited)]]="1", Table1[[#This Row],[Drug Price per year_11]], IF(Table1[[#This Row],[Regimen type (0=unlimited, 1=time-limited)]]=0, Table1[[#This Row],[Drug Price per year_11]]/12, IF(Table1[[#This Row],[Regimen type (0=unlimited, 1=time-limited)]]="0", Table1[[#This Row],[Drug Price per year_11]]/12, "CHECK")))), 0) -> 0 | FN8: =IF(Table1[[#This Row],[ASP price per unit_11]]<>0, Table1[[#This Row],[Drug Price_11]]/1.06*0.06, 0) -> 0 | FO8: =Table1[[#This Row],[Drug Price_1]] + Table1[[#This Row],[Drug Price_2]] + Table1[[#This Row],[Drug Price_3]]+ Table1[[#This Row],[Drug Price_4]]+ Table1[[#This Row],[Drug Price_5]]+ Table1[[#This Row],[Drug Price_6]]+ Table1[[#This Row],[Drug Price_7]]+ Table1[[#This Row],[Drug Price_8]]+ Table1[[#This Row],[Drug Price_9]]+ Table1[[#This Row],[Drug Price_10]]+ Table1[[#This Row],[Drug Price_11]] -> 1824.78 | FP8: 3 | FQ8: 4 | FR8: 2 | FS8: 4 | FT8: =IF(Table1[[#This Row],[Emetic Risk (0=min, 1=low, 2=inter, 3=high)]]=0, SC_Admin_SpecialCases!$F$12*Table1[[#This Row],['# of supportive doses]], IF(Table1[[#This Row],[Emetic Risk (0=min, 1=low, 2=inter, 3=high)]]=1, SC_Admin_SpecialCases!$F$14*Table1[[#This Row],['# of supportive doses]], IF(Table1[[#This Row],[Emetic Risk (0=min, 1=low, 2=inter, 3=high)]]=2, SC_Admin_SpecialCases!$F$16*Table1[[#This Row],['# of supportive doses]], IF(Table1[[#This Row],[Emetic Risk (0=min, 1=low, 2=inter, 3=high)]]=3, SC_Admin_SpecialCases!$F$18*Table1[[#This Row],['# of supportive doses]], "CHECK")))) -> 2808.632 | FU8: =IF(Table1[[#This Row],[Emetic Risk (0=min, 1=low, 2=inter, 3=high)]]=0, SC_Admin_SpecialCases!$F$13*Table1[[#This Row],['# of supportive doses]], IF(Table1[[#This Row],[Emetic Risk (0=min, 1=low, 2=inter, 3=high)]]=1, SC_Admin_SpecialCases!$F$15*Table1[[#This Row],['# of supportive doses]], IF(Table1[[#This Row],[Emetic Risk (0=min, 1=low, 2=inter, 3=high)]]=2, SC_Admin_SpecialCases!$F$17*Table1[[#This Row],['# of supportive doses]], IF(Table1[[#This Row],[Emetic Risk (0=min, 1=low, 2=inter, 3=high)]]=3, SC_Admin_SpecialCases!$F$19*Table1[[#This Row],['# of supportive doses]], "CHECK")))) -> 3036.54 | FV8: =IF(Table1[[#This Row],[Growth Factor (0=low, 1=inter, 2=high)]]=0, SC_Admin_SpecialCases!$F$4*Table1[[#This Row],['# of GCSF doses]], IF(Table1[[#This Row],[Growth Factor (0=low, 1=inter, 2=high)]]=1, SC_Admin_SpecialCases!$F$6*Table1[[#This Row],['# of GCSF doses]], IF(Table1[[#This Row],[Growth Factor (0=low, 1=inter, 2=high)]]=2, SC_Admin_SpecialCases!$F$8*Table1[[#This Row],['# of GCSF doses]], "CHECK"))) -> 16468.932 | FW8: =IF(Table1[[#This Row],[Growth Factor (0=low, 1=inter, 2=high)]]=0, SC_Admin_SpecialCases!$F$5*Table1[[#This Row],['# of GCSF doses]], IF(Table1[[#This Row],[Growth Factor (0=low, 1=inter, 2=high)]]=1, SC_Admin_SpecialCases!$F$7*Table1[[#This Row],['# of GCSF doses]], IF(Table1[[#This Row],[Growth Factor (0=low, 1=inter, 2=high)]]=2, SC_Admin_SpecialCases!$F$9*Table1[[#This Row],['# of GCSF doses]], "CHECK"))) -> 16468.932 | FX8: =IF(Table1[[#This Row],[Regimen type (0=unlimited, 1=time-limited)]]=0, Table1[[#This Row],[Supportive Care, low margin]]/12, IF(Table1[[#This Row],[Regimen type (0=unlimited, 1=time-limited)]]="0", Table1[[#This Row],[Supportive Care, low margin]]/12, IF(Table1[[#This Row],[Regimen type (0=unlimited, 1=time-limited)]]=1, Table1[[#This Row],[Supportive Care, low margin]], IF(Table1[[#This Row],[Regimen type (0=unlimited, 1=time-limited)]]="1", Table1[[#This Row],[Supportive Care, low margin]], "CHECK")))) -> 2808.632 | FY8: =IF(Table1[[#This Row],[Regimen type (0=unlimited, 1=time-limited)]]=0, Table1[[#This Row],[Supportive Care, high margin]]/12, IF(Table1[[#This Row],[Regimen type (0=unlimited, 1=time-limited)]]="0", Table1[[#This Row],[Supportive Care, high margin]]/12, IF(Table1[[#This Row],[Regimen type (0=unlimited, 1=time-limited)]]=1, Table1[[#This Row],[Supportive Care, high margin]], IF(Table1[[#This Row],[Regimen type (0=unlimited, 1=time-limited)]]="1", Table1[[#This Row],[Supportive Care, high margin]], "CHECK")))) -> 3036.54 | FZ8: =IF(Table1[[#This Row],[Regimen type (0=unlimited, 1=time-limited)]]=0, Table1[[#This Row],[GF, low margin]]/12, IF(Table1[[#This Row],[Regimen type (0=unlimited, 1=time-limited)]]="0", Table1[[#This Row],[GF, low margin]]/12, IF(Table1[[#This Row],[Regimen type (0=unlimited, 1=time-limited)]]=1, Table1[[#This Row],[GF, low margin]], IF(Table1[[#This Row],[Regimen type (0=unlimited, 1=time-limited)]]="1", Table1[[#This Row],[GF, low margin]], "CHECK")))) -> 16468.932 | GA8: =IF(Table1[[#This Row],[Regimen type (0=unlimited, 1=time-limited)]]=0, Table1[[#This Row],[GF, high margin]]/12, IF(Table1[[#This Row],[Regimen type (0=unlimited, 1=time-limited)]]="0", Table1[[#This Row],[GF, high margin]]/12, IF(Table1[[#This Row],[Regimen type (0=unlimited, 1=time-limited)]]=1, Table1[[#This Row],[GF, high margin]], IF(Table1[[#This Row],[Regimen type (0=unlimited, 1=time-limited)]]="1", Table1[[#This Row],[GF, high margin]], "CHECK")))) -> 16468.932 | GB8: =Table1[[#This Row],[Supportive Care, low margin_adj]]/1.06*0.06 -> 158.9791698 | GC8: =Table1[[#This Row],[Supportive Care, high margin_adj]]/1.06*0.06 -> 171.8796226 | GD8: =Table1[[#This Row],[GF, low margin_adj]]/1.06*0.06 -> 932.2036981 | GE8: =Table1[[#This Row],[GF, high margin_adj]]/1.06*0.06 -> 932.2036981 | GF8: =IFERROR(IF(Table1[[#This Row],[Regimen type (0=unlimited, 1=time-limited)]]=0, Table1[[#This Row],[Drug '# of doses_1 (for unlimited regimens, '# per year)]]/12, IF(Table1[[#This Row],[Regimen type (0=unlimited, 1=time-limited)]]="0", Table1[[#This Row],[Drug '# of doses_1 (for unlimited regimens, '# per year)]]/12, IF(Table1[[#This Row],[Regimen type (0=unlimited, 1=time-limited)]]=1, Table1[[#This Row],[Drug '# of doses_1 (for unlimited regimens, '# per year)]], IF(Table1[[#This Row],[Regimen type (0=unlimited, 1=time-limited)]]="1", Table1[[#This Row],[Drug '# of doses_1 (for unlimited regimens, '# per year)]], "CHECK"))))*INDEX(Table3[Total Admin Cost], MATCH(Table1[[#This Row],[Drug ROA_1]], Table3[Drug ROA Admin], 0)), 0) -> 558.44 | GG8: =IFERROR(IF(Table1[[#This Row],[Regimen type (0=unlimited, 1=time-limited)]]=0, Table1[[#This Row],[Drug '# of doses_2 (for unlimited regimens, '# per year)]]/12, IF(Table1[[#This Row],[Regimen type (0=unlimited, 1=time-limited)]]="0", Table1[[#This Row],[Drug '# of doses_2 (for unlimited regimens, '# per year)]]/12, IF(Table1[[#This Row],[Regimen type (0=unlimited, 1=time-limited)]]=1, Table1[[#This Row],[Drug '# of doses_2 (for unlimited regimens, '# per year)]], IF(Table1[[#This Row],[Regimen type (0=unlimited, 1=time-limited)]]="1", Table1[[#This Row],[Drug '# of doses_2 (for unlimited regimens, '# per year)]], "CHECK"))))*INDEX(Table3[Total Admin Cost], MATCH(Table1[[#This Row],[Drug ROA_2]], Table3[Drug ROA Admin], 0)), 0) -> 558.44 | GH8: =IFERROR(IF(Table1[[#This Row],[Regimen type (0=unlimited, 1=time-limited)]]=0, Table1[[#This Row],[Drug '# of doses_3 (for unlimited regimens, '# per year)]]/12, IF(Table1[[#This Row],[Regimen type (0=unlimited, 1=time-limited)]]="0", Table1[[#This Row],[Drug '# of doses_3 (for unlimited regimens, '# per year)]]/12, IF(Table1[[#This Row],[Regimen type (0=unlimited, 1=time-limited)]]=1, Table1[[#This Row],[Drug '# of doses_3 (for unlimited regimens, '# per year)]], IF(Table1[[#This Row],[Regimen type (0=unlimited, 1=time-limited)]]="1", Table1[[#This Row],[Drug '# of doses_3 (for unlimited regimens, '# per year)]], "CHECK"))))*INDEX(Table3[Total Admin Cost], MATCH(Table1[[#This Row],[Drug ROA_3]], Table3[Drug ROA Admin], 0)), 0) -> 0 | GI8: =IFERROR(IF(Table1[[#This Row],[Regimen type (0=unlimited, 1=time-limited)]]=0, Table1[[#This Row],[Drug '# of doses_4 (for unlimited regimens, '# per year)]]/12, IF(Table1[[#This Row],[Regimen type (0=unlimited, 1=time-limited)]]="0", Table1[[#This Row],[Drug '# of doses_4 (for unlimited regimens, '# per year)]]/12, IF(Table1[[#This Row],[Regimen type (0=unlimited, 1=time-limited)]]=1, Table1[[#This Row],[Drug '# of doses_4 (for unlimited regimens, '# per year)]], IF(Table1[[#This Row],[Regimen type (0=unlimited, 1=time-limited)]]="1", Table1[[#This Row],[Drug '# of doses_4 (for unlimited regimens, '# per year)]], "CHECK"))))*INDEX(Table3[Total Admin Cost], MATCH(Table1[[#This Row],[Drug ROA_4]], Table3[Drug ROA Admin], 0)), 0) -> 0 | GJ8: =IFERROR(IF(Table1[[#This Row],[Regimen type (0=unlimited, 1=time-limited)]]=0, Table1[[#This Row],[Drug '# of doses_5 (for unlimited regimens, '# per year)]]/12, IF(Table1[[#This Row],[Regimen type (0=unlimited, 1=time-limited)]]="0", Table1[[#This Row],[Drug '# of doses_5 (for unlimited regimens, '# per year)]]/12, IF(Table1[[#This Row],[Regimen type (0=unlimited, 1=time-limited)]]=1, Table1[[#This Row],[Drug '# of doses_5 (for unlimited regimens, '# per year)]], IF(Table1[[#This Row],[Regimen type (0=unlimited, 1=time-limited)]]="1", Table1[[#This Row],[Drug '# of doses_5 (for unlimited regimens, '# per year)]], "CHECK"))))*INDEX(Table3[Total Admin Cost], MATCH(Table1[[#This Row],[Drug ROA_5]], Table3[Drug ROA Admin], 0)), 0) -> 0 | GK8: =IFERROR(IF(Table1[[#This Row],[Regimen type (0=unlimited, 1=time-limited)]]=0, Table1[[#This Row],[Drug '# of doses_6 (for unlimited regimens, '# per year)]]/12, IF(Table1[[#This Row],[Regimen type (0=unlimited, 1=time-limited)]]="0", Table1[[#This Row],[Drug '# of doses_6 (for unlimited regimens, '# per year)]]/12, IF(Table1[[#This Row],[Regimen type (0=unlimited, 1=time-limited)]]=1, Table1[[#This Row],[Drug '# of doses_6 (for unlimited regimens, '# per year)]], IF(Table1[[#This Row],[Regimen type (0=unlimited, 1=time-limited)]]="1", Table1[[#This Row],[Drug '# of doses_6 (for unlimited regimens, '# per year)]], "CHECK"))))*INDEX(Table3[Total Admin Cost], MATCH(Table1[[#This Row],[Drug ROA_6]], Table3[Drug ROA Admin], 0)), 0) -> 0 | GL8: =IFERROR(IF(Table1[[#This Row],[Regimen type (0=unlimited, 1=time-limited)]]=0, Table1[[#This Row],[Drug '# of doses_7 (for unlimited regimens, '# per year)]]/12, IF(Table1[[#This Row],[Regimen type (0=unlimited, 1=time-limited)]]="0", Table1[[#This Row],[Drug '# of doses_7 (for unlimited regimens, '# per year)]]/12, IF(Table1[[#This Row],[Regimen type (0=unlimited, 1=time-limited)]]=1, Table1[[#This Row],[Drug '# of doses_7 (for unlimited regimens, '# per year)]], IF(Table1[[#This Row],[Regimen type (0=unlimited, 1=time-limited)]]="1", Table1[[#This Row],[Drug '# of doses_7 (for unlimited regimens, '# per year)]], "CHECK"))))*INDEX(Table3[Total Admin Cost], MATCH(Table1[[#This Row],[Drug ROA_7]], Table3[Drug ROA Admin], 0)), 0) -> 0 | GM8: =IFERROR(IF(Table1[[#This Row],[Regimen type (0=unlimited, 1=time-limited)]]=0, Table1[[#This Row],[Drug '# of doses_8 (for unlimited regimens, '# per year)]]/12, IF(Table1[[#This Row],[Regimen type (0=unlimited, 1=time-limited)]]="0", Table1[[#This Row],[Drug '# of doses_8 (for unlimited regimens, '# per year)]]/12, IF(Table1[[#This Row],[Regimen type (0=unlimited, 1=time-limited)]]=1, Table1[[#This Row],[Drug '# of doses_8 (for unlimited regimens, '# per year)]], IF(Table1[[#This Row],[Regimen type (0=unlimited, 1=time-limited)]]="1", Table1[[#This Row],[Drug '# of doses_8 (for unlimited regimens, '# per year)]], "CHECK"))))*INDEX(Table3[Total Admin Cost], MATCH(Table1[[#This Row],[Drug ROA_8]], Table3[Drug ROA Admin], 0)), 0) -> 0 | GN8: =IFERROR(IF(Table1[[#This Row],[Regimen type (0=unlimited, 1=time-limited)]]=0, Table1[[#This Row],[Drug '# of doses_9 (for unlimited regimens, '# per year)]]/12, IF(Table1[[#This Row],[Regimen type (0=unlimited, 1=time-limited)]]="0", Table1[[#This Row],[Drug '# of doses_9 (for unlimited regimens, '# per year)]]/12, IF(Table1[[#This Row],[Regimen type (0=unlimited, 1=time-limited)]]=1, Table1[[#This Row],[Drug '# of doses_9 (for unlimited regimens, '# per year)]], IF(Table1[[#This Row],[Regimen type (0=unlimited, 1=time-limited)]]="1", Table1[[#This Row],[Drug '# of doses_9 (for unlimited regimens, '# per year)]], "CHECK"))))*INDEX(Table3[Total Admin Cost], MATCH(Table1[[#This Row],[Drug ROA_9]], Table3[Drug ROA Admin], 0)), 0) -> 0 | GO8: =IFERROR(IF(Table1[[#This Row],[Regimen type (0=unlimited, 1=time-limited)]]=0, Table1[[#This Row],[Drug '# of doses_10 (for unlimited regimens, '# per year)]]/12, IF(Table1[[#This Row],[Regimen type (0=unlimited, 1=time-limited)]]="0", Table1[[#This Row],[Drug '# of doses_10 (for unlimited regimens, '# per year)]]/12, IF(Table1[[#This Row],[Regimen type (0=unlimited, 1=time-limited)]]=1, Table1[[#This Row],[Drug '# of doses_10 (for unlimited regimens, '# per year)]], IF(Table1[[#This Row],[Regimen type (0=unlimited, 1=time-limited)]]="1", Table1[[#This Row],[Drug '# of doses_10 (for unlimited regimens, '# per year)]], "CHECK"))))*INDEX(Table3[Total Admin Cost], MATCH(Table1[[#This Row],[Drug ROA_10]], Table3[Drug ROA Admin], 0)), 0) -> 0 | GP8: =IFERROR(IF(Table1[[#This Row],[Regimen type (0=unlimited, 1=time-limited)]]=0, Table1[[#This Row],[Drug '# of doses_11 (for unlimited regimens, '# per year)]]/12, IF(Table1[[#This Row],[Regimen type (0=unlimited, 1=time-limited)]]="0", Table1[[#This Row],[Drug '# of doses_11 (for unlimited regimens, '# per year)]]/12, IF(Table1[[#This Row],[Regimen type (0=unlimited, 1=time-limited)]]=1, Table1[[#This Row],[Drug '# of doses_11 (for unlimited regimens, '# per year)]], IF(Table1[[#This Row],[Regimen type (0=unlimited, 1=time-limited)]]="1", Table1[[#This Row],[Drug '# of doses_11 (for unlimited regimens, '# per year)]], "CHECK"))))*INDEX(Table3[Total Admin Cost], MATCH(Table1[[#This Row],[Drug ROA_11]], Table3[Drug ROA Admin], 0)), 0) -> 0 | GQ8: =SUM(Table1[[#This Row],[Admin Drug 1]:[Admin Drug 11]]) -> 1116.88
A9: Breast | B9: Breast | C9: 2.2016 | D9: Preoperative/adjuvant therapy regimens for HER2-negative disease | E9: Neoadjuvant | F9: 14005 | G9: AC (doxorubicin + cyclophosphamide) every 3 weeks | H9: 3 | I9: 3 | J9: 4 | K9: 4 | L9: 4 | M9: =SUM(Table1[[#This Row],[Efficacy]:[Safety]]) -> 6 | N9: =SUM(Table1[[#This Row],[Efficacy]:[Consistency]]) -> 14 | O9: 0 | P9: 0 | Q9: 0 | R9: 2B | S9: First-line | T9: =IF(Table1[[#This Row],[Line of therapy]]="first-line", "0", IF(Table1[[#This Row],[Line of therapy]]="second-line or subsequent", "1", IF(Table1[[#This Row],[Line of therapy]]="second-line", "1", IF(Table1[[#This Row],[Line of therapy]]="third-line", "1", IF(Table1[[#This Row],[Line of therapy]]="fourth-line", "1", IF(Table1[[#This Row],[Line of therapy]]="fifth-line", "1", IF(Table1[[#This Row],[Line of therapy]]="sixth-line", "1", IF(Table1[[#This Row],[Line of therapy]]="persistent disease or progression", "1", IF(Table1[[#This Row],[Line of therapy]]="relapsed/refractory", "1", IF(Table1[[#This Row],[Line of therapy]]="subsequent", "1", IF(Table1[[#This Row],[Line of therapy]]="maintenance", "2", ""))))))))))) -> 0 | U9: 1 | V9: 0 | W9: =Table1[[#This Row],[Total regimen price]]+Table1[[#This Row],[Admin Total]] -> 2941.66 | X9: =Table1[[#This Row],[Total regimen price]]+Table1[[#This Row],[Supportive Care, high margin_adj]]+Table1[[#This Row],[GF, high margin_adj]]+Table1[[#This Row],[Admin Total]] -> 22447.132 | Y9: =Table1[[#This Row],[Total regimen price]]+Table1[[#This Row],[Supportive Care, low margin_adj]]+Table1[[#This Row],[GF, low margin_adj]]+Table1[[#This Row],[Admin Total]] -> 5750.292 | Z9: =Table1[[#This Row],[Physician margin_1]]+Table1[[#This Row],[Physician margin_2]]+Table1[[#This Row],[Physician margin_3]]+Table1[[#This Row],[Physician margin_4]]+Table1[[#This Row],[Physician margin_5]]+Table1[[#This Row],[Physician margin_6]]+Table1[[#This Row],[Physician margin_7]]+Table1[[#This Row],[Physician margin_8]]+Table1[[#This Row],[Physician margin_9]]+Table1[[#This Row],[Physician margin_10]]+Table1[[#This Row],[Physician margin_11]]+Table1[[#This Row],[Physician margin supportive Care, high margin_adj]]+Table1[[#This Row],[Physician margin GF, high margin_adj]] -> 1207.372755 | AA9: =Table1[[#This Row],[Physician margin_1]]+Table1[[#This Row],[Physician margin_2]]+Table1[[#This Row],[Physician margin_3]]+Table1[[#This Row],[Physician margin_4]]+Table1[[#This Row],[Physician margin_5]]+Table1[[#This Row],[Physician margin_6]]+Table1[[#This Row],[Physician margin_7]]+Table1[[#This Row],[Physician margin_8]]+Table1[[#This Row],[Physician margin_9]]+Table1[[#This Row],[Physician margin_10]]+Table1[[#This Row],[Physician margin_11]]+Table1[[#This Row],[Physician margin supportive Care, low margin_adj]]+Table1[[#This Row],[Physician margin GF, low margin_adj]] -> 262.2686038 | AB9: Doxorubicin | AC9: IV | AD9: Doxorubicin IV | AE9: 60 | AF9: mg/m2 | AG9: 4 | AH9: =IF(ISNUMBER(SEARCH("/m2", Table1[[#This Row],[Drug units_1]])), Table1[[#This Row],[Drug dose_1]]*1.7, IF(ISNUMBER(SEARCH("/kg", Table1[[#This Row],[Drug units_1]])), Table1[[#This Row],[Drug dose_1]]*70, Table1[[#This Row],[Drug dose_1]])) -> 102 | AI9: =IFERROR(INDEX(Table2[ASP Price per Unit], MATCH(Table1[[#This Row],[Drug ROA_1]], Table2[Unique Drugs All ROA], 0)), "") -> 0.2415 | AJ9: =IFERROR(INDEX(Table2[Price per unit], MATCH(Table1[[#This Row],[Drug ROA_1]], Table2[Unique Drugs All ROA], 0)), "") -> 0.2415 | AK9: =IFERROR(INDEX(Table2[Unit], MATCH(Table1[[#This Row],[Drug ROA_1]], Table2[Unique Drugs All ROA], 0)), "") -> MG | AL9: =IFERROR(IF(Table1[[#This Row],[Unit_1]]="post-SC admin price", Table1[[#This Row],[Price per unit_1]], IF(Table1[[#This Row],[Unit_1]]="pre-SC admin price", Table1[[#This Row],[Price per unit_1]], Table1[[#This Row],[Dose with Mass Multiplier_1]]*Table1[[#This Row],[Drug '# of doses_1 (for unlimited regimens, '# per year)]]*Table1[[#This Row],[Price per unit_1]])), 0) -> 98.532 | AM9: =IFERROR(IF(Table1[[#This Row],[Regimen type (0=unlimited, 1=time-limited)]]=1, Table1[[#This Row],[Drug Price per year_1]], IF(Table1[[#This Row],[Regimen type (0=unlimited, 1=time-limited)]]="1", Table1[[#This Row],[Drug Price per year_1]], IF(Table1[[#This Row],[Regimen type (0=unlimited, 1=time-limited)]]=0, Table1[[#This Row],[Drug Price per year_1]]/12, IF(Table1[[#This Row],[Regimen type (0=unlimited, 1=time-limited)]]="0", Table1[[#This Row],[Drug Price per year_1]]/12, "CHECK")))), 0) -> 98.532 | AN9: =IF(Table1[[#This Row],[ASP price per unit_1]]<>0, Table1[[#This Row],[Drug Price_1]]/1.06*0.06, 0) -> 5.577283019 | AO9: Cyclophosphamide | AP9: IV | AQ9: Cyclophosphamide IV | AR9: 600 | AS9: mg/m2 | AT9: 4 | AU9: =IF(ISNUMBER(SEARCH("/m2", Table1[[#This Row],[Drug units_2]])), Table1[[#This Row],[Drug dose_2]]*1.7, IF(ISNUMBER(SEARCH("/kg", Table1[[#This Row],[Drug units_2]])), Table1[[#This Row],[Drug dose_2]]*70, Table1[[#This Row],[Drug dose_2]])) -> 1020 | AV9: =IFERROR(INDEX(Table2[ASP Price per Unit], MATCH(Table1[[#This Row],[Drug ROA_2]], Table2[Unique Drugs All ROA], 0)), "") -> 0.4231 | AW9: =IFERROR(INDEX(Table2[Price per unit], MATCH(Table1[[#This Row],[Drug ROA_2]], Table2[Unique Drugs All ROA], 0)), "") -> 0.4231 | AX9: =IFERROR(INDEX(Table2[Unit], MATCH(Table1[[#This Row],[Drug ROA_2]], Table2[Unique Drugs All ROA], 0)), "") -> MG | AY9: =IFERROR(IF(Table1[[#This Row],[Unit_2]]="post-SC admin price", Table1[[#This Row],[Price per unit_2]], IF(Table1[[#This Row],[Unit_2]]="pre-SC admin price", Table1[[#This Row],[Price per unit_2]], Table1[[#This Row],[Dose with Mass Multiplier_2]]*Table1[[#This Row],[Drug '# of doses_2 (for unlimited regimens, '# per year)]]*Table1[[#This Row],[Price per unit_2]])), 0) -> 1726.248 | AZ9: =IFERROR(IF(Table1[[#This Row],[Regimen type (0=unlimited, 1=time-limited)]]=1, Table1[[#This Row],[Drug Price per year_2]], IF(Table1[[#This Row],[Regimen type (0=unlimited, 1=time-limited)]]="1", Table1[[#This Row],[Drug Price per year_2]], IF(Table1[[#This Row],[Regimen type (0=unlimited, 1=time-limited)]]=0, Table1[[#This Row],[Drug Price per year_2]]/12, IF(Table1[[#This Row],[Regimen type (0=unlimited, 1=time-limited)]]="0", Table1[[#This Row],[Drug Price per year_2]]/12, "CHECK")))), 0) -> 1726.248 | BA9: =IF(Table1[[#This Row],[ASP price per unit_2]]<>0, Table1[[#This Row],[Drug Price_2]]/1.06*0.06, 0) -> 97.71215094 | BB9: 0 | BC9: 0 | BE9: 0 | BF9: 0 | BG9: 0 | BH9: =IF(ISNUMBER(SEARCH("/m2", Table1[[#This Row],[Drug units_3]])), Table1[[#This Row],[Drug dose_3]]*1.7, IF(ISNUMBER(SEARCH("/kg", Table1[[#This Row],[Drug units_3]])), Table1[[#This Row],[Drug dose_3]]*70, Table1[[#This Row],[Drug dose_3]])) -> 0 | BI9: =IFERROR(INDEX(Table2[ASP Price per Unit], MATCH(Table1[[#This Row],[Drug ROA_3]], Table2[Unique Drugs All ROA], 0)), "") ->  | BJ9: =IFERROR(INDEX(Table2[Price per unit], MATCH(Table1[[#This Row],[Drug ROA_3]], Table2[Unique Drugs All ROA], 0)), "") ->  | BK9: =IFERROR(INDEX(Table2[Unit], MATCH(Table1[[#This Row],[Drug ROA_3]], Table2[Unique Drugs All ROA], 0)), "") ->  | BL9: =IFERROR(IF(Table1[[#This Row],[Unit_3]]="post-SC admin price", Table1[[#This Row],[Price per unit_3]], IF(Table1[[#This Row],[Unit_3]]="pre-SC admin price", Table1[[#This Row],[Price per unit_3]], Table1[[#This Row],[Dose with Mass Multiplier_3]]*Table1[[#This Row],[Drug '# of doses_3 (for unlimited regimens, '# per year)]]*Table1[[#This Row],[Price per unit_3]])), 0) -> 0 | BM9: =IFERROR(IF(Table1[[#This Row],[Regimen type (0=unlimited, 1=time-limited)]]=1, Table1[[#This Row],[Drug Price per year_3]], IF(Table1[[#This Row],[Regimen type (0=unlimited, 1=time-limited)]]="1", Table1[[#This Row],[Drug Price per year_3]], IF(Table1[[#This Row],[Regimen type (0=unlimited, 1=time-limited)]]=0, Table1[[#This Row],[Drug Price per year_3]]/12, IF(Table1[[#This Row],[Regimen type (0=unlimited, 1=time-limited)]]="0", Table1[[#This Row],[Drug Price per year_3]]/12, "CHECK")))), 0) -> 0 | BN9: =IF(Table1[[#This Row],[ASP price per unit_3]]<>0, Table1[[#This Row],[Drug Price_3]]/1.06*0.06, 0) -> 0 | BO9: 0 | BP9: 0 | BR9: 0 | BS9: 0 | BT9: 0 | BU9: =IF(ISNUMBER(SEARCH("/m2", Table1[[#This Row],[Drug units_4]])), Table1[[#This Row],[Drug dose_4]]*1.7, IF(ISNUMBER(SEARCH("/kg", Table1[[#This Row],[Drug units_4]])), Table1[[#This Row],[Drug dose_4]]*70, Table1[[#This Row],[Drug dose_4]])) -> 0 | BV9: =IFERROR(INDEX(Table2[ASP Price per Unit], MATCH(Table1[[#This Row],[Drug ROA_4]], Table2[Unique Drugs All ROA], 0)), "") ->  | BW9: =IFERROR(INDEX(Table2[Price per unit], MATCH(Table1[[#This Row],[Drug ROA_4]], Table2[Unique Drugs All ROA], 0)), "") ->  | BX9: =IFERROR(INDEX(Table2[Unit], MATCH(Table1[[#This Row],[Drug ROA_4]], Table2[Unique Drugs All ROA], 0)), "") ->  | BY9: =IFERROR(IF(Table1[[#This Row],[Unit_4]]="post-SC admin price", Table1[[#This Row],[Price per unit_4]], IF(Table1[[#This Row],[Unit_4]]="pre-SC admin price", Table1[[#This Row],[Price per unit_4]], Table1[[#This Row],[Dose with Mass Multiplier_4]]*Table1[[#This Row],[Drug '# of doses_4 (for unlimited regimens, '# per year)]]*Table1[[#This Row],[Price per unit_4]])), 0) -> 0 | BZ9: =IFERROR(IF(Table1[[#This Row],[Regimen type (0=unlimited, 1=time-limited)]]=1, Table1[[#This Row],[Drug Price per year_4]], IF(Table1[[#This Row],[Regimen type (0=unlimited, 1=time-limited)]]="1", Table1[[#This Row],[Drug Price per year_4]], IF(Table1[[#This Row],[Regimen type (0=unlimited, 1=time-limited)]]=0, Table1[[#This Row],[Drug Price per year_4]]/12, IF(Table1[[#This Row],[Regimen type (0=unlimited, 1=time-limited)]]="0", Table1[[#This Row],[Drug Price per year_4]]/12, "CHECK")))), 0) -> 0 | CA9: =IF(Table1[[#This Row],[ASP price per unit_4]]<>0, Table1[[#This Row],[Drug Price_4]]/1.06*0.06, 0) -> 0 | CB9: 0 | CC9: 0 | CE9: 0 | CF9: 0 | CG9: 0 | CH9: =IF(ISNUMBER(SEARCH("/m2", Table1[[#This Row],[Drug units_5]])), Table1[[#This Row],[Drug dose_5]]*1.7, IF(ISNUMBER(SEARCH("/kg", Table1[[#This Row],[Drug units_5]])), Table1[[#This Row],[Drug dose_5]]*70, Table1[[#This Row],[Drug dose_5]])) -> 0 | CI9: =IFERROR(INDEX(Table2[ASP Price per Unit], MATCH(Table1[[#This Row],[Drug ROA_5]], Table2[Unique Drugs All ROA], 0)), "") ->  | CJ9: =IFERROR(INDEX(Table2[Price per unit], MATCH(Table1[[#This Row],[Drug ROA_5]], Table2[Unique Drugs All ROA], 0)), "") ->  | CK9: =IFERROR(INDEX(Table2[Unit], MATCH(Table1[[#This Row],[Drug ROA_5]], Table2[Unique Drugs All ROA], 0)), "") ->  | CL9: =IFERROR(IF(Table1[[#This Row],[Unit_5]]="post-SC admin price", Table1[[#This Row],[Price per unit_5]], IF(Table1[[#This Row],[Unit_5]]="pre-SC admin price", Table1[[#This Row],[Price per unit_5]], Table1[[#This Row],[Dose with Mass Multiplier_5]]*Table1[[#This Row],[Drug '# of doses_5 (for unlimited regimens, '# per year)]]*Table1[[#This Row],[Price per unit_5]])), 0) -> 0 | CM9: =IFERROR(IF(Table1[[#This Row],[Regimen type (0=unlimited, 1=time-limited)]]=1, Table1[[#This Row],[Drug Price per year_5]], IF(Table1[[#This Row],[Regimen type (0=unlimited, 1=time-limited)]]="1", Table1[[#This Row],[Drug Price per year_5]], IF(Table1[[#This Row],[Regimen type (0=unlimited, 1=time-limited)]]=0, Table1[[#This Row],[Drug Price per year_5]]/12, IF(Table1[[#This Row],[Regimen type (0=unlimited, 1=time-limited)]]="0", Table1[[#This Row],[Drug Price per year_5]]/12, "CHECK")))), 0) -> 0 | CN9: =IF(Table1[[#This Row],[ASP price per unit_5]]<>0, Table1[[#This Row],[Drug Price_5]]/1.06*0.06, 0) -> 0 | CO9: 0 | CP9: 0 | CR9: 0 | CS9: 0 | CT9: 0 | CU9: =IF(ISNUMBER(SEARCH("/m2", Table1[[#This Row],[Drug units_6]])), Table1[[#This Row],[Drug dose_6]]*1.7, IF(ISNUMBER(SEARCH("/kg", Table1[[#This Row],[Drug units_6]])), Table1[[#This Row],[Drug dose_6]]*70, Table1[[#This Row],[Drug dose_6]])) -> 0 | CV9: =IFERROR(INDEX(Table2[ASP Price per Unit], MATCH(Table1[[#This Row],[Drug ROA_6]], Table2[Unique Drugs All ROA], 0)), "") ->  | CW9: =IFERROR(INDEX(Table2[Price per unit], MATCH(Table1[[#This Row],[Drug ROA_6]], Table2[Unique Drugs All ROA], 0)), "") ->  | CX9: =IFERROR(INDEX(Table2[Unit], MATCH(Table1[[#This Row],[Drug ROA_6]], Table2[Unique Drugs All ROA], 0)), "") ->  | CY9: =IFERROR(IF(Table1[[#This Row],[Unit_6]]="post-SC admin price", Table1[[#This Row],[Price per unit_6]], IF(Table1[[#This Row],[Unit_6]]="pre-SC admin price", Table1[[#This Row],[Price per unit_6]], Table1[[#This Row],[Dose with Mass Multiplier_6]]*Table1[[#This Row],[Drug '# of doses_6 (for unlimited regimens, '# per year)]]*Table1[[#This Row],[Price per unit_6]])), 0) -> 0 | CZ9: =IFERROR(IF(Table1[[#This Row],[Regimen type (0=unlimited, 1=time-limited)]]=1, Table1[[#This Row],[Drug Price per year_6]], IF(Table1[[#This Row],[Regimen type (0=unlimited, 1=time-limited)]]="1", Table1[[#This Row],[Drug Price per year_6]], IF(Table1[[#This Row],[Regimen type (0=unlimited, 1=time-limited)]]=0, Table1[[#This Row],[Drug Price per year_6]]/12, IF(Table1[[#This Row],[Regimen type (0=unlimited, 1=time-limited)]]="0", Table1[[#This Row],[Drug Price per year_6]]/12, "CHECK")))), 0) -> 0 | DA9: =IF(Table1[[#This Row],[ASP price per unit_6]]<>0, Table1[[#This Row],[Drug Price_6]]/1.06*0.06, 0) -> 0 | DB9: 0 | DC9: 0 | DE9: 0 | DF9: 0 | DG9: 0 | DH9: =IF(ISNUMBER(SEARCH("/m2", Table1[[#This Row],[Drug units_7]])), Table1[[#This Row],[Drug dose_7]]*1.7, IF(ISNUMBER(SEARCH("/kg", Table1[[#This Row],[Drug units_7]])), Table1[[#This Row],[Drug dose_7]]*70, Table1[[#This Row],[Drug dose_7]])) -> 0 | DI9: =IFERROR(INDEX(Table2[ASP Price per Unit], MATCH(Table1[[#This Row],[Drug ROA_7]], Table2[Unique Drugs All ROA], 0)), "") ->  | DJ9: =IFERROR(INDEX(Table2[Price per unit], MATCH(Table1[[#This Row],[Drug ROA_7]], Table2[Unique Drugs All ROA], 0)), "") ->  | DK9: =IFERROR(INDEX(Table2[Unit], MATCH(Table1[[#This Row],[Drug ROA_7]], Table2[Unique Drugs All ROA], 0)), "") ->  | DL9: =IFERROR(IF(Table1[[#This Row],[Unit_7]]="post-SC admin price", Table1[[#This Row],[Price per unit_7]], IF(Table1[[#This Row],[Unit_7]]="pre-SC admin price", Table1[[#This Row],[Price per unit_7]], Table1[[#This Row],[Dose with Mass Multiplier_7]]*Table1[[#This Row],[Drug '# of doses_7 (for unlimited regimens, '# per year)]]*Table1[[#This Row],[Price per unit_7]])), 0) -> 0 | DM9: =IFERROR(IF(Table1[[#This Row],[Regimen type (0=unlimited, 1=time-limited)]]=1, Table1[[#This Row],[Drug Price per year_7]], IF(Table1[[#This Row],[Regimen type (0=unlimited, 1=time-limited)]]="1", Table1[[#This Row],[Drug Price per year_7]], IF(Table1[[#This Row],[Regimen type (0=unlimited, 1=time-limited)]]=0, Table1[[#This Row],[Drug Price per year_7]]/12, IF(Table1[[#This Row],[Regimen type (0=unlimited, 1=time-limited)]]="0", Table1[[#This Row],[Drug Price per year_7]]/12, "CHECK")))), 0) -> 0 | DN9: =IF(Table1[[#This Row],[ASP price per unit_7]]<>0, Table1[[#This Row],[Drug Price_7]]/1.06*0.06, 0) -> 0 | DO9: 0 | DP9: 0 | DR9: 0 | DS9: 0 | DT9: 0 | DU9: =IF(ISNUMBER(SEARCH("/m2", Table1[[#This Row],[Drug units_8]])), Table1[[#This Row],[Drug dose_8]]*1.7, IF(ISNUMBER(SEARCH("/kg", Table1[[#This Row],[Drug units_8]])), Table1[[#This Row],[Drug dose_8]]*70, Table1[[#This Row],[Drug dose_8]])) -> 0 | DV9: =IFERROR(INDEX(Table2[ASP Price per Unit], MATCH(Table1[[#This Row],[Drug ROA_8]], Table2[Unique Drugs All ROA], 0)), "") ->  | DW9: =IFERROR(INDEX(Table2[Price per unit], MATCH(Table1[[#This Row],[Drug ROA_8]], Table2[Unique Drugs All ROA], 0)), "") ->  | DX9: =IFERROR(INDEX(Table2[Unit], MATCH(Table1[[#This Row],[Drug ROA_8]], Table2[Unique Drugs All ROA], 0)), "") ->  | DY9: =IFERROR(IF(Table1[[#This Row],[Unit_8]]="post-SC admin price", Table1[[#This Row],[Price per unit_8]], IF(Table1[[#This Row],[Unit_8]]="pre-SC admin price", Table1[[#This Row],[Price per unit_8]], Table1[[#This Row],[Dose with Mass Multiplier_8]]*Table1[[#This Row],[Drug '# of doses_8 (for unlimited regimens, '# per year)]]*Table1[[#This Row],[Price per unit_8]])), 0) -> 0 | DZ9: =IFERROR(IF(Table1[[#This Row],[Regimen type (0=unlimited, 1=time-limited)]]=1, Table1[[#This Row],[Drug Price per year_8]], IF(Table1[[#This Row],[Regimen type (0=unlimited, 1=time-limited)]]="1", Table1[[#This Row],[Drug Price per year_8]], IF(Table1[[#This Row],[Regimen type (0=unlimited, 1=time-limited)]]=0, Table1[[#This Row],[Drug Price per year_8]]/12, IF(Table1[[#This Row],[Regimen type (0=unlimited, 1=time-limited)]]="0", Table1[[#This Row],[Drug Price per year_8]]/12, "CHECK")))), 0) -> 0 | EA9: =IF(Table1[[#This Row],[ASP price per unit_8]]<>0, Table1[[#This Row],[Drug Price_8]]/1.06*0.06, 0) -> 0 | EE9: 0 | EH9: =IF(ISNUMBER(SEARCH("/m2", Table1[[#This Row],[Drug units_9]])), Table1[[#This Row],[Drug dose_9]]*1.7, IF(ISNUMBER(SEARCH("/kg", Table1[[#This Row],[Drug units_9]])), Table1[[#This Row],[Drug dose_9]]*70, Table1[[#This Row],[Drug dose_9]])) -> 0 | EI9: =IFERROR(INDEX(Table2[ASP Price per Unit], MATCH(Table1[[#This Row],[Drug ROA_9]], Table2[Unique Drugs All ROA], 0)), "") ->  | EJ9: =IFERROR(INDEX(Table2[Price per unit], MATCH(Table1[[#This Row],[Drug ROA_9]], Table2[Unique Drugs All ROA], 0)), "") ->  | EK9: =IFERROR(INDEX(Table2[Unit], MATCH(Table1[[#This Row],[Drug ROA_9]], Table2[Unique Drugs All ROA], 0)), "") ->  | EL9: =IFERROR(IF(Table1[[#This Row],[Unit_9]]="post-SC admin price", Table1[[#This Row],[Price per unit_9]], IF(Table1[[#This Row],[Unit_9]]="pre-SC admin price", Table1[[#This Row],[Price per unit_9]], Table1[[#This Row],[Dose with Mass Multiplier_9]]*Table1[[#This Row],[Drug '# of doses_9 (for unlimited regimens, '# per year)]]*Table1[[#This Row],[Price per unit_9]])), 0) -> 0 | EM9: =IFERROR(IF(Table1[[#This Row],[Regimen type (0=unlimited, 1=time-limited)]]=1, Table1[[#This Row],[Drug Price per year_9]], IF(Table1[[#This Row],[Regimen type (0=unlimited, 1=time-limited)]]="1", Table1[[#This Row],[Drug Price per year_9]], IF(Table1[[#This Row],[Regimen type (0=unlimited, 1=time-limited)]]=0, Table1[[#This Row],[Drug Price per year_9]]/12, IF(Table1[[#This Row],[Regimen type (0=unlimited, 1=time-limited)]]="0", Table1[[#This Row],[Drug Price per year_9]]/12, "CHECK")))), 0) -> 0 | EN9: =IF(Table1[[#This Row],[ASP price per unit_9]]<>0, Table1[[#This Row],[Drug Price_9]]/1.06*0.06, 0) -> 0 | EO9: 0 | EP9: 0 | ER9: 0 | ES9: 0 | ET9: 0 | EU9: =IF(ISNUMBER(SEARCH("/m2", Table1[[#This Row],[Drug units_10]])), Table1[[#This Row],[Drug dose_10]]*1.7, IF(ISNUMBER(SEARCH("/kg", Table1[[#This Row],[Drug units_10]])), Table1[[#This Row],[Drug dose_10]]*70, Table1[[#This Row],[Drug dose_10]])) -> 0 | EV9: =IFERROR(INDEX(Table2[ASP Price per Unit], MATCH(Table1[[#This Row],[Drug ROA_10]], Table2[Unique Drugs All ROA], 0)), "") ->  | EW9: =IFERROR(INDEX(Table2[Price per unit], MATCH(Table1[[#This Row],[Drug ROA_10]], Table2[Unique Drugs All ROA], 0)), "") ->  | EX9: =IFERROR(INDEX(Table2[Unit], MATCH(Table1[[#This Row],[Drug ROA_10]], Table2[Unique Drugs All ROA], 0)), "") ->  | EY9: =IFERROR(IF(Table1[[#This Row],[Unit_10]]="post-SC admin price", Table1[[#This Row],[Price per unit_10]], IF(Table1[[#This Row],[Unit_10]]="pre-SC admin price", Table1[[#This Row],[Price per unit_10]], Table1[[#This Row],[Dose with Mass Multiplier_10]]*Table1[[#This Row],[Drug '# of doses_10 (for unlimited regimens, '# per year)]]*Table1[[#This Row],[Price per unit_10]])), 0) -> 0 | EZ9: =IFERROR(IF(Table1[[#This Row],[Regimen type (0=unlimited, 1=time-limited)]]=1, Table1[[#This Row],[Drug Price per year_10]], IF(Table1[[#This Row],[Regimen type (0=unlimited, 1=time-limited)]]="1", Table1[[#This Row],[Drug Price per year_10]], IF(Table1[[#This Row],[Regimen type (0=unlimited, 1=time-limited)]]=0, Table1[[#This Row],[Drug Price per year_10]]/12, IF(Table1[[#This Row],[Regimen type (0=unlimited, 1=time-limited)]]="0", Table1[[#This Row],[Drug Price per year_10]]/12, "CHECK")))), 0) -> 0 | FA9: =IF(Table1[[#This Row],[ASP price per unit_10]]<>0, Table1[[#This Row],[Drug Price_10]]/1.06*0.06, 0) -> 0 | FB9: 0 | FC9: 0 | FE9: 0 | FF9: 0 | FG9: 0 | FH9: =IF(ISNUMBER(SEARCH("/m2", Table1[[#This Row],[Drug units_11]])), Table1[[#This Row],[Drug dose_11]]*1.7, IF(ISNUMBER(SEARCH("/kg", Table1[[#This Row],[Drug units_11]])), Table1[[#This Row],[Drug dose_11]]*70, Table1[[#This Row],[Drug dose_11]])) -> 0 | FI9: =IFERROR(INDEX(Table2[ASP Price per Unit], MATCH(Table1[[#This Row],[Drug ROA_11]], Table2[Unique Drugs All ROA], 0)), "") ->  | FJ9: =IFERROR(INDEX(Table2[Price per unit], MATCH(Table1[[#This Row],[Drug ROA_11]], Table2[Unique Drugs All ROA], 0)), "") ->  | FK9: =IFERROR(INDEX(Table2[Unit], MATCH(Table1[[#This Row],[Drug ROA_11]], Table2[Unique Drugs All ROA], 0)), "") ->  | FL9: =IFERROR(IF(Table1[[#This Row],[Unit_11]]="post-SC admin price", Table1[[#This Row],[Price per unit_11]], IF(Table1[[#This Row],[Unit_11]]="pre-SC admin price", Table1[[#This Row],[Price per unit_11]], Table1[[#This Row],[Dose with Mass Multiplier_11]]*Table1[[#This Row],[Drug '# of doses_11 (for unlimited regimens, '# per year)]]*Table1[[#This Row],[Price per unit_11]])), 0) -> 0 | FM9: =IFERROR(IF(Table1[[#This Row],[Regimen type (0=unlimited, 1=time-limited)]]=1, Table1[[#This Row],[Drug Price per year_11]], IF(Table1[[#This Row],[Regimen type (0=unlimited, 1=time-limited)]]="1", Table1[[#This Row],[Drug Price per year_11]], IF(Table1[[#This Row],[Regimen type (0=unlimited, 1=time-limited)]]=0, Table1[[#This Row],[Drug Price per year_11]]/12, IF(Table1[[#This Row],[Regimen type (0=unlimited, 1=time-limited)]]="0", Table1[[#This Row],[Drug Price per year_11]]/12, "CHECK")))), 0) -> 0 | FN9: =IF(Table1[[#This Row],[ASP price per unit_11]]<>0, Table1[[#This Row],[Drug Price_11]]/1.06*0.06, 0) -> 0 | FO9: =Table1[[#This Row],[Drug Price_1]] + Table1[[#This Row],[Drug Price_2]] + Table1[[#This Row],[Drug Price_3]]+ Table1[[#This Row],[Drug Price_4]]+ Table1[[#This Row],[Drug Price_5]]+ Table1[[#This Row],[Drug Price_6]]+ Table1[[#This Row],[Drug Price_7]]+ Table1[[#This Row],[Drug Price_8]]+ Table1[[#This Row],[Drug Price_9]]+ Table1[[#This Row],[Drug Price_10]]+ Table1[[#This Row],[Drug Price_11]] -> 1824.78 | FP9: 3 | FQ9: 4 | FR9: 1 | FS9: 4 | FT9: =IF(Table1[[#This Row],[Emetic Risk (0=min, 1=low, 2=inter, 3=high)]]=0, SC_Admin_SpecialCases!$F$12*Table1[[#This Row],['# of supportive doses]], IF(Table1[[#This Row],[Emetic Risk (0=min, 1=low, 2=inter, 3=high)]]=1, SC_Admin_SpecialCases!$F$14*Table1[[#This Row],['# of supportive doses]], IF(Table1[[#This Row],[Emetic Risk (0=min, 1=low, 2=inter, 3=high)]]=2, SC_Admin_SpecialCases!$F$16*Table1[[#This Row],['# of supportive doses]], IF(Table1[[#This Row],[Emetic Risk (0=min, 1=low, 2=inter, 3=high)]]=3, SC_Admin_SpecialCases!$F$18*Table1[[#This Row],['# of supportive doses]], "CHECK")))) -> 2808.632 | FU9: =IF(Table1[[#This Row],[Emetic Risk (0=min, 1=low, 2=inter, 3=high)]]=0, SC_Admin_SpecialCases!$F$13*Table1[[#This Row],['# of supportive doses]], IF(Table1[[#This Row],[Emetic Risk (0=min, 1=low, 2=inter, 3=high)]]=1, SC_Admin_SpecialCases!$F$15*Table1[[#This Row],['# of supportive doses]], IF(Table1[[#This Row],[Emetic Risk (0=min, 1=low, 2=inter, 3=high)]]=2, SC_Admin_SpecialCases!$F$17*Table1[[#This Row],['# of supportive doses]], IF(Table1[[#This Row],[Emetic Risk (0=min, 1=low, 2=inter, 3=high)]]=3, SC_Admin_SpecialCases!$F$19*Table1[[#This Row],['# of supportive doses]], "CHECK")))) -> 3036.54 | FV9: =IF(Table1[[#This Row],[Growth Factor (0=low, 1=inter, 2=high)]]=0, SC_Admin_SpecialCases!$F$4*Table1[[#This Row],['# of GCSF doses]], IF(Table1[[#This Row],[Growth Factor (0=low, 1=inter, 2=high)]]=1, SC_Admin_SpecialCases!$F$6*Table1[[#This Row],['# of GCSF doses]], IF(Table1[[#This Row],[Growth Factor (0=low, 1=inter, 2=high)]]=2, SC_Admin_SpecialCases!$F$8*Table1[[#This Row],['# of GCSF doses]], "CHECK"))) -> 0 | FW9: =IF(Table1[[#This Row],[Growth Factor (0=low, 1=inter, 2=high)]]=0, SC_Admin_SpecialCases!$F$5*Table1[[#This Row],['# of GCSF doses]], IF(Table1[[#This Row],[Growth Factor (0=low, 1=inter, 2=high)]]=1, SC_Admin_SpecialCases!$F$7*Table1[[#This Row],['# of GCSF doses]], IF(Table1[[#This Row],[Growth Factor (0=low, 1=inter, 2=high)]]=2, SC_Admin_SpecialCases!$F$9*Table1[[#This Row],['# of GCSF doses]], "CHECK"))) -> 16468.932 | FX9: =IF(Table1[[#This Row],[Regimen type (0=unlimited, 1=time-limited)]]=0, Table1[[#This Row],[Supportive Care, low margin]]/12, IF(Table1[[#This Row],[Regimen type (0=unlimited, 1=time-limited)]]="0", Table1[[#This Row],[Supportive Care, low margin]]/12, IF(Table1[[#This Row],[Regimen type (0=unlimited, 1=time-limited)]]=1, Table1[[#This Row],[Supportive Care, low margin]], IF(Table1[[#This Row],[Regimen type (0=unlimited, 1=time-limited)]]="1", Table1[[#This Row],[Supportive Care, low margin]], "CHECK")))) -> 2808.632 | FY9: =IF(Table1[[#This Row],[Regimen type (0=unlimited, 1=time-limited)]]=0, Table1[[#This Row],[Supportive Care, high margin]]/12, IF(Table1[[#This Row],[Regimen type (0=unlimited, 1=time-limited)]]="0", Table1[[#This Row],[Supportive Care, high margin]]/12, IF(Table1[[#This Row],[Regimen type (0=unlimited, 1=time-limited)]]=1, Table1[[#This Row],[Supportive Care, high margin]], IF(Table1[[#This Row],[Regimen type (0=unlimited, 1=time-limited)]]="1", Table1[[#This Row],[Supportive Care, high margin]], "CHECK")))) -> 3036.54 | FZ9: =IF(Table1[[#This Row],[Regimen type (0=unlimited, 1=time-limited)]]=0, Table1[[#This Row],[GF, low margin]]/12, IF(Table1[[#This Row],[Regimen type (0=unlimited, 1=time-limited)]]="0", Table1[[#This Row],[GF, low margin]]/12, IF(Table1[[#This Row],[Regimen type (0=unlimited, 1=time-limited)]]=1, Table1[[#This Row],[GF, low margin]], IF(Table1[[#This Row],[Regimen type (0=unlimited, 1=time-limited)]]="1", Table1[[#This Row],[GF, low margin]], "CHECK")))) -> 0 | GA9: =IF(Table1[[#This Row],[Regimen type (0=unlimited, 1=time-limited)]]=0, Table1[[#This Row],[GF, high margin]]/12, IF(Table1[[#This Row],[Regimen type (0=unlimited, 1=time-limited)]]="0", Table1[[#This Row],[GF, high margin]]/12, IF(Table1[[#This Row],[Regimen type (0=unlimited, 1=time-limited)]]=1, Table1[[#This Row],[GF, high margin]], IF(Table1[[#This Row],[Regimen type (0=unlimited, 1=time-limited)]]="1", Table1[[#This Row],[GF, high margin]], "CHECK")))) -> 16468.932 | GB9: =Table1[[#This Row],[Supportive Care, low margin_adj]]/1.06*0.06 -> 158.9791698 | GC9: =Table1[[#This Row],[Supportive Care, high margin_adj]]/1.06*0.06 -> 171.8796226 | GD9: =Table1[[#This Row],[GF, low margin_adj]]/1.06*0.06 -> 0 | GE9: =Table1[[#This Row],[GF, high margin_adj]]/1.06*0.06 -> 932.2036981 | GF9: =IFERROR(IF(Table1[[#This Row],[Regimen type (0=unlimited, 1=time-limited)]]=0, Table1[[#This Row],[Drug '# of doses_1 (for unlimited regimens, '# per year)]]/12, IF(Table1[[#This Row],[Regimen type (0=unlimited, 1=time-limited)]]="0", Table1[[#This Row],[Drug '# of doses_1 (for unlimited regimens, '# per year)]]/12, IF(Table1[[#This Row],[Regimen type (0=unlimited, 1=time-limited)]]=1, Table1[[#This Row],[Drug '# of doses_1 (for unlimited regimens, '# per year)]], IF(Table1[[#This Row],[Regimen type (0=unlimited, 1=time-limited)]]="1", Table1[[#This Row],[Drug '# of doses_1 (for unlimited regimens, '# per year)]], "CHECK"))))*INDEX(Table3[Total Admin Cost], MATCH(Table1[[#This Row],[Drug ROA_1]], Table3[Drug ROA Admin], 0)), 0) -> 558.44 | GG9: =IFERROR(IF(Table1[[#This Row],[Regimen type (0=unlimited, 1=time-limited)]]=0, Table1[[#This Row],[Drug '# of doses_2 (for unlimited regimens, '# per year)]]/12, IF(Table1[[#This Row],[Regimen type (0=unlimited, 1=time-limited)]]="0", Table1[[#This Row],[Drug '# of doses_2 (for unlimited regimens, '# per year)]]/12, IF(Table1[[#This Row],[Regimen type (0=unlimited, 1=time-limited)]]=1, Table1[[#This Row],[Drug '# of doses_2 (for unlimited regimens, '# per year)]], IF(Table1[[#This Row],[Regimen type (0=unlimited, 1=time-limited)]]="1", Table1[[#This Row],[Drug '# of doses_2 (for unlimited regimens, '# per year)]], "CHECK"))))*INDEX(Table3[Total Admin Cost], MATCH(Table1[[#This Row],[Drug ROA_2]], Table3[Drug ROA Admin], 0)), 0) -> 558.44 | GH9: =IFERROR(IF(Table1[[#This Row],[Regimen type (0=unlimited, 1=time-limited)]]=0, Table1[[#This Row],[Drug '# of doses_3 (for unlimited regimens, '# per year)]]/12, IF(Table1[[#This Row],[Regimen type (0=unlimited, 1=time-limited)]]="0", Table1[[#This Row],[Drug '# of doses_3 (for unlimited regimens, '# per year)]]/12, IF(Table1[[#This Row],[Regimen type (0=unlimited, 1=time-limited)]]=1, Table1[[#This Row],[Drug '# of doses_3 (for unlimited regimens, '# per year)]], IF(Table1[[#This Row],[Regimen type (0=unlimited, 1=time-limited)]]="1", Table1[[#This Row],[Drug '# of doses_3 (for unlimited regimens, '# per year)]], "CHECK"))))*INDEX(Table3[Total Admin Cost], MATCH(Table1[[#This Row],[Drug ROA_3]], Table3[Drug ROA Admin], 0)), 0) -> 0 | GI9: =IFERROR(IF(Table1[[#This Row],[Regimen type (0=unlimited, 1=time-limited)]]=0, Table1[[#This Row],[Drug '# of doses_4 (for unlimited regimens, '# per year)]]/12, IF(Table1[[#This Row],[Regimen type (0=unlimited, 1=time-limited)]]="0", Table1[[#This Row],[Drug '# of doses_4 (for unlimited regimens, '# per year)]]/12, IF(Table1[[#This Row],[Regimen type (0=unlimited, 1=time-limited)]]=1, Table1[[#This Row],[Drug '# of doses_4 (for unlimited regimens, '# per year)]], IF(Table1[[#This Row],[Regimen type (0=unlimited, 1=time-limited)]]="1", Table1[[#This Row],[Drug '# of doses_4 (for unlimited regimens, '# per year)]], "CHECK"))))*INDEX(Table3[Total Admin Cost], MATCH(Table1[[#This Row],[Drug ROA_4]], Table3[Drug ROA Admin], 0)), 0) -> 0 | GJ9: =IFERROR(IF(Table1[[#This Row],[Regimen type (0=unlimited, 1=time-limited)]]=0, Table1[[#This Row],[Drug '# of doses_5 (for unlimited regimens, '# per year)]]/12, IF(Table1[[#This Row],[Regimen type (0=unlimited, 1=time-limited)]]="0", Table1[[#This Row],[Drug '# of doses_5 (for unlimited regimens, '# per year)]]/12, IF(Table1[[#This Row],[Regimen type (0=unlimited, 1=time-limited)]]=1, Table1[[#This Row],[Drug '# of doses_5 (for unlimited regimens, '# per year)]], IF(Table1[[#This Row],[Regimen type (0=unlimited, 1=time-limited)]]="1", Table1[[#This Row],[Drug '# of doses_5 (for unlimited regimens, '# per year)]], "CHECK"))))*INDEX(Table3[Total Admin Cost], MATCH(Table1[[#This Row],[Drug ROA_5]], Table3[Drug ROA Admin], 0)), 0) -> 0 | GK9: =IFERROR(IF(Table1[[#This Row],[Regimen type (0=unlimited, 1=time-limited)]]=0, Table1[[#This Row],[Drug '# of doses_6 (for unlimited regimens, '# per year)]]/12, IF(Table1[[#This Row],[Regimen type (0=unlimited, 1=time-limited)]]="0", Table1[[#This Row],[Drug '# of doses_6 (for unlimited regimens, '# per year)]]/12, IF(Table1[[#This Row],[Regimen type (0=unlimited, 1=time-limited)]]=1, Table1[[#This Row],[Drug '# of doses_6 (for unlimited regimens, '# per year)]], IF(Table1[[#This Row],[Regimen type (0=unlimited, 1=time-limited)]]="1", Table1[[#This Row],[Drug '# of doses_6 (for unlimited regimens, '# per year)]], "CHECK"))))*INDEX(Table3[Total Admin Cost], MATCH(Table1[[#This Row],[Drug ROA_6]], Table3[Drug ROA Admin], 0)), 0) -> 0 | GL9: =IFERROR(IF(Table1[[#This Row],[Regimen type (0=unlimited, 1=time-limited)]]=0, Table1[[#This Row],[Drug '# of doses_7 (for unlimited regimens, '# per year)]]/12, IF(Table1[[#This Row],[Regimen type (0=unlimited, 1=time-limited)]]="0", Table1[[#This Row],[Drug '# of doses_7 (for unlimited regimens, '# per year)]]/12, IF(Table1[[#This Row],[Regimen type (0=unlimited, 1=time-limited)]]=1, Table1[[#This Row],[Drug '# of doses_7 (for unlimited regimens, '# per year)]], IF(Table1[[#This Row],[Regimen type (0=unlimited, 1=time-limited)]]="1", Table1[[#This Row],[Drug '# of doses_7 (for unlimited regimens, '# per year)]], "CHECK"))))*INDEX(Table3[Total Admin Cost], MATCH(Table1[[#This Row],[Drug ROA_7]], Table3[Drug ROA Admin], 0)), 0) -> 0 | GM9: =IFERROR(IF(Table1[[#This Row],[Regimen type (0=unlimited, 1=time-limited)]]=0, Table1[[#This Row],[Drug '# of doses_8 (for unlimited regimens, '# per year)]]/12, IF(Table1[[#This Row],[Regimen type (0=unlimited, 1=time-limited)]]="0", Table1[[#This Row],[Drug '# of doses_8 (for unlimited regimens, '# per year)]]/12, IF(Table1[[#This Row],[Regimen type (0=unlimited, 1=time-limited)]]=1, Table1[[#This Row],[Drug '# of doses_8 (for unlimited regimens, '# per year)]], IF(Table1[[#This Row],[Regimen type (0=unlimited, 1=time-limited)]]="1", Table1[[#This Row],[Drug '# of doses_8 (for unlimited regimens, '# per year)]], "CHECK"))))*INDEX(Table3[Total Admin Cost], MATCH(Table1[[#This Row],[Drug ROA_8]], Table3[Drug ROA Admin], 0)), 0) -> 0 | GN9: =IFERROR(IF(Table1[[#This Row],[Regimen type (0=unlimited, 1=time-limited)]]=0, Table1[[#This Row],[Drug '# of doses_9 (for unlimited regimens, '# per year)]]/12, IF(Table1[[#This Row],[Regimen type (0=unlimited, 1=time-limited)]]="0", Table1[[#This Row],[Drug '# of doses_9 (for unlimited regimens, '# per year)]]/12, IF(Table1[[#This Row],[Regimen type (0=unlimited, 1=time-limited)]]=1, Table1[[#This Row],[Drug '# of doses_9 (for unlimited regimens, '# per year)]], IF(Table1[[#This Row],[Regimen type (0=unlimited, 1=time-limited)]]="1", Table1[[#This Row],[Drug '# of doses_9 (for unlimited regimens, '# per year)]], "CHECK"))))*INDEX(Table3[Total Admin Cost], MATCH(Table1[[#This Row],[Drug ROA_9]], Table3[Drug ROA Admin], 0)), 0) -> 0 | GO9: =IFERROR(IF(Table1[[#This Row],[Regimen type (0=unlimited, 1=time-limited)]]=0, Table1[[#This Row],[Drug '# of doses_10 (for unlimited regimens, '# per year)]]/12, IF(Table1[[#This Row],[Regimen type (0=unlimited, 1=time-limited)]]="0", Table1[[#This Row],[Drug '# of doses_10 (for unlimited regimens, '# per year)]]/12, IF(Table1[[#This Row],[Regimen type (0=unlimited, 1=time-limited)]]=1, Table1[[#This Row],[Drug '# of doses_10 (for unlimited regimens, '# per year)]], IF(Table1[[#This Row],[Regimen type (0=unlimited, 1=time-limited)]]="1", Table1[[#This Row],[Drug '# of doses_10 (for unlimited regimens, '# per year)]], "CHECK"))))*INDEX(Table3[Total Admin Cost], MATCH(Table1[[#This Row],[Drug ROA_10]], Table3[Drug ROA Admin], 0)), 0) -> 0 | GP9: =IFERROR(IF(Table1[[#This Row],[Regimen type (0=unlimited, 1=time-limited)]]=0, Table1[[#This Row],[Drug '# of doses_11 (for unlimited regimens, '# per year)]]/12, IF(Table1[[#This Row],[Regimen type (0=unlimited, 1=time-limited)]]="0", Table1[[#This Row],[Drug '# of doses_11 (for unlimited regimens, '# per year)]]/12, IF(Table1[[#This Row],[Regimen type (0=unlimited, 1=time-limited)]]=1, Table1[[#This Row],[Drug '# of doses_11 (for unlimited regimens, '# per year)]], IF(Table1[[#This Row],[Regimen type (0=unlimited, 1=time-limited)]]="1", Table1[[#This Row],[Drug '# of doses_11 (for unlimited regimens, '# per year)]], "CHECK"))))*INDEX(Table3[Total Admin Cost], MATCH(Table1[[#This Row],[Drug ROA_11]], Table3[Drug ROA Admin], 0)), 0) -> 0 | GQ9: =SUM(Table1[[#This Row],[Admin Drug 1]:[Admin Drug 11]]) -> 1116.88
